Workbook

Sheet TRM Spreadsheet
A1: KCP&L Technical Resource Manual - 04-01-2019 Update (Attachment A)
AC2: Link to CDD | AD2: Link to HDD
A3: Measures updated with PY2 EM&V results
A4: Measure Description | H4: Gross Measure Values | S4: Efficiency Values | Y4: Algorithms | AA4: Start/End Dates | AC4: Quantities
A5: Program | B5: Measure Name | C5: Primary Key | D5: Segment | E5: End Use | F5: Notes | G5: Unit Definition | H5: Incremental Measure Cost ($/Unit) | I5: Electric Energy Savings (Annual kWh/unit) | J5: Electric Energy Savings (Annual kWh/unit) Source | K5: Nameplate Demand Savings (kW/unit) | L5: Peak Coincidence Factor | M5: Peak Coincident Factor Source | N5: Coincident Peak Demand Savings (kW/unit) | O5: Coincident Peak Demand Savings (kW/unit) Source | P5: Annual Operating Hours | Q5: Annual Operating Hours Source | R5: Measure Life (Years) | S5: Measure Definition | T5: Measure Efficiency Value | U5: Measure Efficiency Value Source | V5: Baseline Definition | W5: Baseline Efficiency Value | X5: Baseline Efficiency Value Source | Y5: Electric Energy Savings Algorithm | Z5: Electric Demand Savings Algorithm | AA5: Effective Start Date | AB5: Effective End Date | AC5: Cooling Degree Days (CDD) | AD5: Heating Degree Days (HDD) | AE5: Quantity 1 | AF5: Quantity 1 Description | AG5: Quantity 1 Source | AH5: Quantity 2 | AI5: Quantity 2 Description | AJ5: Quantity 2 Source | AK5: Quantity 3 | AL5: Quantity 3 Description | AM5: Quantity 3 Source | AN5: Quantity 4 | AO5: Quantity 4 Description | AP5: Quantity 4 Source | AQ5: Quantity 5 | AR5: Quantity 5 Description | AS5: Quantity 5 Source | AT5: Quantity 6 | AU5: Quantity 6 Description | AV5: Quantity 6 Source | AW5: Quantity 7 | AX5: Quantity 7 Description | AY5: Quantity 7 Source | AZ5: Quantity 8 | BA5: Quantity 8 Description | BB5: Quantity 8 Source | BC5: Quantity 9 | BD5: Quantity 9 Description | BE5: Quantity 9 Source | BF5: Quantity 10 | BG5: Quantity 10 Description | BH5: Quantity 10 Source | BI5: Quantity 11 | BJ5: Quantity 11 Description | BK5: Quantity 11 Source | BL5: Quantity 12 | BM5: Quantity 12 Description | BN5: Quantity 12 Source | BO5: Quantity 13 | BP5: Quantity 13 Description | BQ5: Quantity 13 Source | BR5: Quantity 14 | BS5: Quantity 14 Description | BT5: Quantity 14 Source | BU5: Quantity 15 | BV5: Quantity 15 Description | BW5: Quantity 15 Source | BX5: Quantity 16 | BY5: Quantity 16 Description | BZ5: Quantity 16 Source | CA5: Quantity 17 | CB5: Quantity 17 Description | CC5: Quantity 17 Source | CD5: Quantity 18 | CE5: Quantity 18 Description | CF5: Quantity 18 Source
A6: Home Lighting Rebate | B6: Screw In - LEDs | C6: 2.1 | D6: All | E6: Lighting | G6: per lamp | H6: 3.93 | I6: =ROUND(($W6-$T6)/1000*$P6*$AE6*$AK6,4) -> 28.2745 | J6: IL TRM v5 | K6: =I6/P6 -> 0.03366011905 | L6: 0.08 | M6: IL TRM v5 | N6: =ROUND(($W6-$T6)/1000*L6*$AH6*$AK6,4) -> 0.0028 | O6: IL TRM v5 | P6: 840 | Q6: IL TRM v5 | R6: 10 | S6: Screw In - LEDs | T6: 9.29 | U6: Program Tracking Database | V6: 43 watts based on halogen equivalent to average of bulbs sold in program | W6: 43 | Y6: =cellformula(I6) -> =ROUND(($W6-$T6)/1000*$P6*$AE6*$AK6,4) | Z6: =cellformula(N6) -> =ROUND(($W6-$T6)/1000*L6*$AH6*$AK6,4) | AA6: 2018-04-01 | AE6: 1.06 | AF6: Waste Heat Factor, Energy | AG6: IL TRM v5 | AH6: 1.11 | AI6: Waste Heat Factor, Demand | AJ6: IL TRM v5 | AK6: 0.942 | AL6: ISR | AM6: Navigant MEEIA Cycle 1 Research
A7: Home Lighting Rebate | B7: Screw In - Specialty LEDs | C7: 244 | D7: All | E7: Lighting | G7: per lamp | H7: 7.39 | I7: =ROUND((W7-T7)/1000*P7*AE7*AK7,4) -> 29.0294 | J7: IL TRM v5 | K7: =I7/P7 -> 0.03455880952 | L7: 0.08 | M7: IL TRM v5 | N7: =ROUND(($W7-$T7)/1000*L7*$AH7*$AK7,4) -> 0.0029 | O7: IL TRM v5 | P7: 840 | Q7: IL TRM v5 | R7: 10 | S7: Screw In - Specialty LEDs | T7: 8.39 | U7: Program Tracking Database | V7: 43 watts based on halogen equivalent to average of bulbs sold in program | W7: 43 | Y7: =cellformula(I7) -> =ROUND((W7-T7)/1000*P7*AE7*AK7,4) | Z7: =cellformula(N7) -> =ROUND(($W7-$T7)/1000*L7*$AH7*$AK7,4) | AA7: 2018-04-01 | AB7: 2019-03-31 | AE7: 1.06 | AF7: Waste Heat Factor, Energy | AG7: IL TRM v5 | AH7: 1.11 | AI7: Waste Heat Factor, Demand | AJ7: IL TRM v5 | AK7: 0.942 | AL7: ISR | AM7: Navigant MEEIA Cycle 1 Research
A8: Home Lighting Rebate | B8: Screw In - Specialty LEDs | C8: 244.1 | D8: All | E8: Lighting | G8: per lamp | H8: 7.39 | I8: =ROUND((W8-T8)/1000*P8*AE8*AK8,4) -> 34.075 | J8: IL TRM v5 | K8: =I8/P8 -> 0.03455882353 | L8: 0.08 | M8: IL TRM v5 | N8: =ROUND(($W8-$T8)/1000*L8*$AH8*$AK8,4) -> 0.0029 | O8: IL TRM v5 | P8: 986 | Q8: IL TRM v5 | R8: 10 | S8: Screw In - Specialty LEDs | T8: 8.39 | U8: Program Tracking Database | V8: 43 watts based on halogen equivalent to average of bulbs sold in program | W8: 43 | Y8: =cellformula(I8) -> =ROUND((W8-T8)/1000*P8*AE8*AK8,4) | Z8: =cellformula(N8) -> =ROUND(($W8-$T8)/1000*L8*$AH8*$AK8,4) | AA8: 2019-04-01 | AE8: 1.06 | AF8: Waste Heat Factor, Energy | AG8: IL TRM v5 | AH8: 1.11 | AI8: Waste Heat Factor, Demand | AJ8: IL TRM v5 | AK8: 0.942 | AL8: ISR | AM8: Navigant MEEIA Cycle 1 Research
A9: Whole House Efficiency | B9: Screw In - LEDs | C9: 8.2 | D9: Single Family | E9: Lighting | F9: Kits | G9: per lamp | H9: 3.93 | I9: =ROUND(($W9-$T9)/1000*$P9*$AE9*$AK9,4) -> 28.2745 | J9: IL TRM v5 | K9: =I9/P9 -> 0.03366011905 | L9: 0.08 | M9: IL TRM v5 | N9: =ROUND(($W9-$T9)/1000*L9*$AH9*$AK9,4) -> 0.0028 | O9: IL TRM v5 | P9: 840 | Q9: IL TRM v5 | R9: 10 | S9: Screw In - LEDs | T9: 9.29 | U9: Program Tracking Database | V9: 43 watts based on halogen equivalent to average of bulbs sold in program | W9: 43 | Y9: =cellformula(I9) -> =ROUND(($W9-$T9)/1000*$P9*$AE9*$AK9,4) | Z9: =cellformula(N9) -> =ROUND(($W9-$T9)/1000*L9*$AH9*$AK9,4) | AA9: 2018-04-01 | AB9: 2019-03-31 | AE9: 1.06 | AF9: Waste Heat Factor, Energy | AG9: IL TRM v5 | AH9: 1.11 | AI9: Waste Heat Factor, Demand | AJ9: IL TRM v5 | AK9: 0.942 | AL9: ISR | AM9: Navigant MEEIA Cycle 1 Research
A10: Whole House Efficiency | B10: Screw In - LEDs | C10: 8.3 | D10: Single Family | E10: Lighting | F10: Kits | G10: per lamp | H10: 3.93 | I10: =ROUND(($W10-$T10)/1000*$P10*$AE10*$AK10,4) -> 28.5101 | J10: IL TRM v5 | K10: =I10/P10 -> 0.03366009445 | L10: 0.08 | M10: IL TRM v5 | N10: =ROUND(($W10-$T10)/1000*L10*$AH10*$AK10,4) -> 0.0028 | O10: IL TRM v5 | P10: 847 | Q10: IL TRM v5 | R10: 10 | S10: Screw In - LEDs | T10: 9.29 | U10: Program Tracking Database | V10: 43 watts based on halogen equivalent to average of bulbs sold in program | W10: 43 | Y10: =cellformula(I10) -> =ROUND(($W10-$T10)/1000*$P10*$AE10*$AK10,4) | Z10: =cellformula(N10) -> =ROUND(($W10-$T10)/1000*L10*$AH10*$AK10,4) | AA10: 2019-04-01 | AE10: 1.06 | AF10: Waste Heat Factor, Energy | AG10: IL TRM v5 | AH10: 1.11 | AI10: Waste Heat Factor, Demand | AJ10: IL TRM v5 | AK10: 0.942 | AL10: ISR | AM10: Navigant MEEIA Cycle 1 Research
A11: Whole House Efficiency | B11: Low Flow Faucet Aerator-Bathroom | C11: 245 | D11: Single Family | E11: Hot Water | F11: Kits | G11: per unit | H11: 8 | I11: =ROUND(((W11-T11)*AH11*AK11*365.25)*AE11*AN11,4) -> 25.1533 | J11: IL TRM v5 | K11: =I11/P11 -> 1.796664286 | L11: 0.022 | M11: IL TRM v5 | N11: =ROUND((((W11-T11)*AH11*AK11*365.25)*AE11*AN11)/P11*L11,4) -> 0.0395 | O11: IL TRM v5 | P11: 14 | Q11: IL TRM v5 | R11: 9 | S11: Low Flow (GPM) | T11: 1.5 | U11: Program Tracking Database | V11: Standard (GPM) | W11: 2.2 | X11: Federal Baseline | Y11: =cellformula(I11) -> =ROUND(((W11-T11)*AH11*AK11*365.25)*AE11*AN11,4) | Z11: =cellformula(N11) -> =ROUND((((W11-T11)*AH11*AK11*365.25)*AE11*AN11)/P11*L11,4) | AA11: 2018-04-01 | AB11: 2019-03-31 | AE11: 0.0795 | AF11: kWh per gallon hot water, bathroom | AG11: IL TRM v5 | AH11: 0.5088339223 | AI11: Faucet Coefficient, Bathroom: Minutes/day * Drain Factor / Faucets per Household | AJ11: IL TRM v5 | AK11: 2.56 | AL11: Persons per household | AM11: IL TRM v5 | AN11: 0.95 | AO11: Installation Rate | AP11: IL TRM v5
A12: Whole House Efficiency | B12: Low Flow Faucet Aerator-Bathroom | C12: 245.1 | D12: Single Family | E12: Hot Water | F12: Kits | G12: per unit | H12: 8 | I12: =ROUND(((W12-T12)*AH12*AK12*365.25)*AE12*AN12,4) -> 43.1199 | J12: IL TRM v5 | K12: 3.079992857 | L12: 0.022 | M12: IL TRM v5 | N12: =ROUND((((W12-T12)*AH12*AK12*365.25)*AE12*AN12)/P12*L12,4) -> 0.0678 | O12: IL TRM v5 | P12: 14 | Q12: IL TRM v5 | R12: 9 | S12: Low Flow (GPM) | T12: 1 | U12: Program Tracking Database | V12: Standard (GPM) | W12: 2.2 | X12: Federal Baseline | Y12: =cellformula(I12) -> =ROUND(((W12-T12)*AH12*AK12*365.25)*AE12*AN12,4) | Z12: =cellformula(N12) -> =ROUND((((W12-T12)*AH12*AK12*365.25)*AE12*AN12)/P12*L12,4) | AA12: 2019-04-01 | AE12: 0.0795 | AF12: kWh per gallon hot water, bathroom | AG12: IL TRM v5 | AH12: 0.5088339223 | AI12: Faucet Coefficient, Bathroom: Minutes/day * Drain Factor / Faucets per Household | AJ12: IL TRM v5 | AK12: 2.56 | AL12: Persons per household | AM12: IL TRM v5 | AN12: 0.95 | AO12: Installation Rate | AP12: IL TRM v5
A13: Whole House Efficiency | B13: Low Flow Faucet Aerator-Kitchen | C13: 246 | D13: Single Family | E13: Hot Water | F13: Kits | G13: per unit | H13: 8 | I13: =ROUND(((W13-T13)*AH13*AK13*365.25)*AE13*AN13,4) -> 203.3524 | J13: IL TRM v5 | K13: 2.163323404 | L13: 0.022 | M13: IL TRM v5 | N13: =ROUND((((W13-T13)*AH13*AK13*365.25)*AE13*AN13)/P13*L13,4) -> 0.0476 | O13: IL TRM v5 | P13: 94 | Q13: IL TRM v5 | R13: 9 | S13: Low Flow (GPM) | T13: 1.5 | U13: Program Tracking Database | V13: Standard (GPM) | W13: 2.2 | X13: Federal Baseline | Y13: =ROUND(((W13-T13)*AH13*AK13*365.25)*AE13*AN13,4) | Z13: =ROUND((((W13-T13)*AH13*AK13*365.25)*AE13*AN13)/P13*L13,4) | AA13: 2018-04-01 | AE13: 0.0969 | AF13: kWh per gallon hot water, kitchen | AG13: IL TRM v5 | AH13: 3.375 | AI13: Faucet Coefficient, Kitchen | AJ13: IL TRM v5 | AK13: 2.56 | AL13: Persons per household | AM13: IL TRM v5 | AN13: 0.95 | AO13: Installation Rate | AP13: IL TRM v5
A14: Whole House Efficiency | B14: Pipe Insulated | C14: 10.1 | D14: Single Family | E14: Hot Water | F14: Kits | G14: per unit | H14: 18 | I14: =ROUND(((((AE14*PI()*AK14)/W14) - ((AH14*PI()*AK14)/T14))*AN14)/AQ14/3412,4) -> 72.065 | J14: IL TRM v5, modified to account for larger diameter due to added pipe insulation | K14: 0.008220965535 | N14: =ROUND(I14/8766,4) -> 0.0082 | O14: IL TRM v5 | Q14: IL TRM v5 | R14: 15 | S14: Efficient R-Value due to added insulation | T14: =1+5 -> 6 | U14: IL TRM v5 | V14: R-Value of bare pipe | W14: 1 | X14: IL TRM v5 | Y14: =ROUND(((((AE14*PI()*AK14)/W14) - ((AH14*PI()*AK14)/T14))*AN14)/AQ14/3412,4) | Z14: =ROUND(I14/8766,4) | AA14: 2018-04-01 | AE14: =0.75/12 -> 0.0625 | AF14: Dbase = Pipe Diameter (ft) | AG14: IL TRM v5 | AH14: =(0.75+1*2)/12 -> 0.2291666667 | AI14: Dee = Updated Pipe Diameter, due to added insulation (ft) | AJ14: IL TRM v5 | AK14: 6 | AL14: Length of added pipe insulation | AM14: Verified through EEP | AN14: =60*8766 -> 525960 | AO14: Pipe Insulated Coefficient 1 = ∆T * Hours = 60 * 8766 | AP14: IL TRM v5 | AQ14: 0.98 | AR14: Recovery efficiency of electric water heater | AS14: IL TRM v5
A15: Whole House Efficiency | B15: Low Flow Showerhead | C15: 11.1 | D15: Single Family | E15: Hot Water | F15: Kits | G15: per unit | H15: 12 | I15: =ROUND(((W15-T15)*AH15*AK15*365.25)*AE15*AN15,4) -> 327.9599 | J15: IL TRM v5 | K15: =I15/P15 -> 1.085959934 | L15: 0.0278 | M15: IL TRM v5 | N15: =ROUND((((W15-T15)*AH15*AK15*365.25)*AE15*AN15)/P15*L15,4) -> 0.0302 | O15: IL TRM v5 | P15: 302 | Q15: IL TRM v5 | R15: 10 | S15: Low Flow (GPM) | T15: 1.5 | U15: EEP from ICF | V15: Standard (GPM) | W15: 2.67 | X15: IL TRM v5 | Y15: =ROUND(((W15-T15)*AH15*AK15*365.25)*AE15*AN15,4) | Z15: =ROUND((((W15-T15)*AH15*AK15*365.25)*AE15*AN15)/P15*L15,4) | AA15: 2018-04-01 | AE15: 0.117 | AF15: kWh per gallon hot water | AG15: IL TRM v5 | AH15: 2.61452514 | AI15: Showerhead Coefficient: Minutes per day * Showers per day / Showers per household | AJ15: IL TRM v5 | AK15: 2.56 | AL15: Persons per household | AM15: IL TRM v5 | AN15: 0.98 | AO15: Installation Rate | AP15: IL TRM v5
A16: Whole House Efficiency | B16: Water Heater Tank Wrap | C16: 12 | D16: Single Family | E16: Hot Water | F16: Kits | G16: per unit | H16: 18 | I16: =ROUND(131.295784945569,4) -> 131.2958 | K16: 0.01498810502 | N16: =ROUND(0.0149881033042887,4) -> 0.015 | P16: 8760 | R16: 5 | S16: Water Heater Blanket/Tank Wrap | V16: No Blanket | Y16: =ROUND(131.295784945569,4) | Z16: =ROUND(0.0149881033042887,4) | AA16: 2016-04-01
A17: Whole House Efficiency | B17: Smart Power Strip - Wh7-Plug | C17: 13.1 | D17: Single Family | E17: Electronics | F17: Kits | G17: per unit | H17: 16 | I17: =ROUND(103,4) -> 103 | J17: IL TRM v5 | K17: 0.01444802918 | L17: 0.8 | M17: IL TRM v5 | N17: =ROUND(I17/P17*L17,4) -> 0.0116 | O17: IL TRM v5 | P17: 7129 | Q17: IL TRM v5 | R17: 5 | S17: Smart strip | V17: Standard outlet strip | Y17: =ROUND(103,4) | Z17: =ROUND(I17/P17*L17,4) | AA17: 2018-04-01
A18: Whole House Efficiency | B18: Air Sealing | C18: 14.1 | D18: Single Family | E18: HVAC - Shell | G18: per sq ft (floor area) | H18: 0.12 | I18: =ROUND((AW18*((W18-T18)/AN18*AE18*AT18*AC18)/AK18)/AZ18+(((W18-T18)/AQ18*AE18*AD18)/AH18)/AZ18,4) -> 0.4337 | J18: IL TRM v5, PY2016 averages | K18: 0.0004416496945 | L18: 0.72 | M18: IL TRM v5 | N18: =ROUND((((AW18*((W18-T18)/AN18*AE18*AT18*AC18)/AK18)/AZ18)/P18)*L18,8) -> 6.149e-05 | O18: IL TRM v5, PY2016 averages | P18: 982 | Q18: EFLHcool, from PY2016 analysis | R18: 15 | S18: Efficient CFM | T18: 3083.594156 | U18: PY2016 average | V18: Baseline CFM | W18: 4342.996753 | X18: PY2016 average | Y18: =ROUND((AW18*((W18-T18)/AN18*AE18*AT18*AC18)/AK18)/AZ18+(((W18-T18)/AQ18*AE18*AD18)/AH18)/AZ18,4) | Z18: =ROUND((((AW18*((W18-T18)/AN18*AE18*AT18*AC18)/AK18)/AZ18)/P18)*L18,8) | AA18: 2018-04-01 | AB18: 2019-03-31 | AC18: 1445 | AD18: 5155 | AE18: 25.92 | AF18: Air Sealing Coefficient: 60 * 24 * 0.018 | AG18: IL TRM v5 | AH18: 6551.04 | AI18: Heating Coefficient: COP * 3,412 COP = 1.7 for units before 2006 COP = 1.92 for units between 2006-2014 COP = 2.4 for units after 2014 | AJ18: IL TRM v5 | AK18: 13000 | AL18: Cooling Coefficient | AM18: IL TRM v5: SEER * 1,000. SEER 10 for units before 2006 SEER 13 for units after 2006 | AN18: 35.8 | AO18: Ncool: Infiltration conversion factor | AP18: IL TRM v5 | AQ18: 22.5 | AR18: Nheat: Infiltration conversion factor | AS18: IL TRM v5 | AT18: 0.75 | AU18: DUA: Discretionary Use Adjustment | AV18: IL TRM v5 | AW18: 3.6 | AX18: LM: Latent Cooling Multiplier | AY18: IL TRM v5 | AZ18: 3263 | BA18: Square footage installed | BB18: PY2016 average
A19: Whole House Efficiency | B19: Air Sealing | C19: 14.2 | D19: Single Family | E19: HVAC - Shell | G19: per sq ft (floor area) | H19: 0.12 | I19: =ROUND((AW19*((W19-T19)/AN19*AE19*AT19*AC19)/AK19)/AZ19+(((W19-T19)/AQ19*AE19*AD19)/AH19)/AZ19,4) -> 0.4337 | J19: IL TRM v5, PY2016 averages | K19: =I19/P19 -> 0.0005876693767 | L19: 0.72 | M19: IL TRM v5 | N19: =ROUND((((AW19*((W19-T19)/AN19*AE19*AT19*AC19)/AK19)/AZ19)/P19)*L19,8) -> 8.182e-05 | O19: IL TRM v5, PY2016 averages | P19: 738 | Q19: EFLHcool, from PY2016 analysis | R19: 15 | S19: Efficient CFM | T19: 3083.594156 | U19: PY2016 average | V19: Baseline CFM | W19: 4342.996753 | X19: PY2016 average | Y19: =cellformula(I19) -> =ROUND((AW19*((W19-T19)/AN19*AE19*AT19*AC19)/AK19)/AZ19+(((W19-T19)/AQ19*AE19*AD19)/AH19)/AZ19,4) | Z19: =cellformula(N19) -> =ROUND((((AW19*((W19-T19)/AN19*AE19*AT19*AC19)/AK19)/AZ19)/P19)*L19,8) | AA19: 2019-04-01 | AC19: 1445 | AD19: 5155 | AE19: 25.92 | AF19: Air Sealing Coefficient: 60 * 24 * 0.018 | AG19: IL TRM v5 | AH19: 6551.04 | AI19: Heating Coefficient: COP * 3,412 COP = 1.7 for units before 2006 COP = 1.92 for units between 2006-2014 COP = 2.4 for units after 2014 | AJ19: IL TRM v5 | AK19: 13000 | AL19: Cooling Coefficient | AM19: IL TRM v5: SEER * 1,000. SEER 10 for units before 2006 SEER 13 for units after 2006 | AN19: 35.8 | AO19: Ncool: Infiltration conversion factor | AP19: IL TRM v5 | AQ19: 22.5 | AR19: Nheat: Infiltration conversion factor | AS19: IL TRM v5 | AT19: 0.75 | AU19: DUA: Discretionary Use Adjustment | AV19: IL TRM v5 | AW19: 3.6 | AX19: LM: Latent Cooling Multiplier | AY19: IL TRM v5 | AZ19: 3263 | BA19: Square footage installed | BB19: PY2016 average
A20: Whole House Efficiency | B20: Increased Ceiling Insulation | C20: 15.1 | D20: Single Family | E20: HVAC - Shell | G20: per sq ft (ceiling area) | H20: 0.76 | I20: =ROUND(((((1/W20-1/T20)*(1-AN20)*24*AC20*AK20)/AH20)*AQ20)+((((1/W20-1/T20)*(1-AN20)*24*AD20)/AE20)*AT20),4) -> 0.4028 | J20: IL TRM v5, PY2016 averages | K20: 0.0004101832994 | L20: 0.7 | M20: IL TRM v5 | N20: =ROUND((((((1/W20-1/T20)*(1-AN20)*24*AC20*AK20)/AH20)*AQ20)/P20)*L20,8) -> 3.554e-05 | O20: IL TRM v5, PY2016 averages | P20: 982 | Q20: EFLHcool, from PY2016 analysis | R20: 25 | S20: Final R-value | T20: 41.03164557 | U20: PY2016 average | V20: Previous R-value | W20: 17.28280255 | X20: PY2016 average | Y20: =ROUND(((((1/W20-1/T20)*(1-AN20)*24*AC20*AK20)/AH20)*AQ20)+((((1/W20-1/T20)*(1-AN20)*24*AD20)/AE20)*AT20),4) | Z20: =ROUND((((((1/W20-1/T20)*(1-AN20)*24*AC20*AK20)/AH20)*AQ20)/P20)*L20,8) | AA20: 2018-04-01 | AB20: 2019-03-31 | AC20: 1445 | AD20: 5155 | AE20: 6551.04 | AF20: Heating Coefficient: COP * 3,412 COP = 1.7 for units before 2006 COP = 1.92 for units between 2006-2014 COP = 2.4 for units after 2014 | AG20: IL TRM v5 | AH20: 13000 | AI20: Cooling Coefficient | AJ20: IL TRM v5: SEER * 1,000. SEER 10 for units before 2006 SEER 13 for units after 2006 | AK20: 0.75 | AL20: DUA: Discretionary Use Adjustment | AM20: IL TRM v5 | AN20: 0.07 | AO20: Framing Factor, Ceiling | AP20: IL TRM v5 | AQ20: 0.8 | AR20: ADJcool: adjustment for cooling savings from basement wall insulation | AS20: IL TRM v5 | AT20: 0.6 | AU20: ADJheat: adjustment for wall and attic insulation | AV20: IL TRM v5
A21: Whole House Efficiency | B21: Increased Ceiling Insulation | C21: 15.2 | D21: Single Family | E21: HVAC - Shell | G21: per sq ft (ceiling area) | H21: 0.76 | I21: =ROUND(((((1/W21-1/T21)*(1-AN21)*24*AC21*AK21)/AH21)*AQ21)+((((1/W21-1/T21)*(1-AN21)*24*AD21)/AE21)*AT21),4) -> 0.4028 | J21: IL TRM v5, PY2016 averages | K21: =I21/P21 -> 0.000545799458 | L21: 0.7 | M21: IL TRM v5 | N21: =ROUND((((((1/W21-1/T21)*(1-AN21)*24*AC21*AK21)/AH21)*AQ21)/P21)*L21,8) -> 4.728e-05 | O21: IL TRM v5, PY2016 averages | P21: 738 | Q21: EFLHcool, from Draft MO TRM | R21: 25 | S21: Final R-value | T21: 41.03164557 | U21: PY2016 average | V21: Previous R-value | W21: 17.28280255 | X21: PY2016 average | Y21: =cellformula(I21) -> =ROUND(((((1/W21-1/T21)*(1-AN21)*24*AC21*AK21)/AH21)*AQ21)+((((1/W21-1/T21)*(1-AN21)*24*AD21)/AE21)*AT21),4) | Z21: =cellformula(N21) -> =ROUND((((((1/W21-1/T21)*(1-AN21)*24*AC21*AK21)/AH21)*AQ21)/P21)*L21,8) | AA21: 2019-04-01 | AC21: 1445 | AD21: 5155 | AE21: 6551.04 | AF21: Heating Coefficient: COP * 3,412 COP = 1.7 for units before 2006 COP = 1.92 for units between 2006-2014 COP = 2.4 for units after 2014 | AG21: IL TRM v5 | AH21: 13000 | AI21: Cooling Coefficient | AJ21: IL TRM v5: SEER * 1,000. SEER 10 for units before 2006 SEER 13 for units after 2006 | AK21: 0.75 | AL21: DUA: Discretionary Use Adjustment | AM21: IL TRM v5 | AN21: 0.07 | AO21: Framing Factor, Ceiling | AP21: IL TRM v5 | AQ21: 0.8 | AR21: ADJcool: adjustment for cooling savings from basement wall insulation | AS21: IL TRM v5 | AT21: 0.6 | AU21: ADJheat: adjustment for wall and attic insulation | AV21: IL TRM v5
A22: Whole House Efficiency | B22: Increased Wall Insulation | C22: 16.1 | D22: Single Family | E22: HVAC - Shell | G22: per sq ft (wall area) | H22: 1.32 | I22: =ROUND(((((1/W22-1/T22)*(1-AN22)*24*AC22*AK22)/AH22)*AQ22)+((((1/W22-1/T22)*(1-AN22)*24*AD22)/AE22)*AT22),4) -> 0.8476 | J22: IL TRM v5, PY2016 averages | K22: 0.0008631364562 | L22: 0.7 | M22: IL TRM v5 | N22: =ROUND((((((1/W22-1/T22)*(1-AN22)*24*AC22*AK22)/AH22)*AQ22)/P22)*L22,8) -> 7.478e-05 | O22: IL TRM v5, PY2016 averages | P22: 982 | Q22: EFLHcool, from PY2016 analysis | R22: 25 | S22: Final R-value | T22: 17.23484848 | U22: PY2016 average | V22: Previous R-value | W22: 6.876923077 | X22: PY2016 average | Y22: =ROUND(((((1/W22-1/T22)*(1-AN22)*24*AC22*AK22)/AH22)*AQ22)+((((1/W22-1/T22)*(1-AN22)*24*AD22)/AE22)*AT22),4) | Z22: =ROUND((((((1/W22-1/T22)*(1-AN22)*24*AC22*AK22)/AH22)*AQ22)/P22)*L22,8) | AA22: 2018-04-01 | AB22: 2019-03-31 | AC22: 1445 | AD22: 5155 | AE22: 6551.04 | AF22: Heating Coefficient: COP * 3,412 COP = 1.7 for units before 2006 COP = 1.92 for units between 2006-2014 COP = 2.4 for units after 2014 | AG22: IL TRM v5 | AH22: 13000 | AI22: Cooling Coefficient | AJ22: IL TRM v5: SEER * 1,000. SEER 10 for units before 2006 SEER 13 for units after 2006 | AK22: 0.75 | AL22: DUA: Discretionary Use Adjustment | AM22: IL TRM v5 | AN22: 0.25 | AO22: Framing Factor, Wall | AP22: IL TRM v5 | AQ22: 0.8 | AR22: ADJcool: adjustment for cooling savings from basement wall insulation | AS22: IL TRM v5 | AT22: 0.6 | AU22: ADJheat: adjustment for wall and attic insulation | AV22: IL TRM v5
A23: Whole House Efficiency | B23: Increased Wall Insulation | C23: 16.2 | D23: Single Family | E23: HVAC - Shell | G23: per sq ft (wall area) | H23: 1.32 | I23: =ROUND(((((1/W23-1/T23)*(1-AN23)*24*AC23*AK23)/AH23)*AQ23)+((((1/W23-1/T23)*(1-AN23)*24*AD23)/AE23)*AT23),4) -> 0.8476 | J23: IL TRM v5, PY2016 averages | K23: =I23/P23 -> 0.001148509485 | L23: 0.7 | M23: IL TRM v5 | N23: =ROUND((((((1/W23-1/T23)*(1-AN23)*24*AC23*AK23)/AH23)*AQ23)/P23)*L23,8) -> 9.951e-05 | O23: IL TRM v5, PY2016 averages | P23: 738 | Q23: EFLHcool, from Draft MO TRM | R23: 25 | S23: Final R-value | T23: 17.23484848 | U23: PY2016 average | V23: Previous R-value | W23: 6.876923077 | X23: PY2016 average | Y23: =cellformula(I23) -> =ROUND(((((1/W23-1/T23)*(1-AN23)*24*AC23*AK23)/AH23)*AQ23)+((((1/W23-1/T23)*(1-AN23)*24*AD23)/AE23)*AT23),4) | Z23: =cellformula(N23) -> =ROUND((((((1/W23-1/T23)*(1-AN23)*24*AC23*AK23)/AH23)*AQ23)/P23)*L23,8) | AA23: 2019-04-01 | AC23: 1445 | AD23: 5155 | AE23: 6551.04 | AF23: Heating Coefficient: COP * 3,412 COP = 1.7 for units before 2006 COP = 1.92 for units between 2006-2014 COP = 2.4 for units after 2014 | AG23: IL TRM v5 | AH23: 13000 | AI23: Cooling Coefficient | AJ23: IL TRM v5: SEER * 1,000. SEER 10 for units before 2006 SEER 13 for units after 2006 | AK23: 0.75 | AL23: DUA: Discretionary Use Adjustment | AM23: IL TRM v5 | AN23: 0.25 | AO23: Framing Factor, Wall | AP23: IL TRM v5 | AQ23: 0.8 | AR23: ADJcool: adjustment for cooling savings from basement wall insulation | AS23: IL TRM v5 | AT23: 0.6 | AU23: ADJheat: adjustment for wall and attic insulation | AV23: IL TRM v5
A24: Whole House Efficiency | B24: ENERGY STAR Windows | C24: 17 | D24: Single Family | E24: HVAC - Shell | G24: per sq ft (window area) | H24: 1.5 | I24: =ROUND((W24-T24)*(AC24*AE24 + AD24*AH24),4) -> 2.05 | N24: =ROUND(0.000828,4) -> 0.0008 | R24: 25 | S24: Efficient U-factor | T24: 0.3 | V24: Baseline U-factor | W24: 0.9 | Y24: =ROUND((W24-T24)*(AC24*AE24 + AD24*AH24),4) | Z24: =ROUND(0.000828,4) | AA24: 2016-04-01 | AC24: 1325 | AD24: 5249 | AE24: 0.0005197241659 | AF24: Cooling Coefficient | AH24: =AE24 -> 0.0005197241659 | AI24: Heating Coefficient
A25: Whole House Efficiency | B25: Heat Pump Water Heater | C25: 18.1 | D25: Single Family | E25: Hot Water | G25: per unit | H25: 1000 | I25: =ROUND(((1/W25-1/T25)*AE25*AH25)+((((AE25*AH25-(1/(AE25*AH25*T25)))*AN25*0.27)/AQ25)*AK25)-(((AE25*AH25-(1/(AE25*AH25*T25)))*AN25*0.27)/AT25),4) -> 1484.4151 | J25: IL TRM v5 | K25: =I25/P25 -> 0.5860304382 | L25: 0.12 | M25: IL TRM v5 | N25: =ROUND(I25/P25*L25,4) -> 0.0703 | O25: IL TRM v5 | P25: 2533 | Q25: IL TRM v5 | R25: 13 | S25: Efficient EF | T25: 2 | U25: KCP&L Meta Data Analysis | V25: Baseline EF | W25: 0.945 | X25: IL TRM v5 | Y25: =ROUND(((1/W25-1/T25)*AE25*AH25)+((((AE25*AH25-(1/(AE25*AH25*T25)))*AN25*0.27)/AQ25)*AK25)-(((AE25*AH25-(1/(AE25*AH25*T25)))*AN25*0.27)/AT25),4) | Z25: =ROUND(I25/P25*L25,4) | AA25: 2018-04-01 | AE25: 45.143 | AF25: Gallons per day: 17.6 gal/day * 2.56 persons/household | AG25: IL TRM v5 | AH25: 63.31178414 | AI25: WHC = Water Heating Coefficient: (365.25 * γWater * (Tout - Tin))/3,412 Assume: γWater = 8.33lbs / Gallon Tout = Tank Temperature = 125 °F Tin = Incoming Water Temperature = 54 °F | AJ25: IL TRM v5 | AK25: 1.33 | AL25: Latent multiplier to account for latent cooling demand | AM25: IL TRM v5 | AN25: 0.5 | AO25: Location Factor | AP25: IL TRM v5 | AQ25: 3.08 | AR25: COPcool | AS25: IL TRM v5 | AT25: 1.39 | AU25: COPheat: For Heat Pumps: Before 2006, COP = 2.00 2006-2014, COP = 2.26 2015 and later, COP = 2.40 For Electric Resistance, COP = 1.00 For Unknown, COP = 1.39 | AV25: IL TRM v5
A26: Whole House Efficiency | B26: Efficient ECM Fan | C26: 19.1 | D26: Single Family | E26: All | G26: per unit | H26: 97 | I26: =ROUND(710,4) -> 710 | J26: -IL TRM v5: If no AC, 644 kWh. If AC exists, 732 kWh. If AC unknown, 710 kWh. | K26: 0.7230142566 | L26: 0.68 | M26: IL TRM v5 | N26: =ROUND(241 / AE26* L26,4) -> 0.1669 | P26: 982 | Q26: EFLHcool, from PY2016 analysis | R26: 10 | S26: ECM Fan | V26: Std Fan | Y26: =ROUND(710,4) | Z26: =cellformula(N26) -> =ROUND(241 / AE26* L26,4) | AA26: 2018-04-01 | AB26: 2019-03-31 | AE26: 982 | AF26: EFLHcool | AH26: n/a | AI26: EFLHheat
A27: Whole House Efficiency | B27: Heat Pump Ductless Mini Split | C27: 20.1 | D27: Single Family | E27: All | G27: per unit | H27: 3787.974684 | I27: =ROUND((AT27*AE27*(1/W27-1/T27))/1000+(AW27*AE27*(1/AK27-1/AH27)/1000),4) -> 2329.3857 | J27: IL TRM v5 | K27: 2.372083198 | L27: 0.43 | M27: IL TRM v5 | N27: =ROUND((AE27*(1/AQ27-1/AN27)/1000)*L27,4) -> 0.1999 | P27: 982 | Q27: EFLHcool, from PY2016 analysis | R27: 18 | S27: SEER | T27: 22.94 | U27: PY2016 Metadata | V27: SEER | W27: 9.12 | X27: IL TRM v5; assumes existing equimpment is ASHP | Y27: =cellformula(I27) -> =ROUND((AT27*AE27*(1/W27-1/T27))/1000+(AW27*AE27*(1/AK27-1/AH27)/1000),4) | Z27: =ROUND((AE27*(1/AQ27-1/AN27)/1000)*L27,4) | AA27: 2018-04-01 | AB27: 2019-03-31 | AE27: 12000 | AF27: Allows for Capacity input in Tons; converts tons to BTUs | AH27: 11.12424242 | AI27: HSPFee | AJ27: Calculated per PY2016 Metadata | AK27: 5.44 | AL27: HSPFbase | AM27: Illinois TRM - Assumes Air Source Heat Pump | AN27: 12.78461538 | AO27: EERee | AP27: Calculated per PY2016 Metadata | AQ27: 8.55 | AR27: EERbase | AS27: Illinois TRM - Assumes Air Source Heat Pump | AT27: 982 | AU27: EFLHcool | AV27: The EFLH Cooling and Heating hours are based on a EnergyStar study that was normalized (based on HDD and CDD) to Kansas City. This was for both AC and HP units. | AW27: 1376 | AX27: EFLHheat | AY27: The EFLH Cooling and Heating hours are based on a EnergyStar study that was normalized (based on HDD and CDD) to Kansas City. This was for both AC and HP units.
A28: Whole House Efficiency | B28: Heat Pump Ductless Mini Split | C28: 20.2 | D28: Single Family | E28: All | G28: per unit | H28: 3787.974684 | I28: =ROUND((AT28*AE28*(1/W28-1/T28))/1000+(AW28*AE28*(1/AK28-1/AH28)/1000),4) -> 2135.9704 | J28: IL TRM v5 | K28: 2.894268835 | L28: 0.43 | M28: IL TRM v5 | N28: =ROUND((AE28*(1/AQ28-1/AN28)/1000)*L28,4) -> 0.1999 | P28: 738 | Q28: EFLHcool, from 2017 MO TRM | R28: 18 | S28: SEER | T28: 22.94 | U28: PY2016 Metadata | V28: SEER | W28: 9.12 | X28: IL TRM v5; assumes existing equimpment is ASHP | Y28: =cellformula(I28) -> =ROUND((AT28*AE28*(1/W28-1/T28))/1000+(AW28*AE28*(1/AK28-1/AH28)/1000),4) | Z28: =cellformula(N28) -> =ROUND((AE28*(1/AQ28-1/AN28)/1000)*L28,4) | AA28: 2019-04-01 | AE28: 12000 | AF28: Allows for Capacity input in Tons; converts tons to BTUs | AH28: 11.12424242 | AI28: HSPFee | AJ28: Calculated per PY2016 Metadata | AK28: 5.44 | AL28: HSPFbase | AM28: Illinois TRM - Assumes Air Source Heat Pump | AN28: 12.78461538 | AO28: EERee | AP28: Calculated per PY2016 Metadata | AQ28: 8.55 | AR28: EERbase | AS28: Illinois TRM - Assumes Air Source Heat Pump | AT28: 738 | AU28: EFLHcool | AV28: 2017 MO TRM | AW28: 1376 | AX28: EFLHheat | AY28: The EFLH Cooling and Heating hours are based on a EnergyStar study that was normalized (based on HDD and CDD) to Kansas City. This was for both AC and HP units.
A29: Whole House Efficiency | B29: CAC SEER 15 | C29: 21.1 | D29: Single Family | E29: HVAC | G29: per ton | H29: 238 | I29: =ROUND((AN29*AH29*(1/W29-1/T29))/1000,4) -> 127.0965 | J29: IL TRM v5 | K29: 0.1294261711 | L29: 0.68 | M29: IL TRM v5 | N29: =ROUND(((AH29*((1/AK29)-(1/AE29)))/1000)*L29,4) -> 0.0685 | P29: 982 | Q29: EFLHcool, from PY2016 analysis | R29: 18 | S29: SEER | T29: 15.12 | U29: per PY2016 Metadata | V29: SEER | W29: 13 | X29: IL TRM v5 | Y29: =ROUND((AN29*AH29*(1/W29-1/T29))/1000,4) | Z29: =ROUND(((AH29*((1/AK29)-(1/AE29)))/1000)*L29,4) | AA29: 2018-04-01 | AB29: 2019-03-31 | AE29: 12.362112 | AF29: EERee | AG29: IL TRMv5 | AH29: 12000 | AI29: Allows for Capacity input in Tons; converts tons to BTUs | AK29: 11.2 | AL29: EERbase | AM29: IL TRMv5, Early Replacement | AN29: 982 | AO29: EFLHcool | AP29: The EFLH Cooling and Heating hours are based on a EnergyStar study that was normalized (based on HDD and CDD) to Kansas City. This was for both AC and HP units. | AQ29: 1376 | AR29: EFLHheat | AS29: The EFLH Cooling and Heating hours are based on a EnergyStar study that was normalized (based on HDD and CDD) to Kansas City. This was for both AC and HP units.
A30: Whole House Efficiency | B30: CAC SEER 15 | C30: 21.2 | D30: Single Family | E30: HVAC | G30: per ton | H30: 238 | I30: =ROUND((AN30*AH30*(1/W30-1/T30))/1000,4) -> 95.5165 | J30: IL TRM v5 | K30: 0.1294261518 | L30: 0.68 | M30: IL TRM v5 | N30: =ROUND(((AH30*((1/AK30)-(1/AE30)))/1000)*L30,4) -> 0.0685 | P30: 738 | Q30: EFLHcool, from 2017 MO TRM | R30: 18 | S30: SEER | T30: 15.12 | U30: per PY2016 Metadata | V30: SEER | W30: 13 | X30: IL TRM v6 | Y30: =cellformula(I30) -> =ROUND((AN30*AH30*(1/W30-1/T30))/1000,4) | Z30: =cellformula(N30) -> =ROUND(((AH30*((1/AK30)-(1/AE30)))/1000)*L30,4) | AA30: 2019-04-01 | AE30: 12.362112 | AF30: EERee | AG30: IL TRMv5 | AH30: 12000 | AI30: Allows for Capacity input in Tons; converts tons to BTUs | AK30: 11.2 | AL30: EERbase | AM30: IL TRMv5, Early Replacement | AN30: 738 | AO30: EFLHcool | AP30: 2017 MO TRM | AQ30: 1376 | AR30: EFLHheat | AS30: The EFLH Cooling and Heating hours are based on a EnergyStar study that was normalized (based on HDD and CDD) to Kansas City. This was for both AC and HP units.
A31: Whole House Efficiency | B31: CAC SEER 15 - Early Replacement | C31: 22.1 | D31: Single Family | E31: HVAC | G31: per ton | H31: 267 | I31: =ROUND((AN31*AH31*(1/W31-1/T31))/1000,4) -> 937.4621 | J31: IL TRM v5 | K31: 0.954645723 | L31: 0.68 | M31: IL TRM v5 | N31: =ROUND(((AH31*((1/AK31)-(1/AE31)))/1000)*L31,4) -> 0.7005 | P31: 982 | Q31: EFLHcool, from PY2016 analysis | R31: 6 | S31: SEER | T31: 15.15 | U31: per PY2016 Metadata | V31: SEER | W31: 6.87 | X31: per PY2015 report | Y31: =ROUND((AN31*AH31*(1/W31-1/T31))/1000,4) | Z31: =ROUND(((AH31*((1/AK31)-(1/AE31)))/1000)*L31,4) | AA31: 2018-04-01 | AB31: 2019-03-31 | AE31: 12.37755 | AF31: EERee | AG31: PY2016 evaluation metadata | AH31: 12000 | AI31: Allows for Capacity input in Tons; converts tons to BTUs | AK31: 6.001068314 | AL31: EERbase | AM31: Early Replacement: 2015 Tracking Data Analysis | AN31: 982 | AO31: EFLHcool | AP31: The EFLH Cooling and Heating hours are based on a EnergyStar study that was normalized (based on HDD and CDD) to Kansas City. This was for both AC and HP units. | AQ31: 1376 | AR31: EFLHheat | AS31: The EFLH Cooling and Heating hours are based on a EnergyStar study that was normalized (based on HDD and CDD) to Kansas City. This was for both AC and HP units.
A32: Whole House Efficiency | B32: CAC SEER 15 - Early Replacement | C32: 22.2 | D32: Single Family | E32: HVAC | G32: per ton | H32: 267 | I32: =ROUND((AN32*AH32*(1/W32-1/T32))/1000,4) -> 301.0455 | J32: IL TRM v5 | K32: 0.4079207317 | L32: 0.68 | M32: IL TRM v5 | N32: =ROUND(((AH32*((1/AK32)-(1/AE32)))/1000)*L32,4) -> 0.2277 | P32: 738 | Q32: EFLHcool, from 2017 MO TRM | R32: 6 | S32: SEER | T32: 15.15 | U32: per PY2016 Metadata | V32: SEER | W32: 10 | X32: SEERexist per IL TRM V6 | Y32: =cellformula(I32) -> =ROUND((AN32*AH32*(1/W32-1/T32))/1000,4) | Z32: =cellformula(N32) -> =ROUND(((AH32*((1/AK32)-(1/AE32)))/1000)*L32,4) | AA32: 2019-04-01 | AE32: 12.37755 | AF32: EERee | AG32: PY2016 evaluation metadata | AH32: 12000 | AI32: Allows for Capacity input in Tons; converts tons to BTUs | AK32: 9.2 | AL32: EERexist | AM32: IL TRM V6 | AN32: 738 | AO32: EFLHcool | AP32: 2017 MO TRM | AQ32: 1376 | AR32: EFLHheat | AS32: The EFLH Cooling and Heating hours are based on a EnergyStar study that was normalized (based on HDD and CDD) to Kansas City. This was for both AC and HP units.
A33: Whole House Efficiency | B33: CAC SEER 15 - Early Replacement (future) | C33: 23.1 | D33: Single Family | E33: HVAC | G33: per ton | H33: 267 | I33: =ROUND((AT33*AH33*(1/AN33-1/T33))/1000,4) -> 128.6398 | J33: IL TRM v5 | K33: 0.1309977597 | L33: 0.68 | M33: IL TRM v5 | N33: =ROUND(((AH33*((1/AQ33)-(1/AE33)))/1000)*L33,4) -> 0.0693 | O33: IL TRM V5 | P33: 982 | Q33: EFLHcool, from PY2016 analysis | R33: 12 | S33: SEER | T33: 15.15 | U33: per PY2016 Metadata | V33: SEER | W33: 10 | X33: SEERexist per IL TRM v5 | Y33: =ROUND((AT33*AH33*(1/AN33-1/T33))/1000,4) | Z33: =ROUND(((AH33*((1/AQ33)-(1/AE33)))/1000)*L33,4) | AA33: 2018-04-01 | AB33: 2019-03-31 | AE33: 12.37755 | AF33: EERee | AG33: PY2016 evaluation metadata | AH33: 12000 | AI33: Allows for Capacity input in Tons; converts tons to BTUs | AK33: 6.001068314 | AL33: EERexist | AM33: Early Replacement: 2015 Tracking Data Analysis | AN33: 13 | AO33: SEERbase | AP33: IL TRM V5 | AQ33: 11.2 | AR33: EERbase | AS33: IL TRM V5 | AT33: 982 | AU33: EFLHcool | AV33: The EFLH Cooling and Heating hours are based on a EnergyStar study that was normalized (based on HDD and CDD) to Kansas City. This was for both AC and HP units. | AW33: 1376 | AX33: EFLHheat | AY33: The EFLH Cooling and Heating hours are based on a EnergyStar study that was normalized (based on HDD and CDD) to Kansas City. This was for both AC and HP units.
A34: Whole House Efficiency | B34: CAC SEER 15 - Early Replacement (future) | C34: 23.2 | D34: Single Family | E34: HVAC | G34: per ton | H34: 267 | I34: =ROUND((AT34*AH34*(1/AN34-1/T34))/1000,4) -> 96.6763 | J34: IL TRM v5 | K34: 0.1309976965 | L34: 0.68 | M34: IL TRM v5 | N34: =ROUND(((AH34*((1/AQ34)-(1/AE34)))/1000)*L34,4) -> 0.0693 | O34: IL TRM V5 | P34: 738 | Q34: EFLHcool, from 2017 MO TRM | R34: 12 | S34: SEER | T34: 15.15 | U34: per PY2016 Metadata | V34: =AO34 -> SEERbase | W34: =AN34 -> 13 | X34: =AP34 -> IL TRM V6 | Y34: =cellformula(I34) -> =ROUND((AT34*AH34*(1/AN34-1/T34))/1000,4) | Z34: =cellformula(N34) -> =ROUND(((AH34*((1/AQ34)-(1/AE34)))/1000)*L34,4) | AA34: 2019-04-01 | AE34: 12.37755 | AF34: EERee | AG34: PY2016 evaluation metadata | AH34: 12000 | AI34: Allows for Capacity input in Tons; converts tons to BTUs | AN34: 13 | AO34: SEERbase | AP34: IL TRM V6 | AQ34: 11.2 | AR34: EERbase | AS34: IL TRM V6 | AT34: 738 | AU34: EFLHcool | AV34: 2017 MO TRM | AW34: 1376 | AX34: EFLHheat | AY34: The EFLH Cooling and Heating hours are based on a EnergyStar study that was normalized (based on HDD and CDD) to Kansas City. This was for both AC and HP units.
A35: Whole House Efficiency | B35: CAC SEER 16 | C35: 24.1 | D35: Single Family | E35: HVAC | G35: per ton | H35: 357 | I35: =ROUND((AN35*AH35*(1/W35-1/T35))/1000,4) -> 192.2797 | J35: IL TRM v5 | K35: 0.1958041752 | L35: 0.68 | M35: IL TRM v5 | N35: =ROUND(((AH35*((1/AK35)-(1/AE35)))/1000)*L35,4) -> 0.1026 | P35: 982 | Q35: EFLHcool, from PY2016 analysis | R35: 18 | S35: SEER | T35: 16.5 | U35: per PY2016 Metadata | V35: SEER | W35: 13 | X35: IL TRM v5 | Y35: =ROUND((AN35*AH35*(1/W35-1/T35))/1000,4) | Z35: =ROUND(((AH35*((1/AK35)-(1/AE35)))/1000)*L35,4) | AA35: 2018-04-01 | AB35: 2019-03-31 | AE35: 13.035 | AF35: EERee | AG35: IL TRMv5 | AH35: 12000 | AI35: Allows for Capacity input in Tons; converts tons to BTUs | AK35: 11.2 | AL35: EERbase | AM35: IL TRMv5, Early Replacement | AN35: 982 | AO35: EFLHcool | AP35: The EFLH Cooling and Heating hours are based on a EnergyStar study that was normalized (based on HDD and CDD) to Kansas City. This was for both AC and HP units. | AQ35: 1376 | AR35: EFLHheat | AS35: The EFLH Cooling and Heating hours are based on a EnergyStar study that was normalized (based on HDD and CDD) to Kansas City. This was for both AC and HP units.
A36: Whole House Efficiency | B36: CAC SEER 16 | C36: 24.2 | D36: Single Family | E36: HVAC | G36: per ton | H36: 357 | I36: =ROUND((AN36*AH36*(1/W36-1/T36))/1000,4) -> 144.5035 | J36: IL TRM v5 | K36: 0.1958042005 | L36: 0.68 | M36: IL TRM v5 | N36: =ROUND(((AH36*((1/AK36)-(1/AE36)))/1000)*L36,4) -> 0.1026 | P36: 738 | Q36: EFLHcool, from 2017 MO TRM | R36: 18 | S36: SEER | T36: 16.5 | U36: per PY2016 Metadata | V36: SEER | W36: 13 | X36: IL TRM v6 | Y36: =cellformula(I36) -> =ROUND((AN36*AH36*(1/W36-1/T36))/1000,4) | Z36: =cellformula(N36) -> =ROUND(((AH36*((1/AK36)-(1/AE36)))/1000)*L36,4) | AA36: 2019-04-01 | AE36: 13.035 | AF36: EERee | AG36: IL TRMv5 | AH36: 12000 | AI36: Allows for Capacity input in Tons; converts tons to BTUs | AK36: 11.2 | AL36: EERbase | AM36: IL TRMv5, Early Replacement | AN36: 738 | AO36: EFLHcool | AP36: 2017 MO TRM | AQ36: 1376 | AR36: EFLHheat | AS36: The EFLH Cooling and Heating hours are based on a EnergyStar study that was normalized (based on HDD and CDD) to Kansas City. This was for both AC and HP units.
A37: Whole House Efficiency | B37: CAC SEER 16 - Early Replacement | C37: 25.1 | D37: Single Family | E37: HVAC | G37: per ton | H37: 418 | I37: =ROUND((AN37*AH37*(1/W37-1/T37))/1000,4) -> 1002.3982 | J37: IL TRM v5 | K37: 1.020772098 | L37: 0.68 | M37: IL TRM v5 | N37: =ROUND(((AH37*((1/AK37)-(1/AE37)))/1000)*L37,4) -> 0.7344 | P37: 982 | Q37: EFLHcool, from PY2016 analysis | R37: 6 | S37: SEER | T37: 16.53 | U37: per PY2016 Metadata | V37: SEER | W37: 6.87 | X37: per PY2015 report | Y37: =ROUND((AN37*AH37*(1/W37-1/T37))/1000,4) | Z37: =ROUND(((AH37*((1/AK37)-(1/AE37)))/1000)*L37,4) | AA37: 2018-04-01 | AB37: 2019-03-31 | AE37: 13.048782 | AF37: EERee | AG37: PY2016 evaluation metadata | AH37: 12000 | AI37: Allows for Capacity input in Tons; converts tons to BTUs | AK37: 6.001068314 | AL37: EERbase | AM37: Early Replacement: 2015 Tracking Data Analysis | AN37: 982 | AO37: EFLHcool | AP37: The EFLH Cooling and Heating hours are based on a EnergyStar study that was normalized (based on HDD and CDD) to Kansas City. This was for both AC and HP units. | AQ37: 1376 | AR37: EFLHheat | AS37: The EFLH Cooling and Heating hours are based on a EnergyStar study that was normalized (based on HDD and CDD) to Kansas City. This was for both AC and HP units.
A38: Whole House Efficiency | B38: CAC SEER 16 - Early Replacement | C38: 25.2 | D38: Single Family | E38: HVAC | G38: per ton | H38: 418 | I38: =ROUND((AN38*AH38*(1/W38-1/T38))/1000,4) -> 349.8468 | J38: IL TRM v5 | K38: 0.4740471545 | L38: 0.68 | M38: IL TRM v5 | N38: =ROUND(((AH38*((1/AK38)-(1/AE38)))/1000)*L38,4) -> 0.2616 | P38: 738 | Q38: EFLHcool, from 2017 MO TRM | R38: 6 | S38: SEER | T38: 16.53 | U38: per PY2016 Metadata | V38: SEER | W38: 10 | X38: SEERexist per IL TRM V6 | Y38: =cellformula(I38) -> =ROUND((AN38*AH38*(1/W38-1/T38))/1000,4) | Z38: =cellformula(N38) -> =ROUND(((AH38*((1/AK38)-(1/AE38)))/1000)*L38,4) | AA38: 2019-04-01 | AE38: 13.048782 | AF38: EERee | AG38: PY2016 evaluation metadata | AH38: 12000 | AI38: Allows for Capacity input in Tons; converts tons to BTUs | AK38: 9.2 | AL38: EERexist | AM38: IL TRM V6 | AN38: 738 | AO38: EFLHcool | AP38: 2017 MO TRM | AQ38: 1376 | AR38: EFLHheat | AS38: The EFLH Cooling and Heating hours are based on a EnergyStar study that was normalized (based on HDD and CDD) to Kansas City. This was for both AC and HP units.
A39: Whole House Efficiency | B39: CAC SEER 16 - Early Replacement (future) | C39: 26.1 | D39: Single Family | E39: HVAC | G39: per ton | H39: 418 | I39: =ROUND((AT39*AH39*(1/AN39-1/T39))/1000,4) -> 193.5759 | J39: IL TRM v5 | K39: 0.1971241344 | L39: 0.68 | M39: IL TRM v5 | N39: =ROUND(((AH39*((1/AQ39)-(1/AE39)))/1000)*L39,4) -> 0.1032 | O39: IL TRM V5 | P39: 982 | Q39: EFLHcool, from PY2016 analysis (Normalized EnergyStar KC Cooling Hours to IL TRM CDD) | R39: 12 | S39: SEER | T39: 16.53 | U39: per PY2016 Metadata | V39: SEER | W39: 10 | X39: SEERexist per IL TRM v5 | Y39: =ROUND((AT39*AH39*(1/AN39-1/T39))/1000,4) | Z39: =ROUND(((AH39*((1/AQ39)-(1/AE39)))/1000)*L39,4) | AA39: 2018-04-01 | AB39: 2019-03-31 | AE39: 13.048782 | AF39: EERee | AG39: PY2016 evaluation metadata | AH39: 12000 | AI39: Allows for Capacity input in Tons; converts tons to BTUs | AK39: 6.001068314 | AL39: EERexist | AM39: Early Replacement: 2015 Tracking Data Analysis | AN39: 13 | AO39: SEERbase | AP39: IL TRM V5 | AQ39: 11.2 | AR39: EERbase | AS39: IL TRM V5 | AT39: 982 | AU39: EFLHcool | AV39: The EFLH Cooling and Heating hours are based on a EnergyStar study that was normalized (based on HDD and CDD) to Kansas City. This was for both AC and HP units. | AW39: 1376 | AX39: EFLHheat | AY39: The EFLH Cooling and Heating hours are based on a EnergyStar study that was normalized (based on HDD and CDD) to Kansas City. This was for both AC and HP units.
A40: Whole House Efficiency | B40: CAC SEER 16 - Early Replacement (future) | C40: 26.2 | D40: Single Family | E40: HVAC | G40: per ton | H40: 418 | I40: =ROUND((AT40*AH40*(1/AN40-1/T40))/1000,4) -> 145.4776 | J40: IL TRM v5 | K40: 0.1971241192 | L40: 0.68 | M40: IL TRM v5 | N40: =ROUND(((AH40*((1/AQ40)-(1/AE40)))/1000)*L40,4) -> 0.1032 | O40: IL TRM V5 | P40: 738 | Q40: EFLHcool, from 2017 MO TRM | R40: 12 | S40: SEER | T40: 16.53 | U40: per PY2016 Metadata | V40: =AO40 -> SEERbase | W40: =AN40 -> 13 | X40: =AP40 -> IL TRM V6 | Y40: =cellformula(I40) -> =ROUND((AT40*AH40*(1/AN40-1/T40))/1000,4) | Z40: =cellformula(N40) -> =ROUND(((AH40*((1/AQ40)-(1/AE40)))/1000)*L40,4) | AA40: 2019-04-01 | AE40: 13.048782 | AF40: EERee | AG40: PY2016 evaluation metadata | AH40: 12000 | AI40: Allows for Capacity input in Tons; converts tons to BTUs | AN40: 13 | AO40: SEERbase | AP40: IL TRM V6 | AQ40: 11.2 | AR40: EERbase | AS40: IL TRM V6 | AT40: 738 | AU40: EFLHcool | AV40: 2017 MO TRM | AW40: 1376 | AX40: EFLHheat | AY40: The EFLH Cooling and Heating hours are based on a EnergyStar study that was normalized (based on HDD and CDD) to Kansas City. This was for both AC and HP units.
A41: Whole House Efficiency | B41: CAC SEER 17 | C41: 27.1 | D41: Single Family | E41: HVAC | G41: per ton | H41: 368.51 | I41: =ROUND((AN41*AH41*(1/W41-1/T41))/1000,4) -> 213.2851 | J41: IL TRM v5 | K41: 0.2171946029 | L41: 0.68 | M41: IL TRM v5 | N41: =ROUND(((AH41*((1/AK41)-(1/AE41)))/1000)*L41,4) -> 0.1132 | P41: 982 | Q41: EFLHcool, from PY2016 analysis | R41: 18 | S41: SEER | T41: 17 | U41: No PY2016 participants | V41: SEER | W41: 13 | X41: IL TRM v5 | Y41: =ROUND((AN41*AH41*(1/W41-1/T41))/1000,4) | Z41: =ROUND(((AH41*((1/AK41)-(1/AE41)))/1000)*L41,4) | AA41: 2018-04-01 | AB41: 2019-03-31 | AE41: 13.26 | AF41: EERee | AG41: IL TRMv5 | AH41: 12000 | AI41: Allows for Capacity input in Tons; converts tons to BTUs | AK41: 11.2 | AL41: EERbase | AM41: IL TRMv5, Early Replacement | AN41: 982 | AO41: EFLHcool | AP41: The EFLH Cooling and Heating hours are based on a EnergyStar study that was normalized (based on HDD and CDD) to Kansas City. This was for both AC and HP units. | AQ41: 1376 | AR41: EFLHheat | AS41: The EFLH Cooling and Heating hours are based on a EnergyStar study that was normalized (based on HDD and CDD) to Kansas City. This was for both AC and HP units.
A42: Whole House Efficiency | B42: CAC SEER 17 | C42: 27.2 | D42: Single Family | E42: HVAC | G42: per ton | H42: 368.51 | I42: =ROUND((AN42*AH42*(1/W42-1/T42))/1000,4) -> 160.2896 | J42: IL TRM v5 | K42: 0.2171945799 | L42: 0.68 | M42: IL TRM v5 | N42: =ROUND(((AH42*((1/AK42)-(1/AE42)))/1000)*L42,4) -> 0.1132 | P42: 738 | Q42: EFLHcool, from 2017 MO TRM | R42: 18 | S42: SEER | T42: 17 | U42: No PY2016 participants | V42: SEER | W42: 13 | X42: IL TRM v6 | Y42: =cellformula(I42) -> =ROUND((AN42*AH42*(1/W42-1/T42))/1000,4) | Z42: =cellformula(N42) -> =ROUND(((AH42*((1/AK42)-(1/AE42)))/1000)*L42,4) | AA42: 2019-04-01 | AE42: 13.26 | AF42: EERee | AG42: IL TRMv5 | AH42: 12000 | AI42: Allows for Capacity input in Tons; converts tons to BTUs | AK42: 11.2 | AL42: EERbase | AM42: IL TRMv5, Early Replacement | AN42: 738 | AO42: EFLHcool | AP42: 2017 MO TRM | AQ42: 1376 | AR42: EFLHheat | AS42: The EFLH Cooling and Heating hours are based on a EnergyStar study that was normalized (based on HDD and CDD) to Kansas City. This was for both AC and HP units.
A43: Whole House Efficiency | B43: CAC SEER 17 - Early Replacement | C43: 28.1 | D43: Single Family | E43: HVAC | G43: per ton | H43: 791.34 | I43: =ROUND((AN43*AH43*(1/W43-1/T43))/1000,4) -> 1022.1074 | J43: IL TRM v5 | K43: 1.040842566 | L43: 0.68 | M43: IL TRM v5 | N43: =ROUND(((AH43*((1/AK43)-(1/AE43)))/1000)*L43,4) -> 0.7444 | P43: 982 | Q43: EFLHcool, from PY2016 analysis | R43: 6 | S43: SEER | T43: 17 | U43: No PY2016 participants | V43: SEER | W43: 6.87 | X43: per PY2015 report | Y43: =ROUND((AN43*AH43*(1/W43-1/T43))/1000,4) | Z43: =ROUND(((AH43*((1/AK43)-(1/AE43)))/1000)*L43,4) | AA43: 2018-04-01 | AB43: 2019-03-31 | AE43: 13.26 | AF43: EERee | AG43: IL TRMv5 | AH43: 12000 | AI43: Allows for Capacity input in Tons; converts tons to BTUs | AK43: 6.001068314 | AL43: EERbase | AM43: Early Replacement: 2015 Tracking Data Analysis | AN43: 982 | AO43: EFLHcool | AP43: The EFLH Cooling and Heating hours are based on a EnergyStar study that was normalized (based on HDD and CDD) to Kansas City. This was for both AC and HP units. | AQ43: 1376 | AR43: EFLHheat | AS43: The EFLH Cooling and Heating hours are based on a EnergyStar study that was normalized (based on HDD and CDD) to Kansas City. This was for both AC and HP units.
A44: Whole House Efficiency | B44: CAC SEER 17 - Early Replacement | C44: 28.2 | D44: Single Family | E44: HVAC | G44: per ton | H44: 791.34 | I44: =ROUND((AN44*AH44*(1/W44-1/T44))/1000,4) -> 364.6588 | J44: IL TRM v5 | K44: 0.4941176152 | L44: 0.68 | M44: IL TRM v5 | N44: =ROUND(((AH44*((1/AK44)-(1/AE44)))/1000)*L44,4) -> 0.2716 | P44: 738 | Q44: EFLHcool, from 2017 MO TRM | R44: 6 | S44: SEER | T44: 17 | U44: No PY2016 participants | V44: SEER | W44: 10 | X44: SEERexist per IL TRM V6 | Y44: =cellformula(I44) -> =ROUND((AN44*AH44*(1/W44-1/T44))/1000,4) | Z44: =cellformula(N44) -> =ROUND(((AH44*((1/AK44)-(1/AE44)))/1000)*L44,4) | AA44: 2019-04-01 | AE44: 13.26 | AF44: EERee | AG44: IL TRMv5 | AH44: 12000 | AI44: Allows for Capacity input in Tons; converts tons to BTUs | AK44: 9.2 | AL44: EERexist | AM44: IL TRM V6 | AN44: 738 | AO44: EFLHcool | AP44: 2017 MO TRM | AQ44: 1376 | AR44: EFLHheat | AS44: The EFLH Cooling and Heating hours are based on a EnergyStar study that was normalized (based on HDD and CDD) to Kansas City. This was for both AC and HP units.
A45: Whole House Efficiency | B45: CAC SEER 17 - Early Replacement (future) | C45: 29.1 | D45: Single Family | E45: HVAC | G45: per ton | H45: 422.84 | I45: =ROUND((AT45*AH45*(1/AN45-1/T45))/1000,4) -> 213.2851 | J45: IL TRM v5 | K45: 0.2171946029 | L45: 0.68 | M45: IL TRM v5 | N45: =ROUND(((AH45*((1/AQ45)-(1/AE45)))/1000)*L45,4) -> 0.1132 | O45: IL TRM V5 | P45: 982 | Q45: EFLHcool, from PY2016 analysis (Normalized EnergyStar KC Cooling Hours to IL TRM CDD) | R45: 12 | S45: SEER | T45: 17 | U45: No PY2016 participants | V45: SEER | W45: 10 | X45: SEERexist per IL TRM v5 | Y45: =ROUND((AT45*AH45*(1/AN45-1/T45))/1000,4) | Z45: =ROUND(((AH45*((1/AQ45)-(1/AE45)))/1000)*L45,4) | AA45: 2018-04-01 | AB45: 2019-03-31 | AE45: 13.26 | AF45: EERee | AG45: IL TRMv5 | AH45: 12000 | AI45: Allows for Capacity input in Tons; converts tons to BTUs | AK45: 6.001068314 | AL45: EERexist | AM45: Early Replacement: 2015 Tracking Data Analysis | AN45: 13 | AO45: SEERbase | AP45: IL TRM V5 | AQ45: 11.2 | AR45: EERbase | AS45: IL TRM V5 | AT45: 982 | AU45: EFLHcool | AV45: The EFLH Cooling and Heating hours are based on a EnergyStar study that was normalized (based on HDD and CDD) to Kansas City. This was for both AC and HP units. | AW45: 1376 | AX45: EFLHheat | AY45: The EFLH Cooling and Heating hours are based on a EnergyStar study that was normalized (based on HDD and CDD) to Kansas City. This was for both AC and HP units.
A46: Whole House Efficiency | B46: CAC SEER 17 - Early Replacement (future) | C46: 29.2 | D46: Single Family | E46: HVAC | G46: per ton | H46: 422.84 | I46: =ROUND((AT46*AH46*(1/AN46-1/T46))/1000,4) -> 160.2896 | J46: IL TRM v5 | K46: 0.2171945799 | L46: 0.68 | M46: IL TRM v5 | N46: =ROUND(((AH46*((1/AQ46)-(1/AE46)))/1000)*L46,4) -> 0.1132 | O46: IL TRM V5 | P46: 738 | Q46: EFLHcool, from 2017 MO TRM | R46: 12 | S46: SEER | T46: 17 | U46: No PY2016 participants | V46: =AO46 -> SEERbase | W46: =AN46 -> 13 | X46: =AP46 -> IL TRM V6 | Y46: =cellformula(I46) -> =ROUND((AT46*AH46*(1/AN46-1/T46))/1000,4) | Z46: =cellformula(N46) -> =ROUND(((AH46*((1/AQ46)-(1/AE46)))/1000)*L46,4) | AA46: 2019-04-01 | AE46: 13.26 | AF46: EERee | AG46: IL TRMv5 | AH46: 12000 | AI46: Allows for Capacity input in Tons; converts tons to BTUs | AN46: 13 | AO46: SEERbase | AP46: IL TRM V6 | AQ46: 11.2 | AR46: EERbase | AS46: IL TRM V6 | AT46: 738 | AU46: EFLHcool | AV46: 2017 MO TRM | AW46: 1376 | AX46: EFLHheat | AY46: The EFLH Cooling and Heating hours are based on a EnergyStar study that was normalized (based on HDD and CDD) to Kansas City. This was for both AC and HP units.
A47: Whole House Efficiency | B47: ASHP SEER 15 | C47: 30.1 | D47: Single Family | E47: HVAC | G47: per ton | H47: 137 | I47: =ROUND((AT47*AE47*(1/W47-1/T47))/1000+(AW47*AE47*(1/AK47-1/AH47)/1000),4) -> 146.0447 | J47: IL TRM v5 | K47: 0.1487216904 | L47: 0.72 | M47: IL TRM v5 | N47: =ROUND((AE47*(1/AQ47-1/AN47)/1000)*L47,4) -> 0.041 | P47: 982 | Q47: EFLHcool, from PY2016 analysis | R47: 18 | S47: SEER | T47: 15 | U47: per PY2016 Metadata | V47: SEER | W47: 14 | X47: IL TRM v5 | Y47: =ROUND((AT47*AE47*(1/W47-1/T47))/1000+(AW47*AE47*(1/AK47-1/AH47)/1000),4) | Z47: =ROUND((AE47*(1/AQ47-1/AN47)/1000)*L47,4) | AA47: 2018-04-01 | AB47: 2019-03-31 | AE47: 12000 | AF47: Allows for Capacity input in Tons; converts tons to BTUs | AH47: 8.583333333 | AI47: HSPFee | AJ47: Calculated per PY2016 Metadata | AK47: 8.2 | AL47: HSPFbase | AM47: Illinois TRM | AN47: 12.5 | AO47: EERee | AP47: Calculated per PY2016 Metadata | AQ47: 11.8 | AR47: EERbase | AS47: Illinois TRM | AT47: 982 | AU47: EFLHcool | AV47: The EFLH Cooling and Heating hours are based on a EnergyStar study that was normalized (based on HDD and CDD) to Kansas City. This was for both AC and HP units. | AW47: 1376 | AX47: EFLHheat | AY47: The EFLH Cooling and Heating hours are based on a EnergyStar study that was normalized (based on HDD and CDD) to Kansas City. This was for both AC and HP units.
A48: Whole House Efficiency | B48: ASHP SEER 15 | C48: 30.2 | D48: Single Family | E48: HVAC | G48: per ton | H48: 137 | I48: =ROUND((AT48*AE48*(1/W48-1/T48))/1000+(AW48*AE48*(1/AK48-1/AH48)/1000),4) -> 132.1018 | J48: IL TRM v5 | K48: 0.178999729 | L48: 0.72 | M48: IL TRM v5 | N48: =ROUND((AE48*(1/AQ48-1/AN48)/1000)*L48,4) -> 0.041 | P48: 738 | Q48: EFLHcool, from 2017 MO TRM | R48: 18 | S48: SEER | T48: 15 | U48: per PY2016 Metadata | V48: SEER | W48: 14 | X48: IL TRM v5 | Y48: =cellformula(I48) -> =ROUND((AT48*AE48*(1/W48-1/T48))/1000+(AW48*AE48*(1/AK48-1/AH48)/1000),4) | Z48: =cellformula(N48) -> =ROUND((AE48*(1/AQ48-1/AN48)/1000)*L48,4) | AA48: 2019-04-01 | AE48: 12000 | AF48: Allows for Capacity input in Tons; converts tons to BTUs | AH48: 8.583333333 | AI48: HSPFee | AJ48: Calculated per PY2016 Metadata | AK48: 8.2 | AL48: HSPFbase | AM48: Illinois TRM | AN48: 12.5 | AO48: EERee | AP48: Calculated per PY2016 Metadata | AQ48: 11.8 | AR48: EERbase | AS48: Illinois TRM | AT48: 738 | AU48: EFLHcool | AV48: 2017 MO TRM | AW48: 1376 | AX48: EFLHheat | AY48: The EFLH Cooling and Heating hours are based on a EnergyStar study that was normalized (based on HDD and CDD) to Kansas City. This was for both AC and HP units.
A49: Whole House Efficiency | B49: ASHP SEER 15 - Early Replacement | C49: 31.1 | D49: Single Family | E49: HVAC | G49: per ton | H49: 317 | I49: =ROUND((AT49*AE49*(1/W49-1/T49))/1000+(AW49*AE49*(1/AK49-1/AH49)/1000),4) -> 2078.4959 | J49: IL TRM v5 | K49: 2.116594603 | L49: 0.72 | M49: IL TRM v5 | N49: =ROUND((AE49*(1/AQ49-1/AN49)/1000)*L49,4) -> 0.5979 | P49: 982 | Q49: EFLHcool, from PY2016 analysis | R49: 6 | S49: SEER | T49: 15.17 | U49: per PY2016 Metadata | V49: SEER | W49: 6.87 | X49: per PY2015 report | Y49: =ROUND((AT49*AE49*(1/W49-1/T49))/1000+(AW49*AE49*(1/AK49-1/AH49)/1000),4) | Z49: =ROUND((AE49*(1/AQ49-1/AN49)/1000)*L49,4) | AA49: 2018-04-01 | AB49: 2019-03-31 | AE49: 12000 | AF49: Allows for Capacity input in Tons; converts tons to BTUs | AH49: 8.712142857 | AI49: HSPFee | AJ49: Calculated per PY2016 Metadata | AK49: 5.44 | AL49: HSPFbase | AM49: Illinois TRM | AN49: 12.51818182 | AO49: EERee | AP49: Calculated per PY2016 Metadata | AQ49: 6.70764 | AR49: EERbase | AS49: 2015 Tracking Data Analysis for GMO | AT49: 982 | AU49: EFLHcool | AV49: The EFLH Cooling and Heating hours are based on a EnergyStar study that was normalized (based on HDD and CDD) to Kansas City. This was for both AC and HP units. | AW49: 1376 | AX49: EFLHheat | AY49: The EFLH Cooling and Heating hours are based on a EnergyStar study that was normalized (based on HDD and CDD) to Kansas City. This was for both AC and HP units.
A50: Whole House Efficiency | B50: ASHP SEER 15 - Early Replacement | C50: 31.2 | D50: Single Family | E50: HVAC | G50: per ton | H50: 317 | I50: =ROUND((AT50*AE50*(1/W50-1/T50))/1000+(AW50*AE50*(1/AK50-1/AH50)/1000),4) -> 1527.2772 | J50: IL TRM v5 | K50: 2.069481301 | L50: 0.72 | M50: IL TRM v5 | N50: =ROUND((AE50*(1/AQ50-1/AN50)/1000)*L50,4) -> 0.3627 | P50: 738 | Q50: EFLHcool, from 2017 MO TRM | R50: 6 | S50: SEER | T50: 15.17 | U50: per PY2016 Metadata | V50: SEER | W50: 9.12 | X50: SEERexist per IL TRM V6 assumes ASHP replacement | Y50: =cellformula(I50) -> =ROUND((AT50*AE50*(1/W50-1/T50))/1000+(AW50*AE50*(1/AK50-1/AH50)/1000),4) | Z50: =cellformula(N50) -> =ROUND((AE50*(1/AQ50-1/AN50)/1000)*L50,4) | AA50: 2019-04-01 | AE50: 12000 | AF50: Allows for Capacity input in Tons; converts tons to BTUs | AH50: 8.712142857 | AI50: HSPFee | AJ50: Calculated per PY2016 Metadata | AK50: 5.44 | AL50: HSPFbase | AM50: Illinois TRM | AN50: =(-0.02*T50^2)+(1.12*T50) -> 12.387822 | AO50: EERee | AP50: Based on SEER value of efficient equipment | AQ50: 8.15 | AR50: EERexist | AS50: IL TRM V6 | AT50: 738 | AU50: EFLHcool | AV50: 2017 MO TRM | AW50: 1376 | AX50: EFLHheat | AY50: The EFLH Cooling and Heating hours are based on a EnergyStar study that was normalized (based on HDD and CDD) to Kansas City. This was for both AC and HP units.
A51: Whole House Efficiency | B51: ASHP SEER 15 - Early Replacement (future) | C51: 32.1 | D51: Single Family | E51: HVAC | G51: per ton | H51: 317 | I51: =ROUND((BC51*AE51*(1/AT51-1/T51))/1000+(BF51*AE51*(1/AZ51-1/AH51)/1000),4) -> 183.2908 | J51: IL TRM v5 | K51: 0.1866505092 | L51: 0.72 | M51: IL TRM v5 | N51: =ROUND((AE51*(1/AW51-1/AN51)/1000)*L51,4) -> 0.3203 | O51: IL TRM V5 | P51: 982 | Q51: EFLHcool, from PY2016 analysis (Normalized EnergyStar KC Cooling Hours to IL TRM CDD) | R51: 12 | S51: SEER | T51: 15.17 | U51: per PY2016 Metadata | V51: SEER | W51: 9.12 | X51: SEERexist per IL TRM v5 | Y51: =ROUND((BC51*AE51*(1/AT51-1/T51))/1000+(BF51*AE51*(1/AZ51-1/AH51)/1000),4) | Z51: =ROUND((AE51*(1/AW51-1/AN51)/1000)*L51,4) | AA51: 2018-04-01 | AB51: 2019-03-31 | AE51: 12000 | AF51: Allows for Capacity input in Tons; converts tons to BTUs | AH51: 8.712142857 | AI51: HSPFee | AJ51: Calculated per PY2016 Metadata | AK51: 5.44 | AL51: HSPFexist | AM51: Illinois TRM | AN51: 12.51818182 | AO51: EERee | AP51: Calculated per PY2016 Metadata | AQ51: 6.70764 | AR51: EERexist | AS51: 2015 Tracking Data Analysis for GMO | AT51: 14 | AU51: SEERbase | AV51: IL TRM V5 | AW51: 8.55 | AX51: EERbase | AY51: IL TRM V5 | AZ51: 8.2 | BA51: HSPFbase | BB51: Illinois TRM | BC51: 982 | BD51: EFLHcool | BE51: The EFLH Cooling and Heating hours are based on a EnergyStar study that was normalized (based on HDD and CDD) to Kansas City. This was for both AC and HP units. | BF51: 1376 | BG51: EFLHheat | BH51: The EFLH Cooling and Heating hours are based on a EnergyStar study that was normalized (based on HDD and CDD) to Kansas City. This was for both AC and HP units.
A52: Whole House Efficiency | B52: ASHP SEER 15 - Early Replacement (future) | C52: 32.2 | D52: Single Family | E52: HVAC | G52: per ton | H52: 317 | I52: =ROUND((BC52*AE52*(1/AT52-1/T52))/1000+(BF52*AE52*(1/AZ52-1/AH52)/1000),4) -> 167.1605 | J52: IL TRM v5 | K52: 0.2265047425 | L52: 0.72 | M52: IL TRM v5 | N52: =ROUND((AE52*(1/AW52-1/AN52)/1000)*L52,4) -> 0.0372 | O52: IL TRM V5 | P52: 738 | Q52: EFLHcool, from 2017 MO TRM | R52: 12 | S52: SEER | T52: 15.17 | U52: per PY2016 Metadata | V52: =AU52 -> SEERbase | W52: =AT52 -> 14 | X52: =AV52 -> IL TRM V6 | Y52: =cellformula(I52) -> =ROUND((BC52*AE52*(1/AT52-1/T52))/1000+(BF52*AE52*(1/AZ52-1/AH52)/1000),4) | Z52: =cellformula(N52) -> =ROUND((AE52*(1/AW52-1/AN52)/1000)*L52,4) | AA52: 2019-04-01 | AE52: 12000 | AF52: Allows for Capacity input in Tons; converts tons to BTUs | AH52: 8.712142857 | AI52: HSPFee | AJ52: Calculated per PY2016 Metadata | AK52: 5.44 | AL52: HSPFexist | AM52: Illinois TRM | AN52: =(-0.02*T52^2)+(1.12*T52) -> 12.387822 | AO52: EERee | AP52: Based on SEER value of efficient equipment | AT52: 14 | AU52: SEERbase | AV52: IL TRM V6 | AW52: =(-0.02*AT52^2)+(1.12*AT52) -> 11.76 | AX52: EERbase | AY52: Based on SEER base | AZ52: 8.2 | BA52: HSPFbase | BB52: Illinois TRM | BC52: 738 | BD52: EFLHcool | BE52: 2017 MO TRM | BF52: 1376 | BG52: EFLHheat | BH52: The EFLH Cooling and Heating hours are based on a EnergyStar study that was normalized (based on HDD and CDD) to Kansas City. This was for both AC and HP units.
A53: Whole House Efficiency | B53: ASHP SEER 15 - Replace Electric Resistance Heat | C53: 33.1 | D53: Single Family | E53: HVAC | G53: per ton | H53: 137 | I53: =ROUND((AT53*AE53*(1/W53-1/T53))/1000+(AW53*AE53*(1/AK53-1/AH53)/1000),4) -> 217.7936 | J53: IL TRM v5 | K53: 0.2217857434 | L53: 0.72 | M53: IL TRM v5 | N53: =ROUND((AE53*(1/AQ53-1/AN53)/1000)*L53,4) -> 0.0546 | P53: 982 | Q53: EFLHcool, from PY2016 analysis | R53: 18 | S53: SEER | T53: 15.17 | U53: per PY2016 Metadata | V53: SEERbase | W53: 14 | X53: IL TRM v5 | Y53: =ROUND((AT53*AE53*(1/W53-1/T53))/1000+(AW53*AE53*(1/AK53-1/AH53)/1000),4) | Z53: =ROUND((AE53*(1/AQ53-1/AN53)/1000)*L53,4) | AA53: 2018-04-01 | AB53: 2019-03-31 | AE53: 12000 | AF53: Allows for Capacity input in Tons; converts tons to BTUs | AH53: 8.873684211 | AI53: HSPFee | AJ53: Calculated per PY2016 Metadata | AK53: 8.2 | AL53: HSPFbase | AM53: Illinois TRM | AN53: 12.75 | AO53: EERee | AP53: Calculated per PY2016 Metadata | AQ53: 11.8 | AR53: EERbase | AS53: Illinois TRM | AT53: 982 | AU53: EFLHcool | AV53: The EFLH Cooling and Heating hours are based on a EnergyStar study that was normalized (based on HDD and CDD) to Kansas City. This was for both AC and HP units. | AW53: 1376 | AX53: EFLHheat | AY53: The EFLH Cooling and Heating hours are based on a EnergyStar study that was normalized (based on HDD and CDD) to Kansas City. This was for both AC and HP units.
A54: Whole House Efficiency | B54: ASHP SEER 15 - Replace Electric Resistance Heat | C54: 33.2 | D54: Single Family | E54: HVAC | G54: per ton | H54: 137 | I54: =ROUND((AT54*AE54*(1/W54-1/T54))/1000+(AW54*AE54*(1/AK54-1/AH54)/1000),4) -> 201.6633 | J54: IL TRM v5 | K54: 0.2732565041 | L54: 0.72 | M54: IL TRM v5 | N54: =ROUND((AE54*(1/AQ54-1/AN54)/1000)*L54,4) -> 0.0546 | P54: 738 | Q54: EFLHcool, from 2017 MO TRM | R54: 18 | S54: SEER | T54: 15.17 | U54: per PY2016 Metadata | V54: SEERbase | W54: 14 | X54: IL TRM v5 | Y54: =cellformula(I54) -> =ROUND((AT54*AE54*(1/W54-1/T54))/1000+(AW54*AE54*(1/AK54-1/AH54)/1000),4) | Z54: =cellformula(N54) -> =ROUND((AE54*(1/AQ54-1/AN54)/1000)*L54,4) | AA54: 2019-04-01 | AE54: 12000 | AF54: Allows for Capacity input in Tons; converts tons to BTUs | AH54: 8.873684211 | AI54: HSPFee | AJ54: Calculated per PY2016 Metadata | AK54: 8.2 | AL54: HSPFbase | AM54: Illinois TRM | AN54: 12.75 | AO54: EERee | AP54: Calculated per PY2016 Metadata | AQ54: 11.8 | AR54: EERbase | AS54: Illinois TRM | AT54: 738 | AU54: EFLHcool | AV54: 2017 MO TRM | AW54: 1376 | AX54: EFLHheat | AY54: The EFLH Cooling and Heating hours are based on a EnergyStar study that was normalized (based on HDD and CDD) to Kansas City. This was for both AC and HP units.
A55: Whole House Efficiency | B55: ASHP SEER 15 - Replace Electric Resistance Heat - Early Replacement | C55: 314 | D55: Single Family | E55: HVAC | G55: per ton | H55: 1482 | I55: =ROUND((AT55*AE55*(1/W55-1/T55))/1000+(AW55*AE55*(1/AK55-1/AH55)/1000),4) -> 3885.4305 | J55: IL TRM v5 | K55: =I55/P55 -> 3.956650204 | L55: 0.72 | M55: IL TRM v5 | N55: =ROUND((AE55*(1/AQ55-1/AN55)/1000)*L55,4) -> 0.5906 | P55: 982 | Q55: EFLHcool, from PY2016 analysis (Normalized EnergyStar KC Cooling Hours to IL TRM CDD) | R55: 6 | S55: SEER | T55: 15.17 | U55: per PY2016 Metadata | V55: SEER | W55: 6.87 | X55: per PY2015 report | Y55: =cellformula(I55) -> =ROUND((AT55*AE55*(1/W55-1/T55))/1000+(AW55*AE55*(1/AK55-1/AH55)/1000),4) | Z55: =cellformula(N55) -> =ROUND((AE55*(1/AQ55-1/AN55)/1000)*L55,4) | AA55: 2018-04-01 | AB55: 2019-03-31 | AE55: 12000 | AF55: Allows for Capacity input in Tons; converts tons to BTUs | AH55: 8.712142857 | AI55: HSPF_ee | AJ55: Calculated per PY2016 Metadata | AK55: 3.41 | AL55: HSPF_exist | AM55: Illinois TRM | AN55: =(-0.02*T55^2)+(1.12*T55) -> 12.387822 | AO55: EER_ee | AP55: IL TRM V5 | AQ55: 6.70764 | AR55: EERbase | AS55: IL TRM V5 | AT55: 982 | AU55: EFLHcool | AV55: The EFLH Cooling and Heating hours are based on a EnergyStar study that was normalized (based on HDD and CDD) to Kansas City. This was for both AC and HP units. | AW55: 1376 | AX55: EFLHheat | AY55: The EFLH Cooling and Heating hours are based on a EnergyStar study that was normalized (based on HDD and CDD) to Kansas City. This was for both AC and HP units.
A56: Whole House Efficiency | B56: ASHP SEER 15 - Replace Electric Resistance Heat - Early Replacement | C56: 314.1 | D56: Single Family | E56: HVAC | G56: per ton | H56: 1482 | I56: =ROUND((AT56*AE56*(1/W56-1/T56))/1000+(AW56*AE56*(1/AK56-1/AH56)/1000),4) -> 3334.2119 | J56: IL TRM v5 | K56: 4.517902304 | L56: 0.72 | M56: IL TRM v5 | N56: =ROUND((AE56*(1/AQ56-1/AN56)/1000)*L56,4) -> 0.3627 | P56: 738 | Q56: EFLHcool, from 2017 MO TRM | R56: 6 | S56: SEER | T56: 15.17 | U56: per PY2016 Metadata | V56: SEER | W56: 9.12 | X56: SEERexist per IL TRM V6 assumes ASHP replacement | Y56: =cellformula(I56) -> =ROUND((AT56*AE56*(1/W56-1/T56))/1000+(AW56*AE56*(1/AK56-1/AH56)/1000),4) | Z56: =cellformula(N56) -> =ROUND((AE56*(1/AQ56-1/AN56)/1000)*L56,4) | AA56: 2019-04-01 | AE56: 12000 | AF56: Allows for Capacity input in Tons; converts tons to BTUs | AH56: 8.712142857 | AI56: HSPF_ee | AJ56: Calculated per PY2016 Metadata | AK56: 3.41 | AL56: HSPF_exist | AM56: Illinois TRM | AN56: =(-0.02*T56^2)+(1.12*T56) -> 12.387822 | AO56: EER_ee | AP56: Based on SEER value of efficient equipment | AQ56: 8.15 | AR56: EERexist | AS56: IL TRM V6 | AT56: 738 | AU56: EFLHcool | AV56: 2017 MO TRM | AW56: 1376 | AX56: EFLHheat | AY56: The EFLH Cooling and Heating hours are based on a EnergyStar study that was normalized (based on HDD and CDD) to Kansas City. This was for both AC and HP units.
A57: Whole House Efficiency | B57: ASHP SEER 15 - Replace Electric Resistance Heat - Early Replacement (future) | C57: 315 | D57: Single Family | E57: HVAC | G57: per ton | H57: 644.56 | I57: =ROUND((BC57*AE57*(1/AT57-1/T57))/1000+(BF57*AE57*(1/AZ57-1/AH57)/1000),4) -> 183.2908 | J57: IL TRM v5 | K57: 0.1866505092 | L57: 0.72 | M57: IL TRM v5 | N57: =ROUND((AE57*(1/AW57-1/AN57)/1000)*L57,4) -> 0.3131 | P57: 982 | Q57: EFLHcool, from PY2016 analysis (Normalized EnergyStar KC Cooling Hours to IL TRM CDD) | R57: 12 | S57: SEER | T57: 15.17 | U57: per PY2016 Metadata | V57: SEER | X57: SEERexist per IL TRM v5 | Y57: =ROUND((BC57*AE57*(1/AT57-1/T57))/1000+(BF57*AE57*(1/AZ57-1/AH57)/1000),4) | Z57: =ROUND((AE57*(1/AW57-1/AN57)/1000)*L57,4) | AA57: 2018-04-01 | AB57: 2019-03-31 | AE57: 12000 | AF57: Allows for Capacity input in Tons; converts tons to BTUs | AH57: 8.712142857 | AI57: HSPF_ee | AJ57: Calculated per PY2016 Metadata | AK57: 8.2 | AL57: HSPF_base | AM57: Illinois TRM | AN57: 12.387822 | AO57: EER_ee | AP57: IL TRM V5 | AR57: EERbase | AS57: IL TRM V5 | AT57: 14 | AU57: SEERbase | AV57: IL TRM V5 | AW57: 8.55 | AX57: EERbase | AY57: IL TRM V5 | AZ57: 8.2 | BA57: HSPFbase | BB57: Arkansas TRM v7 | BC57: 982 | BD57: EFLHcool | BE57: The EFLH Cooling and Heating hours are based on a EnergyStar study that was normalized (based on HDD and CDD) to Kansas City. This was for both AC and HP units. | BF57: 1376 | BG57: EFLHheat | BH57: The EFLH Cooling and Heating hours are based on a EnergyStar study that was normalized (based on HDD and CDD) to Kansas City. This was for both AC and HP units.
A58: Whole House Efficiency | B58: ASHP SEER 15 - Replace Electric Resistance Heat - Early Replacement (future) | C58: 315.1 | D58: Single Family | E58: HVAC | G58: per ton | H58: 644.56 | I58: =ROUND((BC58*AE58*(1/AT58-1/T58))/1000+(BF58*AE58*(1/AZ58-1/AH58)/1000),4) -> 167.1605 | J58: IL TRM v5 | K58: 0.2265047425 | L58: 0.72 | M58: IL TRM v5 | N58: =ROUND((AE58*(1/AW58-1/AN58)/1000)*L58,4) -> 0.0372 | P58: 738 | Q58: EFLHcool, from 2017 MO TRM | R58: 12 | S58: SEER | T58: 15.17 | U58: per PY2016 Metadata | V58: =AU58 -> SEERbase | W58: =AT58 -> 14 | X58: =AV58 -> IL TRM V6 | Y58: =cellformula(I58) -> =ROUND((BC58*AE58*(1/AT58-1/T58))/1000+(BF58*AE58*(1/AZ58-1/AH58)/1000),4) | Z58: =cellformula(N58) -> =ROUND((AE58*(1/AW58-1/AN58)/1000)*L58,4) | AA58: 2019-04-01 | AE58: 12000 | AF58: Allows for Capacity input in Tons; converts tons to BTUs | AH58: 8.712142857 | AI58: HSPF_ee | AJ58: Calculated per PY2016 Metadata | AK58: 8.2 | AL58: HSPF_base | AM58: Illinois TRM | AN58: =(-0.02*T58^2)+(1.12*T58) -> 12.387822 | AO58: EER_ee | AP58: Based on SEER value of efficient equipment | AT58: 14 | AU58: SEERbase | AV58: IL TRM V6 | AW58: =(-0.02*AT58^2)+(1.12*AT58) -> 11.76 | AX58: EERbase | AY58: Based on SEER base | AZ58: 8.2 | BA58: HSPFbase | BB58: Arkansas TRM v7 | BC58: 738 | BD58: EFLHcool | BE58: 2017 MO TRM | BF58: 1376 | BG58: EFLHheat | BH58: The EFLH Cooling and Heating hours are based on a EnergyStar study that was normalized (based on HDD and CDD) to Kansas City. This was for both AC and HP units.
A59: Whole House Efficiency | B59: ASHP SEER 16 | C59: 34.1 | D59: Single Family | E59: HVAC | G59: per ton | H59: 274 | I59: =ROUND((AT59*AE59*(1/W59-1/T59))/1000+(AW59*AE59*(1/AK59-1/AH59)/1000),4) -> 302.0404 | J59: IL TRM v5 | K59: =I59/P59 -> 0.3075767821 | L59: 0.72 | M59: IL TRM v5 | N59: =ROUND((AE59*(1/AQ59-1/AN59)/1000)*L59,4) -> 0.0644 | P59: 982 | Q59: EFLHcool, from PY2016 analysis | R59: 18 | S59: SEER | T59: 16.04 | U59: per PY2016 Metadata | V59: SEER | W59: 14 | X59: IL TRM v5 | Y59: =ROUND((AT59*AE59*(1/W59-1/T59))/1000+(AW59*AE59*(1/AK59-1/AH59)/1000),4) | Z59: =ROUND((AE59*(1/AQ59-1/AN59)/1000)*L59,4) | AA59: 2018-04-01 | AB59: 2019-03-31 | AE59: 12000 | AF59: Allows for Capacity input in Tons; converts tons to BTUs | AH59: 9.079166667 | AI59: HSPFee | AJ59: Calculated per PY2016 Metadata | AK59: 8.2 | AL59: HSPFbase | AM59: Illinois TRM | AN59: 12.9375 | AO59: EERee | AP59: Calculated per PY2016 Metadata | AQ59: 11.8 | AR59: EERbase | AS59: Illinois TRM | AT59: 982 | AU59: EFLHcool | AV59: The EFLH Cooling and Heating hours are based on a EnergyStar study that was normalized (based on HDD and CDD) to Kansas City. This was for both AC and HP units. | AW59: 1376 | AX59: EFLHheat | AY59: The EFLH Cooling and Heating hours are based on a EnergyStar study that was normalized (based on HDD and CDD) to Kansas City. This was for both AC and HP units.
A60: Whole House Efficiency | B60: ASHP SEER 16 | C60: 34.2 | D60: Single Family | E60: HVAC | G60: per ton | H60: 274 | I60: =ROUND((AT60*AE60*(1/W60-1/T60))/1000+(AW60*AE60*(1/AK60-1/AH60)/1000),4) -> 275.4412 | J60: IL TRM v5 | K60: =I60/P60 -> 0.3732265583 | L60: 0.72 | M60: IL TRM v5 | N60: =ROUND((AE60*(1/AQ60-1/AN60)/1000)*L60,4) -> 0.0644 | P60: 738 | Q60: EFLHcool, from 2017 MO TRM | R60: 18 | S60: SEER | T60: 16.04 | U60: per PY2016 Metadata | V60: SEER | W60: 14 | X60: IL TRM v5 | Y60: =cellformula(I60) -> =ROUND((AT60*AE60*(1/W60-1/T60))/1000+(AW60*AE60*(1/AK60-1/AH60)/1000),4) | Z60: =cellformula(N60) -> =ROUND((AE60*(1/AQ60-1/AN60)/1000)*L60,4) | AA60: 2019-04-01 | AE60: 12000 | AF60: Allows for Capacity input in Tons; converts tons to BTUs | AH60: 9.079166667 | AI60: HSPFee | AJ60: Calculated per PY2016 Metadata | AK60: 8.2 | AL60: HSPFbase | AM60: Illinois TRM | AN60: 12.9375 | AO60: EERee | AP60: Calculated per PY2016 Metadata | AQ60: 11.8 | AR60: EERbase | AS60: Illinois TRM | AT60: 738 | AU60: EFLHcool | AV60: 2017 MO TRM | AW60: 1376 | AX60: EFLHheat | AY60: The EFLH Cooling and Heating hours are based on a EnergyStar study that was normalized (based on HDD and CDD) to Kansas City. This was for both AC and HP units.
A61: Whole House Efficiency | B61: ASHP SEER 16 - Early Replacement | C61: 35.1 | D61: Single Family | E61: HVAC | G61: per ton | H61: 415 | I61: =ROUND((AT61*AE61*(1/W61-1/T61))/1000+(AW61*AE61*(1/AK61-1/AH61)/1000),4) -> 2178.6968 | J61: IL TRM v5 | K61: =I61/P61 -> 2.218632179 | L61: 0.72 | M61: IL TRM v5 | N61: =ROUND((AE61*(1/AQ61-1/AN61)/1000)*L61,4) -> 0.6158 | P61: 982 | Q61: EFLHcool, from PY2016 analysis | R61: 6 | S61: SEER | T61: 16.08 | U61: per PY2016 Metadata | V61: SEER | W61: 6.87 | X61: per PY2015 report | Y61: =ROUND((AT61*AE61*(1/W61-1/T61))/1000+(AW61*AE61*(1/AK61-1/AH61)/1000),4) | Z61: =cellformula(N61) -> =ROUND((AE61*(1/AQ61-1/AN61)/1000)*L61,4) | AA61: 2018-04-01 | AB61: 2019-03-31 | AE61: 12000 | AF61: Allows for Capacity input in Tons; converts tons to BTUs | AH61: 8.978571429 | AI61: HSPFee | AJ61: Calculated per PY2016 Metadata | AK61: 5.44 | AL61: HSPFbase | AM61: Illinois TRM | AN61: 12.85185185 | AO61: EERee | AP61: Calculated per PY2016 Metadata | AQ61: 6.70764 | AR61: EERbase | AS61: Calculated per PY2016 Metadata | AT61: 982 | AU61: EFLHcool | AV61: The EFLH Cooling and Heating hours are based on a EnergyStar study that was normalized (based on HDD and CDD) to Kansas City. This was for both AC and HP units. | AW61: 1376 | AX61: EFLHheat | AY61: The EFLH Cooling and Heating hours are based on a EnergyStar study that was normalized (based on HDD and CDD) to Kansas City. This was for both AC and HP units.
A62: Whole House Efficiency | B62: ASHP SEER 16 - Early Replacement | C62: 35.2 | D62: Single Family | E62: HVAC | G62: per ton | H62: 415 | I62: =ROUND((AT62*AE62*(1/W62-1/T62))/1000+(AW62*AE62*(1/AK62-1/AH62)/1000),4) -> 1616.5551 | J62: IL TRM v5 | K62: =I62/P62 -> 2.190454065 | L62: 0.72 | M62: IL TRM v5 | N62: =ROUND((AE62*(1/AQ62-1/AN62)/1000)*L62,4) -> 0.3871 | P62: 738 | Q62: EFLHcool, from 2017 MO TRM | R62: 6 | S62: SEER | T62: 16.08 | U62: per PY2016 Metadata | V62: SEER | W62: 9.12 | X62: SEERexist per IL TRM V6 assumes ASHP replacement | Y62: =cellformula(I62) -> =ROUND((AT62*AE62*(1/W62-1/T62))/1000+(AW62*AE62*(1/AK62-1/AH62)/1000),4) | Z62: =cellformula(N62) -> =ROUND((AE62*(1/AQ62-1/AN62)/1000)*L62,4) | AA62: 2019-04-01 | AE62: 12000 | AF62: Allows for Capacity input in Tons; converts tons to BTUs | AH62: 8.978571429 | AI62: HSPFee | AJ62: Calculated per PY2016 Metadata | AK62: 5.44 | AL62: HSPFbase | AM62: Illinois TRM | AN62: =(-0.02*T62^2)+(1.12*T62) -> 12.838272 | AO62: EERee | AP62: Based on SEER value of efficient equipment | AQ62: 8.15 | AR62: EERexist | AS62: IL TRM V6 | AT62: 738 | AU62: EFLHcool | AV62: 2017 MO TRM | AW62: 1376 | AX62: EFLHheat | AY62: The EFLH Cooling and Heating hours are based on a EnergyStar study that was normalized (based on HDD and CDD) to Kansas City. This was for both AC and HP units.
A63: Whole House Efficiency | B63: ASHP SEER 16 - Early Replacement (future) | C63: 36.1 | D63: Single Family | E63: HVAC | G63: per ton | H63: 415 | I63: =ROUND((BC63*AE63*(1/AT63-1/T63))/1000+(BF63*AE63*(1/AZ63-1/AH63)/1000),4) -> 283.4917 | J63: IL TRM v5 | K63: =I63/P63 -> 0.2886880855 | L63: 0.72 | M63: IL TRM v5 | N63: =ROUND((AE63*(1/AW63-1/AN63)/1000)*L63,4) -> 0.3382 | O63: IL TRM V5 | P63: 982 | Q63: EFLHcool, from PY2016 analysis (Normalized EnergyStar KC Cooling Hours to IL TRM CDD) | R63: 12 | S63: SEER | T63: 16.08 | U63: per PY2016 Metadata | V63: SEER | W63: 9.12 | X63: SEERexist per IL TRM v5 | Y63: =cellformula(I63) -> =ROUND((BC63*AE63*(1/AT63-1/T63))/1000+(BF63*AE63*(1/AZ63-1/AH63)/1000),4) | Z63: =ROUND((AE63*(1/AW63-1/AN63)/1000)*L63,4) | AA63: 2018-04-01 | AB63: 2019-03-31 | AE63: 12000 | AF63: Allows for Capacity input in Tons; converts tons to BTUs | AH63: 8.978571429 | AI63: HSPFee | AJ63: Calculated per PY2016 Metadata | AK63: 5.44 | AL63: HSPFexist | AM63: Illinois TRM | AN63: 12.85185185 | AO63: EERee | AP63: Calculated per PY2016 Metadata | AQ63: 6.70764 | AR63: EERexist | AS63: Calculated per PY2016 Metadata | AT63: 14 | AU63: SEERbase | AV63: IL TRM V5 | AW63: 8.55 | AX63: EERbase | AY63: IL TRM V5 | AZ63: 8.2 | BA63: HSPFbase | BB63: Illinois TRM | BC63: 982 | BD63: EFLHcool | BE63: The EFLH Cooling and Heating hours are based on a EnergyStar study that was normalized (based on HDD and CDD) to Kansas City. This was for both AC and HP units. | BF63: 1376 | BG63: EFLHheat | BH63: The EFLH Cooling and Heating hours are based on a EnergyStar study that was normalized (based on HDD and CDD) to Kansas City. This was for both AC and HP units.
A64: Whole House Efficiency | B64: ASHP SEER 16 - Early Replacement (future) | C64: 36.2 | D64: Single Family | E64: HVAC | G64: per ton | H64: 415 | I64: =ROUND((BC64*AE64*(1/AT64-1/T64))/1000+(BF64*AE64*(1/AZ64-1/AH64)/1000),4) -> 256.4384 | J64: IL TRM v5 | K64: =I64/P64 -> 0.3474775068 | L64: 0.72 | M64: IL TRM v5 | N64: =ROUND((AE64*(1/AW64-1/AN64)/1000)*L64,4) -> 0.0617 | O64: IL TRM V5 | P64: 738 | Q64: EFLHcool, from 2017 MO TRM | R64: 12 | S64: SEER | T64: 16.08 | U64: per PY2016 Metadata | V64: =AU64 -> SEERbase | W64: =AT64 -> 14 | X64: =AV64 -> IL TRM V6 | Y64: =cellformula(I64) -> =ROUND((BC64*AE64*(1/AT64-1/T64))/1000+(BF64*AE64*(1/AZ64-1/AH64)/1000),4) | Z64: =cellformula(N64) -> =ROUND((AE64*(1/AW64-1/AN64)/1000)*L64,4) | AA64: 2019-04-01 | AE64: 12000 | AF64: Allows for Capacity input in Tons; converts tons to BTUs | AH64: 8.978571429 | AI64: HSPFee | AJ64: Calculated per PY2016 Metadata | AK64: 5.44 | AL64: HSPFexist | AM64: Illinois TRM | AN64: =(-0.02*T64^2)+(1.12*T64) -> 12.838272 | AO64: EERee | AP64: Based on SEER value of efficient equipment | AT64: 14 | AU64: SEERbase | AV64: IL TRM V6 | AW64: =(-0.02*AT64^2)+(1.12*AT64) -> 11.76 | AX64: EERbase | AY64: Based on SEER base | AZ64: 8.2 | BA64: HSPFbase | BB64: Illinois TRM | BC64: 738 | BD64: EFLHcool | BE64: 2017 MO TRM | BF64: 1376 | BG64: EFLHheat | BH64: The EFLH Cooling and Heating hours are based on a EnergyStar study that was normalized (based on HDD and CDD) to Kansas City. This was for both AC and HP units.
A65: Whole House Efficiency | B65: ASHP SEER 16 - Replace Electric Resistance Heat | C65: 37.1 | D65: Single Family | E65: HVAC | G65: per ton | H65: 793.1578947 | I65: =ROUND((AT65*AE65*(1/W65-1/T65))/1000+(AW65*AE65*(1/AK65-1/AH65)/1000),4) -> 300.6852 | J65: IL TRM v5 | K65: =I65/P65 -> 0.3061967413 | L65: 0.72 | M65: IL TRM v5 | N65: =ROUND((AE65*(1/AQ65-1/AN65)/1000)*L65,4) -> 0.0478 | P65: 982 | Q65: EFLHcool, from PY2016 analysis | R65: 18 | S65: SEER | T65: 16.11 | U65: per PY2016 Metadata | V65: SEERbase | W65: 14 | X65: IL TRM v5 | Y65: =ROUND((AT65*AE65*(1/W65-1/T65))/1000+(AW65*AE65*(1/AK65-1/AH65)/1000),4) | Z65: =ROUND((AE65*(1/AQ65-1/AN65)/1000)*L65,4) | AA65: 2018-04-01 | AB65: 2019-03-31 | AE65: 12000 | AF65: Allows for Capacity input in Tons; converts tons to BTUs | AH65: 9.056521739 | AI65: HSPFee | AJ65: Calculated per PY2016 Metadata | AK65: 8.2 | AL65: HSPFbase | AM65: Illinois TRM | AN65: 12.625 | AO65: EERee | AP65: Calculated per PY2016 Metadata | AQ65: 11.8 | AR65: EERbase | AS65: Illinois TRM | AT65: 982 | AU65: EFLHcool | AV65: The EFLH Cooling and Heating hours are based on a EnergyStar study that was normalized (based on HDD and CDD) to Kansas City. This was for both AC and HP units. | AW65: 1376 | AX65: EFLHheat | AY65: The EFLH Cooling and Heating hours are based on a EnergyStar study that was normalized (based on HDD and CDD) to Kansas City. This was for both AC and HP units.
A66: Whole House Efficiency | B66: ASHP SEER 16 - Replace Electric Resistance Heat | C66: 37.2 | D66: Single Family | E66: HVAC | G66: per ton | H66: 793.1578947 | I66: =ROUND((AT66*AE66*(1/W66-1/T66))/1000+(AW66*AE66*(1/AK66-1/AH66)/1000),4) -> 273.2928 | J66: IL TRM v5 | K66: =I66/P66 -> 0.3703154472 | L66: 0.72 | M66: IL TRM v5 | N66: =ROUND((AE66*(1/AQ66-1/AN66)/1000)*L66,4) -> 0.0478 | P66: 738 | Q66: EFLHcool, from 2017 MO TRM | R66: 18 | S66: SEER | T66: 16.11 | U66: per PY2016 Metadata | V66: SEERbase | W66: 14 | X66: IL TRM v6 | Y66: =cellformula(I66) -> =ROUND((AT66*AE66*(1/W66-1/T66))/1000+(AW66*AE66*(1/AK66-1/AH66)/1000),4) | Z66: =cellformula(N66) -> =ROUND((AE66*(1/AQ66-1/AN66)/1000)*L66,4) | AA66: 2019-04-01 | AE66: 12000 | AF66: Allows for Capacity input in Tons; converts tons to BTUs | AH66: 9.056521739 | AI66: HSPFee | AJ66: Calculated per PY2016 Metadata | AK66: 8.2 | AL66: HSPFbase | AM66: Illinois TRM | AN66: 12.625 | AO66: EERee | AP66: Calculated per PY2016 Metadata | AQ66: 11.8 | AR66: EERbase | AS66: Illinois TRM | AT66: 738 | AU66: EFLHcool | AV66: 2017 MO TRM | AW66: 1376 | AX66: EFLHheat | AY66: The EFLH Cooling and Heating hours are based on a EnergyStar study that was normalized (based on HDD and CDD) to Kansas City. This was for both AC and HP units.
A67: Whole House Efficiency | B67: ASHP SEER 16 - Replace Electric Resistance Heat - Early Replacement | C67: 316 | D67: Single Family | E67: HVAC | G67: per ton | H67: 1527 | I67: =ROUND((AT67*AE67*(1/W67-1/T67))/1000+(AW67*AE67*(1/AK67-1/AH67)/1000),4) -> 3985.6314 | J67: IL TRM v5 | K67: =I67/P67 -> 4.05868778 | L67: 0.72 | M67: IL TRM v5 | N67: =ROUND((AE67*(1/AQ67-1/AN67)/1000)*L67,4) -> 0.6151 | P67: 982 | Q67: EFLHcool, from PY2016 analysis (Normalized EnergyStar KC Cooling Hours to IL TRM CDD) | R67: 6 | S67: SEER | T67: 16.08 | U67: per PY2016 Metadata | V67: SEER | W67: 6.87 | X67: per PY2015 report | Y67: =cellformula(I67) -> =ROUND((AT67*AE67*(1/W67-1/T67))/1000+(AW67*AE67*(1/AK67-1/AH67)/1000),4) | Z67: =cellformula(N67) -> =ROUND((AE67*(1/AQ67-1/AN67)/1000)*L67,4) | AA67: 2018-04-01 | AB67: 2019-03-31 | AE67: 12000 | AF67: Allows for Capacity input in Tons; converts tons to BTUs | AH67: 8.978571429 | AI67: HSPF_ee | AJ67: Calculated per PY2016 Metadata | AK67: 3.41 | AL67: HSPF_exist | AM67: Illinois TRM | AN67: =(-0.02*T67^2)+(1.12*T67) -> 12.838272 | AO67: EER_ee | AP67: IL TRM V5 | AQ67: 6.70764 | AR67: EERbase | AS67: IL TRM V5 | AT67: 982 | AU67: EFLHcool | AV67: The EFLH Cooling and Heating hours are based on a EnergyStar study that was normalized (based on HDD and CDD) to Kansas City. This was for both AC and HP units. | AW67: 1376 | AX67: EFLHheat | AY67: The EFLH Cooling and Heating hours are based on a EnergyStar study that was normalized (based on HDD and CDD) to Kansas City. This was for both AC and HP units.
A68: Whole House Efficiency | B68: ASHP SEER 16 - Replace Electric Resistance Heat - Early Replacement | C68: 316.1 | D68: Single Family | E68: HVAC | G68: per ton | H68: 1527 | I68: =ROUND((AT68*AE68*(1/W68-1/T68))/1000+(AW68*AE68*(1/AK68-1/AH68)/1000),4) -> 3423.4898 | J68: IL TRM v5 | K68: 4.638875068 | L68: 0.72 | M68: IL TRM v5 | N68: =ROUND((AE68*(1/AQ68-1/AN68)/1000)*L68,4) -> 0.3871 | P68: 738 | Q68: EFLHcool, from 2017 MO TRM | R68: 6 | S68: SEER | T68: 16.08 | U68: per PY2016 Metadata | V68: SEER | W68: 9.12 | X68: SEERexist per IL TRM V6 assumes ASHP replacement | Y68: =cellformula(I68) -> =ROUND((AT68*AE68*(1/W68-1/T68))/1000+(AW68*AE68*(1/AK68-1/AH68)/1000),4) | Z68: =cellformula(N68) -> =ROUND((AE68*(1/AQ68-1/AN68)/1000)*L68,4) | AA68: 2019-04-01 | AE68: 12000 | AF68: Allows for Capacity input in Tons; converts tons to BTUs | AH68: 8.978571429 | AI68: HSPF_ee | AJ68: Calculated per PY2016 Metadata | AK68: 3.41 | AL68: HSPF_exist | AM68: Illinois TRM | AN68: =(-0.02*T68^2)+(1.12*T68) -> 12.838272 | AO68: EER_ee | AP68: Based on SEER value of efficient equipment | AQ68: 8.15 | AR68: EERexist | AS68: IL TRM V6 | AT68: 738 | AU68: EFLHcool | AV68: 2017 MO TRM | AW68: 1376 | AX68: EFLHheat | AY68: The EFLH Cooling and Heating hours are based on a EnergyStar study that was normalized (based on HDD and CDD) to Kansas City. This was for both AC and HP units.
A69: Whole House Efficiency | B69: ASHP SEER 16 - Replace Electric Resistance Heat - Early Replacement (future) | C69: 317 | D69: Single Family | E69: HVAC | G69: per ton | H69: 644.56 | I69: =ROUND((BC69*AE69*(1/AT69-1/T69))/1000+(BF69*AE69*(1/AZ69-1/AH69)/1000),4) -> 283.4917 | J69: IL TRM v5 | K69: 0.2886880855 | L69: 0.72 | M69: IL TRM v5 | N69: =ROUND((AE69*(1/AW69-1/AN69)/1000)*L69,4) -> 0.3375 | P69: 982 | Q69: EFLHcool, from PY2016 analysis (Normalized EnergyStar KC Cooling Hours to IL TRM CDD) | R69: 12 | S69: SEER | T69: 16.08 | U69: per PY2016 Metadata | V69: SEER | X69: SEERexist per IL TRM v5 | Y69: =ROUND((BC69*AE69*(1/AT69-1/T69))/1000+(BF69*AE69*(1/AZ69-1/AH69)/1000),4) | Z69: =ROUND((AE69*(1/AW69-1/AN69)/1000)*L69,4) | AA69: 2018-04-01 | AB69: 2019-03-31 | AE69: 12000 | AF69: Allows for Capacity input in Tons; converts tons to BTUs | AH69: 8.978571429 | AI69: HSPF_ee | AJ69: Calculated per PY2016 Metadata | AK69: 8.2 | AL69: HSPF_base | AM69: Illinois TRM | AN69: 12.838272 | AO69: EER_ee | AP69: IL TRM V5 | AR69: EERbase | AS69: IL TRM V5 | AT69: 14 | AU69: SEERbase | AV69: IL TRM V5 | AW69: 8.55 | AX69: EERbase | AY69: IL TRM V5 | AZ69: 8.2 | BA69: HSPFbase | BB69: Arkansas TRM v7 | BC69: 982 | BD69: EFLHcool | BE69: The EFLH Cooling and Heating hours are based on a EnergyStar study that was normalized (based on HDD and CDD) to Kansas City. This was for both AC and HP units. | BF69: 1376 | BG69: EFLHheat | BH69: The EFLH Cooling and Heating hours are based on a EnergyStar study that was normalized (based on HDD and CDD) to Kansas City. This was for both AC and HP units.
A70: Whole House Efficiency | B70: ASHP SEER 16 - Replace Electric Resistance Heat - Early Replacement (future) | C70: 317.1 | D70: Single Family | E70: HVAC | G70: per ton | H70: 644.56 | I70: =ROUND((BC70*AE70*(1/AT70-1/T70))/1000+(BF70*AE70*(1/AZ70-1/AH70)/1000),4) -> 256.4384 | J70: IL TRM v5 | K70: 0.3474775068 | L70: 0.72 | M70: IL TRM v5 | N70: =ROUND((AE70*(1/AW70-1/AN70)/1000)*L70,4) -> 0.0617 | P70: 738 | Q70: EFLHcool, from 2017 MO TRM | R70: 12 | S70: SEER | T70: 16.08 | U70: per PY2016 Metadata | V70: =AU70 -> SEERbase | W70: =AT70 -> 14 | X70: =AV70 -> IL TRM V6 | Y70: =cellformula(I70) -> =ROUND((BC70*AE70*(1/AT70-1/T70))/1000+(BF70*AE70*(1/AZ70-1/AH70)/1000),4) | Z70: =cellformula(N70) -> =ROUND((AE70*(1/AW70-1/AN70)/1000)*L70,4) | AA70: 2019-04-01 | AE70: 12000 | AF70: Allows for Capacity input in Tons; converts tons to BTUs | AH70: 8.978571429 | AI70: HSPF_ee | AJ70: Calculated per PY2016 Metadata | AK70: 8.2 | AL70: HSPF_base | AM70: Illinois TRM | AN70: =(-0.02*T70^2)+(1.12*T70) -> 12.838272 | AO70: EER_ee | AP70: Based on SEER value of efficient equipment | AT70: 14 | AU70: SEERbase | AV70: IL TRM V6 | AW70: =(-0.02*AT70^2)+(1.12*AT70) -> 11.76 | AX70: EERbase | AY70: Based on SEER base | AZ70: 8.2 | BA70: HSPFbase | BB70: Arkansas TRM v7 | BC70: 738 | BD70: EFLHcool | BE70: 2017 MO TRM | BF70: 1376 | BG70: EFLHheat | BH70: The EFLH Cooling and Heating hours are based on a EnergyStar study that was normalized (based on HDD and CDD) to Kansas City. This was for both AC and HP units.
A71: Whole House Efficiency | B71: ASHP SEER 17 | C71: 38.1 | D71: Single Family | E71: HVAC | G71: per ton | H71: 411 | I71: =ROUND((AT71*AE71*(1/W71-1/T71))/1000+(AW71*AE71*(1/AK71-1/AH71)/1000),4) -> 357.7369 | J71: IL TRM v5 | K71: =I71/P71 -> 0.3642941955 | L71: 0.72 | M71: IL TRM v5 | N71: =ROUND((AE71*(1/AQ71-1/AN71)/1000)*L71,4) -> 0.041 | P71: 982 | Q71: EFLHcool, from PY2016 analysis | R71: 18 | S71: SEER | T71: 17.25 | U71: per PY2016 Metadata | V71: SEER | W71: 14 | X71: IL TRM v5 | Y71: =ROUND((AT71*AE71*(1/W71-1/T71))/1000+(AW71*AE71*(1/AK71-1/AH71)/1000),4) | Z71: =ROUND((AE71*(1/AQ71-1/AN71)/1000)*L71,4) | AA71: 2018-04-01 | AB71: 2019-03-31 | AE71: 12000 | AF71: Allows for Capacity input in Tons; converts tons to BTUs | AH71: 9.1 | AI71: HSPFee | AJ71: Calculated per PY2016 Metadata | AK71: 8.2 | AL71: HSPFbase | AM71: Illinois TRM | AN71: 12.5 | AO71: EERee | AP71: Calculated per PY2016 Metadata | AQ71: 11.8 | AR71: EERbase | AS71: Illinois TRM | AT71: 982 | AU71: EFLHcool | AV71: The EFLH Cooling and Heating hours are based on a EnergyStar study that was normalized (based on HDD and CDD) to Kansas City. This was for both AC and HP units. | AW71: 1376 | AX71: EFLHheat | AY71: The EFLH Cooling and Heating hours are based on a EnergyStar study that was normalized (based on HDD and CDD) to Kansas City. This was for both AC and HP units.
A72: Whole House Efficiency | B72: ASHP SEER 17 | C72: 38.2 | D72: Single Family | E72: HVAC | G72: per ton | H72: 411 | I72: =ROUND((AT72*AE72*(1/W72-1/T72))/1000+(AW72*AE72*(1/AK72-1/AH72)/1000),4) -> 318.3332 | J72: IL TRM v5 | K72: =I72/P72 -> 0.4313457995 | L72: 0.72 | M72: IL TRM v5 | N72: =ROUND((AE72*(1/AQ72-1/AN72)/1000)*L72,4) -> 0.041 | P72: 738 | Q72: EFLHcool, from 2017 MO TRM | R72: 18 | S72: SEER | T72: 17.25 | U72: per PY2016 Metadata | V72: SEER | W72: 14 | X72: IL TRM v6 | Y72: =cellformula(I72) -> =ROUND((AT72*AE72*(1/W72-1/T72))/1000+(AW72*AE72*(1/AK72-1/AH72)/1000),4) | Z72: =cellformula(N72) -> =ROUND((AE72*(1/AQ72-1/AN72)/1000)*L72,4) | AA72: 2019-04-01 | AE72: 12000 | AF72: Allows for Capacity input in Tons; converts tons to BTUs | AH72: 9.1 | AI72: HSPFee | AJ72: Calculated per PY2016 Metadata | AK72: 8.2 | AL72: HSPFbase | AM72: Illinois TRM | AN72: 12.5 | AO72: EERee | AP72: Calculated per PY2016 Metadata | AQ72: 11.8 | AR72: EERbase | AS72: Illinois TRM | AT72: 738 | AU72: EFLHcool | AV72: 2017 MO TRM | AW72: 1376 | AX72: EFLHheat | AY72: The EFLH Cooling and Heating hours are based on a EnergyStar study that was normalized (based on HDD and CDD) to Kansas City. This was for both AC and HP units.
A73: Whole House Efficiency | B73: ASHP SEER 17 - Early Replacement | C73: 39.1 | D73: Single Family | E73: HVAC | G73: per ton | H73: 689 | I73: =ROUND((AT73*AE73*(1/W73-1/T73))/1000+(AW73*AE73*(1/AK73-1/AH73)/1000),4) -> 2380.9608 | J73: IL TRM v5 | K73: =I73/P73 -> 2.424603666 | L73: 0.72 | M73: IL TRM v5 | N73: =ROUND((AE73*(1/AQ73-1/AN73)/1000)*L73,4) -> 0.7506 | P73: 982 | Q73: EFLHcool, from PY2016 analysis | R73: 6 | S73: SEER | T73: 18.34 | U73: per PY2016 Metadata | V73: SEER | W73: 6.87 | X73: per PY2015 report | Y73: =ROUND((AT73*AE73*(1/W73-1/T73))/1000+(AW73*AE73*(1/AK73-1/AH73)/1000),4) | Z73: =ROUND((AE73*(1/AQ73-1/AN73)/1000)*L73,4) | AA73: 2018-04-01 | AB73: 2019-03-31 | AE73: 12000 | AF73: Allows for Capacity input in Tons; converts tons to BTUs | AH73: 9.560606061 | AI73: HSPFee | AJ73: Calculated per PY2016 Metadata | AK73: 5.44 | AL73: HSPFbase | AM73: Illinois TRM | AN73: 16.075 | AO73: EERee | AP73: Calculated per PY2016 Metadata | AQ73: 6.70764 | AR73: EERbase | AS73: Calculated per PY2016 Metadata | AT73: 982 | AU73: EFLHcool | AV73: The EFLH Cooling and Heating hours are based on a EnergyStar study that was normalized (based on HDD and CDD) to Kansas City. This was for both AC and HP units. | AW73: 1376 | AX73: EFLHheat | AY73: The EFLH Cooling and Heating hours are based on a EnergyStar study that was normalized (based on HDD and CDD) to Kansas City. This was for both AC and HP units.
A74: Whole House Efficiency | B74: ASHP SEER 17 - Early Replacement | C74: 39.2 | D74: Single Family | E74: HVAC | G74: per ton | H74: 689 | I74: =ROUND((AT74*AE74*(1/W74-1/T74))/1000+(AW74*AE74*(1/AK74-1/AH74)/1000),4) -> 1796.3806 | J74: IL TRM v5 | K74: =I74/P74 -> 2.434120054 | L74: 0.72 | M74: IL TRM v5 | N74: =ROUND((AE74*(1/AQ74-1/AN74)/1000)*L74,4) -> 0.4347 | P74: 738 | Q74: EFLHcool, from 2017 MO TRM | R74: 6 | S74: SEER | T74: 18.34 | U74: per PY2016 Metadata | V74: SEER | W74: 9.12 | X74: SEERexist per IL TRM V6 assumes ASHP replacement | Y74: =cellformula(I74) -> =ROUND((AT74*AE74*(1/W74-1/T74))/1000+(AW74*AE74*(1/AK74-1/AH74)/1000),4) | Z74: =cellformula(N74) -> =ROUND((AE74*(1/AQ74-1/AN74)/1000)*L74,4) | AA74: 2019-04-01 | AE74: 12000 | AF74: Allows for Capacity input in Tons; converts tons to BTUs | AH74: 9.560606061 | AI74: HSPFee | AJ74: Calculated per PY2016 Metadata | AK74: 5.44 | AL74: HSPFbase | AM74: Illinois TRM | AN74: =(-0.02*T74^2)+(1.12*T74) -> 13.813688 | AO74: EERee | AP74: Based on SEER value of efficient equipment | AQ74: 8.15 | AR74: EERexist | AS74: IL TRM V6 | AT74: 738 | AU74: EFLHcool | AV74: 2017 MO TRM | AW74: 1376 | AX74: EFLHheat | AY74: The EFLH Cooling and Heating hours are based on a EnergyStar study that was normalized (based on HDD and CDD) to Kansas City. This was for both AC and HP units.
A75: Whole House Efficiency | B75: ASHP SEER 17 - Early Replacement (future) | C75: 40.1 | D75: Single Family | E75: HVAC | G75: per ton | H75: 689 | I75: =ROUND((BC75*AE75*(1/AT75-1/T75))/1000+(BF75*AE75*(1/AZ75-1/AH75)/1000),4) -> 485.7557 | J75: IL TRM v5 | K75: =I75/P75 -> 0.4946595723 | L75: 0.72 | M75: IL TRM v5 | N75: =ROUND((AE75*(1/AW75-1/AN75)/1000)*L75,4) -> 0.473 | O75: IL TRM V5 | P75: 982 | Q75: EFLHcool, from PY2016 analysis (Normalized EnergyStar KC Cooling Hours to IL TRM CDD) | R75: 12 | S75: SEER | T75: 18.34 | U75: per PY2016 Metadata | V75: SEER | W75: 9.12 | X75: SEERexist per IL TRM v5 | Y75: =ROUND((BC75*AE75*(1/AT75-1/T75))/1000+(BF75*AE75*(1/AZ75-1/AH75)/1000),4) | Z75: =ROUND((AE75*(1/AW75-1/AN75)/1000)*L75,4) | AA75: 2018-04-01 | AB75: 2019-03-31 | AE75: 12000 | AF75: Allows for Capacity input in Tons; converts tons to BTUs | AH75: 9.560606061 | AI75: HSPFee | AJ75: Calculated per PY2016 Metadata | AK75: 5.44 | AL75: HSPFexist | AM75: Illinois TRM | AN75: 16.075 | AO75: EERee | AP75: Calculated per PY2016 Metadata | AQ75: 6.70764 | AR75: EERexist | AS75: Calculated per PY2016 Metadata | AT75: 14 | AU75: SEERbase | AV75: IL TRM V5 | AW75: 8.55 | AX75: EERbase | AY75: IL TRM V5 | AZ75: 8.2 | BA75: HSPFbase | BB75: Illinois TRM | BC75: 982 | BD75: EFLHcool | BE75: The EFLH Cooling and Heating hours are based on a EnergyStar study that was normalized (based on HDD and CDD) to Kansas City. This was for both AC and HP units. | BF75: 1376 | BG75: EFLHheat | BH75: The EFLH Cooling and Heating hours are based on a EnergyStar study that was normalized (based on HDD and CDD) to Kansas City. This was for both AC and HP units.
A76: Whole House Efficiency | B76: ASHP SEER 17 - Early Replacement (future) | C76: 40.2 | D76: Single Family | E76: HVAC | G76: per ton | H76: 689 | I76: =ROUND((BC76*AE76*(1/AT76-1/T76))/1000+(BF76*AE76*(1/AZ76-1/AH76)/1000),4) -> 436.2638 | J76: IL TRM v5 | K76: =I76/P76 -> 0.5911433604 | L76: 0.72 | M76: IL TRM v5 | N76: =ROUND((AE76*(1/AW76-1/AN76)/1000)*L76,4) -> 0.1092 | O76: IL TRM V5 | P76: 738 | Q76: EFLHcool, from 2017 MO TRM | R76: 12 | S76: SEER | T76: 18.34 | U76: per PY2016 Metadata | V76: =AU76 -> SEERbase | W76: =AT76 -> 14 | X76: =AV76 -> IL TRM V6 | Y76: =cellformula(I76) -> =ROUND((BC76*AE76*(1/AT76-1/T76))/1000+(BF76*AE76*(1/AZ76-1/AH76)/1000),4) | Z76: =cellformula(N76) -> =ROUND((AE76*(1/AW76-1/AN76)/1000)*L76,4) | AA76: 2019-04-01 | AE76: 12000 | AF76: Allows for Capacity input in Tons; converts tons to BTUs | AH76: 9.560606061 | AI76: HSPFee | AJ76: Calculated per PY2016 Metadata | AK76: 5.44 | AL76: HSPFexist | AM76: Illinois TRM | AN76: =(-0.02*T76^2)+(1.12*T76) -> 13.813688 | AO76: EERee | AP76: Based on SEER value of efficient equipment | AS76: IL TRM V6 | AT76: 14 | AU76: SEERbase | AV76: IL TRM V6 | AW76: =(-0.02*AT76^2)+(1.12*AT76) -> 11.76 | AX76: EERbase | AY76: Based on SEER base | AZ76: 8.2 | BA76: HSPFbase | BB76: Illinois TRM | BC76: 738 | BD76: EFLHcool | BE76: 2017 MO TRM | BF76: 1376 | BG76: EFLHheat | BH76: The EFLH Cooling and Heating hours are based on a EnergyStar study that was normalized (based on HDD and CDD) to Kansas City. This was for both AC and HP units.
A77: Whole House Efficiency | B77: ASHP SEER 17 - Replace Electric Resistance Heat | C77: 41.1 | D77: Single Family | E77: HVAC | G77: per ton | H77: 1307.727273 | I77: =ROUND((AT77*AE77*(1/W77-1/T77))/1000+(AW77*AE77*(1/AK77-1/AH77)/1000),4) -> 495.4849 | J77: IL TRM v5 | K77: =I77/P77 -> 0.5045671079 | L77: 0.72 | M77: IL TRM v5 | N77: =ROUND((AE77*(1/AQ77-1/AN77)/1000)*L77,4) -> 0.1819 | P77: 982 | Q77: EFLHcool, from PY2016 analysis | R77: 18 | S77: SEER | T77: 18.27 | U77: per PY2016 Metadata | V77: SEERbase | W77: 14 | X77: IL TRM v5 | Y77: =ROUND((AT77*AE77*(1/W77-1/T77))/1000+(AW77*AE77*(1/AK77-1/AH77)/1000),4) | Z77: =ROUND((AE77*(1/AQ77-1/AN77)/1000)*L77,4) | AA77: 2018-04-01 | AB77: 2019-03-31 | AE77: 12000 | AF77: Allows for Capacity input in Tons; converts tons to BTUs | AH77: 9.628571429 | AI77: HSPFee | AJ77: Calculated per PY2016 Metadata | AK77: 8.2 | AL77: HSPFbase | AM77: Illinois TRM | AN77: 15.7 | AO77: EERee | AP77: Calculated per PY2016 Metadata | AQ77: 11.8 | AR77: EERbase | AS77: Illinois TRM | AT77: 982 | AU77: EFLHcool | AV77: The EFLH Cooling and Heating hours are based on a EnergyStar study that was normalized (based on HDD and CDD) to Kansas City. This was for both AC and HP units. | AW77: 1376 | AX77: EFLHheat | AY77: The EFLH Cooling and Heating hours are based on a EnergyStar study that was normalized (based on HDD and CDD) to Kansas City. This was for both AC and HP units.
A78: Whole House Efficiency | B78: ASHP SEER 17 - Replace Electric Resistance Heat | C78: 41.2 | D78: Single Family | E78: HVAC | G78: per ton | H78: 1307.727273 | I78: =ROUND((AT78*AE78*(1/W78-1/T78))/1000+(AW78*AE78*(1/AK78-1/AH78)/1000),4) -> 446.6048 | J78: IL TRM v5 | K78: =I78/P78 -> 0.6051555556 | L78: 0.72 | M78: IL TRM v5 | N78: =ROUND((AE78*(1/AQ78-1/AN78)/1000)*L78,4) -> 0.1819 | P78: 738 | Q78: EFLHcool, from 2017 MO TRM | R78: 18 | S78: SEER | T78: 18.27 | U78: per PY2016 Metadata | V78: SEERbase | W78: 14 | X78: IL TRM v6 | Y78: =cellformula(I78) -> =ROUND((AT78*AE78*(1/W78-1/T78))/1000+(AW78*AE78*(1/AK78-1/AH78)/1000),4) | Z78: =cellformula(N78) -> =ROUND((AE78*(1/AQ78-1/AN78)/1000)*L78,4) | AA78: 2019-04-01 | AE78: 12000 | AF78: Allows for Capacity input in Tons; converts tons to BTUs | AH78: 9.628571429 | AI78: HSPFee | AJ78: Calculated per PY2016 Metadata | AK78: 8.2 | AL78: HSPFbase | AM78: Illinois TRM | AN78: 15.7 | AO78: EERee | AP78: Calculated per PY2016 Metadata | AQ78: 11.8 | AR78: EERbase | AS78: Illinois TRM | AT78: 738 | AU78: EFLHcool | AV78: 2017 MO TRM | AW78: 1376 | AX78: EFLHheat | AY78: The EFLH Cooling and Heating hours are based on a EnergyStar study that was normalized (based on HDD and CDD) to Kansas City. This was for both AC and HP units.
A79: Whole House Efficiency | B79: ASHP SEER 17 - Replace Electric Resistance Heat - Early Replacement | C79: 318 | D79: Single Family | E79: HVAC | G79: per ton | H79: 1622.333333 | I79: =ROUND((AT79*AE79*(1/W79-1/T79))/1000+(AW79*AE79*(1/AK79-1/AH79)/1000),4) -> 4187.8954 | J79: IL TRM v5 | K79: =I79/P79 -> 4.264659267 | L79: 0.72 | M79: IL TRM v5 | N79: =ROUND((AE79*(1/AQ79-1/AN79)/1000)*L79,4) -> 0.6626 | P79: 982 | Q79: EFLHcool, from PY2016 analysis (Normalized EnergyStar KC Cooling Hours to IL TRM CDD) | R79: 6 | S79: SEER | T79: 18.34 | U79: per PY2016 Metadata | V79: SEER | W79: 6.87 | X79: per PY2015 report | Y79: =cellformula(I79) -> =ROUND((AT79*AE79*(1/W79-1/T79))/1000+(AW79*AE79*(1/AK79-1/AH79)/1000),4) | Z79: =cellformula(N79) -> =ROUND((AE79*(1/AQ79-1/AN79)/1000)*L79,4) | AA79: 2018-04-01 | AB79: 2019-03-31 | AE79: 12000 | AF79: Allows for Capacity input in Tons; converts tons to BTUs | AH79: 9.560606061 | AI79: HSPF_ee | AJ79: Calculated per PY2016 Metadata | AK79: 3.41 | AL79: HSPF_exist | AM79: Illinois TRM | AN79: =(-0.02*T79^2)+(1.12*T79) -> 13.813688 | AO79: EER_ee | AP79: IL TRM V5 | AQ79: 6.70764 | AR79: EERbase | AS79: IL TRM V5 | AT79: 982 | AU79: EFLHcool | AV79: The EFLH Cooling and Heating hours are based on a EnergyStar study that was normalized (based on HDD and CDD) to Kansas City. This was for both AC and HP units. | AW79: 1376 | AX79: EFLHheat | AY79: The EFLH Cooling and Heating hours are based on a EnergyStar study that was normalized (based on HDD and CDD) to Kansas City. This was for both AC and HP units.
A80: Whole House Efficiency | B80: ASHP SEER 17 - Replace Electric Resistance Heat - Early Replacement | C80: 318.1 | D80: Single Family | E80: HVAC | G80: per ton | H80: 1622.333333 | I80: =ROUND((AT80*AE80*(1/W80-1/T80))/1000+(AW80*AE80*(1/AK80-1/AH80)/1000),4) -> 3603.3153 | J80: IL TRM v5 | K80: 4.882541057 | L80: 0.72 | M80: IL TRM v5 | N80: =ROUND((AE80*(1/AQ80-1/AN80)/1000)*L80,4) -> 0.4347 | P80: 738 | Q80: EFLHcool, from 2017 MO TRM | R80: 6 | S80: SEER | T80: 18.34 | U80: per PY2016 Metadata | V80: SEER | W80: 9.12 | X80: SEERexist per IL TRM V6 assumes ASHP replacement | Y80: =cellformula(I80) -> =ROUND((AT80*AE80*(1/W80-1/T80))/1000+(AW80*AE80*(1/AK80-1/AH80)/1000),4) | Z80: =cellformula(N80) -> =ROUND((AE80*(1/AQ80-1/AN80)/1000)*L80,4) | AA80: 2019-04-01 | AE80: 12000 | AF80: Allows for Capacity input in Tons; converts tons to BTUs | AH80: 9.560606061 | AI80: HSPF_ee | AJ80: Calculated per PY2016 Metadata | AK80: 3.41 | AL80: HSPF_exist | AM80: Illinois TRM | AN80: =(-0.02*T80^2)+(1.12*T80) -> 13.813688 | AO80: EER_ee | AP80: Based on SEER value of efficient equipment | AQ80: 8.15 | AR80: EERexist | AS80: IL TRM V6 | AT80: 738 | AU80: EFLHcool | AV80: 2017 MO TRM | AW80: 1376 | AX80: EFLHheat | AY80: The EFLH Cooling and Heating hours are based on a EnergyStar study that was normalized (based on HDD and CDD) to Kansas City. This was for both AC and HP units.
A81: Whole House Efficiency | B81: ASHP SEER 17 - Replace Electric Resistance Heat - Early Replacement (future) | C81: 319 | D81: Single Family | E81: HVAC | G81: per ton | H81: 644.56 | I81: =ROUND((BC81*AE81*(1/AT81-1/T81))/1000+(BF81*AE81*(1/AZ81-1/AH81)/1000),4) -> 485.7557 | J81: IL TRM v5 | K81: 0.4946595723 | L81: 0.72 | M81: IL TRM v5 | N81: =ROUND((AE81*(1/AW81-1/AN81)/1000)*L81,4) -> 0.3851 | P81: 982 | Q81: EFLHcool, from PY2016 analysis (Normalized EnergyStar KC Cooling Hours to IL TRM CDD) | R81: 12 | S81: SEER | T81: 18.34 | U81: per PY2016 Metadata | V81: SEER | X81: SEERexist per IL TRM v5 | Y81: =ROUND((BC81*AE81*(1/AT81-1/T81))/1000+(BF81*AE81*(1/AZ81-1/AH81)/1000),4) | Z81: =ROUND((AE81*(1/AW81-1/AN81)/1000)*L81,4) | AA81: 2018-04-01 | AB81: 2019-03-31 | AE81: 12000 | AF81: Allows for Capacity input in Tons; converts tons to BTUs | AH81: 9.560606061 | AI81: HSPF_ee | AJ81: Calculated per PY2016 Metadata | AK81: 8.2 | AL81: HSPF_base | AM81: Illinois TRM | AN81: 13.813688 | AO81: EER_ee | AP81: IL TRM V5 | AR81: EERbase | AS81: IL TRM V5 | AT81: 14 | AU81: SEERbase | AV81: IL TRM V5 | AW81: 8.55 | AX81: EERbase | AY81: IL TRM V5 | AZ81: 8.2 | BA81: HSPFbase | BB81: Arkansas TRM v7 | BC81: 982 | BD81: EFLHcool | BE81: The EFLH Cooling and Heating hours are based on a EnergyStar study that was normalized (based on HDD and CDD) to Kansas City. This was for both AC and HP units. | BF81: 1376 | BG81: EFLHheat | BH81: The EFLH Cooling and Heating hours are based on a EnergyStar study that was normalized (based on HDD and CDD) to Kansas City. This was for both AC and HP units.
A82: Whole House Efficiency | B82: ASHP SEER 17 - Replace Electric Resistance Heat - Early Replacement (future) | C82: 319.1 | D82: Single Family | E82: HVAC | G82: per ton | H82: 644.56 | I82: =ROUND((BC82*AE82*(1/AT82-1/T82))/1000+(BF82*AE82*(1/AZ82-1/AH82)/1000),4) -> 436.2638 | J82: IL TRM v5 | K82: 0.5911433604 | L82: 0.72 | M82: IL TRM v5 | N82: =ROUND((AE82*(1/AW82-1/AN82)/1000)*L82,4) -> 0.1092 | P82: 738 | Q82: EFLHcool, from 2017 MO TRM | R82: 12 | S82: SEER | T82: 18.34 | U82: per PY2016 Metadata | V82: =AU82 -> SEERbase | W82: =AT82 -> 14 | X82: =AV82 -> IL TRM V6 | Y82: =cellformula(I82) -> =ROUND((BC82*AE82*(1/AT82-1/T82))/1000+(BF82*AE82*(1/AZ82-1/AH82)/1000),4) | Z82: =cellformula(N82) -> =ROUND((AE82*(1/AW82-1/AN82)/1000)*L82,4) | AA82: 2019-04-01 | AE82: 12000 | AF82: Allows for Capacity input in Tons; converts tons to BTUs | AH82: 9.560606061 | AI82: HSPF_ee | AJ82: Calculated per PY2016 Metadata | AK82: 8.2 | AL82: HSPF_base | AM82: Illinois TRM | AN82: =(-0.02*T82^2)+(1.12*T82) -> 13.813688 | AO82: EER_ee | AP82: Based on SEER value of efficient equipment | AT82: 14 | AU82: SEERbase | AV82: IL TRM V6 | AW82: =(-0.02*AT82^2)+(1.12*AT82) -> 11.76 | AX82: EERbase | AY82: Based on SEER base | AZ82: 8.2 | BA82: HSPFbase | BB82: Arkansas TRM v7 | BC82: 738 | BD82: EFLHcool | BE82: 2017 MO TRM | BF82: 1376 | BG82: EFLHheat | BH82: The EFLH Cooling and Heating hours are based on a EnergyStar study that was normalized (based on HDD and CDD) to Kansas City. This was for both AC and HP units.
A83: Whole House Efficiency | B83: Furnace Filter Alarm | C83: 234.1 | D83: Single Family | E83: HVAC | F83: Kits | G83: per unit | H83: 2.8 | I83: =ROUND((AE83*AQ83*AH83*AK83)+(AE83*AN83*AH83*AK83),4) -> 83.8269 | J83: PA TRM | K83: =I83/P83 -> 0.05077341005 | L83: 0.647 | M83: PA TRM | N83: =ROUND(((AE83*AN83*AH83*AK83)/AN83)*L83,4) -> 0.023 | O83: PA TRM | P83: 1651 | Q83: PA TRM | R83: 14 | S83: Furnace Filter Alarm | V83: No Filter | Y83: =cellformula(I83) -> =ROUND((AE83*AQ83*AH83*AK83)+(AE83*AN83*AH83*AK83),4) | Z83: =cellformula(N83) -> =ROUND(((AE83*AN83*AH83*AK83)/AN83)*L83,4) | AA83: 2018-04-01 | AB83: 2019-03-31 | AE83: 0.5 | AF83: Average motor full load electric demand | AG83: PA TRM | AH83: 0.15 | AI83: Efficiency Improvement | AJ83: PA TRM | AK83: 0.474 | AL83: Installation Rate | AM83: PA TRM | AN83: 982 | AO83: EFLHcool | AP83: The EFLH Cooling and Heating hours are based on a EnergyStar study that was normalized (based on HDD and CDD) to Kansas City. This was for both AC and HP units. | AQ83: 1376 | AR83: EFLHheat | AS83: The EFLH Cooling and Heating hours are based on a EnergyStar study that was normalized (based on HDD and CDD) to Kansas City. This was for both AC and HP units.
A84: Whole House Efficiency | B84: Furnace Filter Alarm | C84: 234.2 | D84: Single Family | E84: HVAC | F84: Kits | G84: per unit | H84: 2.8 | I84: =ROUND((AE84*AQ84*AH84*AK84)+(AE84*AN84*AH84*AK84),4) -> 75.1527 | J84: PA TRM | K84: 0.04551950333 | L84: 0.647 | M84: PA TRM | N84: =ROUND(((AE84*AN84*AH84*AK84)/AN84)*L84,4) -> 0.023 | O84: PA TRM | P84: 1651 | Q84: PA TRM | R84: 14 | S84: Furnace Filter Alarm | V84: No Filter | Y84: =cellformula(I84) -> =ROUND((AE84*AQ84*AH84*AK84)+(AE84*AN84*AH84*AK84),4) | Z84: =cellformula(N84) -> =ROUND(((AE84*AN84*AH84*AK84)/AN84)*L84,4) | AA84: 2019-04-01 | AE84: 0.5 | AF84: Average motor full load electric demand | AG84: PA TRM | AH84: 0.15 | AI84: Efficiency Improvement | AJ84: PA TRM | AK84: 0.474 | AL84: Installation Rate | AM84: PA TRM | AN84: 738 | AO84: EFLHcool | AP84: The EFLH Cooling and Heating hours are based on a EnergyStar study that was normalized (based on HDD and CDD) to Kansas City. This was for both AC and HP units. | AQ84: 1376 | AR84: EFLHheat | AS84: The EFLH Cooling and Heating hours are based on a EnergyStar study that was normalized (based on HDD and CDD) to Kansas City. This was for both AC and HP units.
A85: Whole House Efficiency | B85: Indoor Coil Cleaning_SF:CAC | C85: 262 | D85: Single Family | E85: HVAC | G85: per measure | H85: 63 | I85: =ROUND((AT85*AK85*(1/AN85))/1000*AE85,4) -> 58.92 | J85: IL TRM v5 | L85: 0.68 | N85: =ROUND(AK85*(1/AQ85)/1000*AH85*L85,4) -> 0.0177 | O85: IL TRM v5 | R85: 5 | S85: Sub-measure of HVAC Maintenance and Tune-up | V85: kWh, kW | Y85: =ROUND((AT85*AK85*(1/AN85))/1000*AE85,4) | Z85: =ROUND(AK85*(1/AQ85)/1000*AH85*L85,4) | AA85: 2018-04-01 | AB85: 2019-03-31 | AE85: 0.05 | AF85: MFe | AG85: IL TRM v5 | AH85: 0.02 | AI85: MFd | AJ85: IL TRM v5 | AK85: 12000 | AL85: Allows for Capacity input in Tons; converts tons to BTUs | AN85: 10 | AO85: SEERCAC | AP85: IL TRM v5 | AQ85: 9.2 | AR85: EER | AS85: IL TRM v5 | AT85: 982 | AU85: EFLHcool | AV85: The EFLH Cooling and Heating hours are based on a EnergyStar study that was normalized (based on HDD and CDD) to Kansas City. This was for both AC and HP units. | AW85: 1376 | AX85: EFLHheat | AY85: The EFLH Cooling and Heating hours are based on a EnergyStar study that was normalized (based on HDD and CDD) to Kansas City. This was for both AC and HP units.
A86: Whole House Efficiency | B86: Indoor Coil Cleaning_SF:CAC | C86: 262.1 | D86: Single Family | E86: HVAC | G86: per measure | H86: 63 | I86: =ROUND((AT86*AK86*(1/AN86))/1000*AE86,4) -> 44.28 | J86: IL TRM v5 | L86: 0.68 | N86: =ROUND(AK86*(1/AQ86)/1000*AH86*L86,4) -> 0.0177 | O86: IL TRM v5 | R86: 5 | S86: Sub-measure of HVAC Maintenance and Tune-up | V86: kWh, kW | Y86: =cellformula(I86) -> =ROUND((AT86*AK86*(1/AN86))/1000*AE86,4) | Z86: =cellformula(N86) -> =ROUND(AK86*(1/AQ86)/1000*AH86*L86,4) | AA86: 2019-04-01 | AE86: 0.05 | AF86: MFe | AG86: IL TRM v5 | AH86: 0.02 | AI86: MFd | AJ86: IL TRM v5 | AK86: 12000 | AL86: Allows for Capacity input in Tons; converts tons to BTUs | AN86: 10 | AO86: SEERCAC | AP86: IL TRM v5 | AQ86: 9.2 | AR86: EER | AS86: IL TRM v5 | AT86: 738 | AU86: EFLHcool | AV86: 2017 MO TRM | AW86: 1376 | AX86: EFLHheat | AY86: The EFLH Cooling and Heating hours are based on a EnergyStar study that was normalized (based on HDD and CDD) to Kansas City. This was for both AC and HP units.
A87: Whole House Efficiency | B87: Indoor Coil Cleaning_SF:ASHP | C87: 263 | D87: Single Family | E87: HVAC | G87: per measure | H87: 63 | I87: =ROUND((AW87*AK87*(1/AN87))/1000*AE87+(AZ87*AK87*(1/AT87))/1000*AE87,4) -> 180.3318 | J87: IL TRM v5 | L87: 0.72 | N87: 0.0188 | O87: IL TRM v5 | R87: 5 | S87: Sub-measure of HVAC Maintenance and Tune-up | V87: kWh, kW | Y87: =ROUND((AW87*AK87*(1/AN87))/1000*AE87+(AZ87*AK87*(1/AT87))/1000*AE87,4) | Z87: =ROUND(AK87*(1/AQ87)/1000*AH87*L87,4) | AA87: 2018-04-01 | AB87: 2019-03-31 | AE87: 0.05 | AF87: MFe | AG87: IL TRM v5 | AH87: 0.02 | AI87: MFd | AJ87: IL TRM v5 | AK87: 12000 | AL87: Allows for Capacity input in Tons; converts tons to BTUs | AN87: 10 | AO87: SEERASHP | AP87: IL TRM v5 | AQ87: 9.2 | AR87: EER | AS87: IL TRM v5 | AT87: 6.8 | AU87: HSPFASHP | AV87: IL TRM v5 | AW87: 982 | AX87: EFLHcool | AZ87: 1376 | BA87: EFLHheat | BB87: The EFLH Cooling and Heating hours are based on a EnergyStar study that was normalized (based on HDD and CDD) to Kansas City. This was for both AC and HP units.
A88: Whole House Efficiency | B88: Indoor Coil Cleaning_SF:ASHP | C88: 263.1 | D88: Single Family | E88: HVAC | G88: per measure | H88: 63 | I88: =ROUND((AW88*AK88*(1/AN88))/1000*AE88+(AZ88*AK88*(1/AT88))/1000*AE88,4) -> 165.6918 | J88: IL TRM v5 | L88: 0.72 | N88: =ROUND(AK88*(1/AQ88)/1000*AH88*L88,4) -> 0.0188 | O88: IL TRM v5 | R88: 5 | S88: Sub-measure of HVAC Maintenance and Tune-up | V88: kWh, kW | Y88: =cellformula(I88) -> =ROUND((AW88*AK88*(1/AN88))/1000*AE88+(AZ88*AK88*(1/AT88))/1000*AE88,4) | Z88: =cellformula(N88) -> =ROUND(AK88*(1/AQ88)/1000*AH88*L88,4) | AA88: 2019-04-01 | AE88: 0.05 | AF88: MFe | AG88: IL TRM v5 | AH88: 0.02 | AI88: MFd | AJ88: IL TRM v5 | AK88: 12000 | AL88: Allows for Capacity input in Tons; converts tons to BTUs | AN88: 10 | AO88: SEERASHP | AP88: IL TRM v5 | AQ88: 9.2 | AR88: EER | AS88: IL TRM v5 | AT88: 6.8 | AU88: HSPFASHP | AV88: IL TRM v5 | AW88: 738 | AX88: EFLHcool | AY88: 2017 MO TRM | AZ88: 1376 | BA88: EFLHheat | BB88: The EFLH Cooling and Heating hours are based on a EnergyStar study that was normalized (based on HDD and CDD) to Kansas City. This was for both AC and HP units.
A89: Whole House Efficiency | B89: Outdoor Coil Cleaning_SF:CAC | C89: 264 | D89: Single Family | E89: HVAC | G89: per measure | H89: 31 | I89: =ROUND((AT89*AK89*(1/AN89))/1000*AE89,4) -> 58.92 | J89: IL TRM v5 | L89: 0.68 | N89: 0.0177 | O89: IL TRM v5 | R89: 5 | S89: Sub-measure of HVAC Maintenance and Tune-up | V89: kWh, kW | Y89: =ROUND((AT89*AK89*(1/AN89))/1000*AE89,4) | Z89: =ROUND(AK89*(1/AQ89)/1000*AH89*L89,4) | AA89: 2018-04-01 | AB89: 2019-03-31 | AE89: 0.05 | AF89: MFe | AG89: IL TRM v5 | AH89: 0.02 | AI89: MFd | AJ89: IL TRM v5 | AK89: 12000 | AL89: Allows for Capacity input in Tons; converts tons to BTUs | AN89: 10 | AO89: SEERCAC | AP89: IL TRM v5 | AQ89: 9.2 | AR89: EER | AS89: IL TRM v5 | AT89: 982 | AU89: EFLHcool | AV89: The EFLH Cooling and Heating hours are based on a EnergyStar study that was normalized (based on HDD and CDD) to Kansas City. This was for both AC and HP units. | AW89: 1376 | AX89: EFLHheat | AY89: The EFLH Cooling and Heating hours are based on a EnergyStar study that was normalized (based on HDD and CDD) to Kansas City. This was for both AC and HP units.
A90: Whole House Efficiency | B90: Outdoor Coil Cleaning_SF:CAC | C90: 264.1 | D90: Single Family | E90: HVAC | G90: per measure | H90: 31 | I90: =ROUND((AT90*AK90*(1/AN90))/1000*AE90,4) -> 44.28 | J90: IL TRM v5 | L90: 0.68 | N90: =ROUND(AK90*(1/AQ90)/1000*AH90*L90,4) -> 0.0177 | O90: IL TRM v5 | R90: 5 | S90: Sub-measure of HVAC Maintenance and Tune-up | V90: kWh, kW | Y90: =cellformula(I90) -> =ROUND((AT90*AK90*(1/AN90))/1000*AE90,4) | Z90: =cellformula(N90) -> =ROUND(AK90*(1/AQ90)/1000*AH90*L90,4) | AA90: 2019-04-01 | AE90: 0.05 | AF90: MFe | AG90: IL TRM v5 | AH90: 0.02 | AI90: MFd | AJ90: IL TRM v5 | AK90: 12000 | AL90: Allows for Capacity input in Tons; converts tons to BTUs | AN90: 10 | AO90: SEERCAC | AP90: IL TRM v5 | AQ90: 9.2 | AR90: EER | AS90: IL TRM v5 | AT90: 738 | AU90: EFLHcool | AV90: 2017 MO TRM | AW90: 1376 | AX90: EFLHheat | AY90: The EFLH Cooling and Heating hours are based on a EnergyStar study that was normalized (based on HDD and CDD) to Kansas City. This was for both AC and HP units.
A91: Whole House Efficiency | B91: Outdoor Coil Cleaning_SF:ASHP | C91: 265 | D91: Single Family | E91: HVAC | G91: per measure | H91: 31 | I91: =ROUND((AW91*AK91*(1/AN91))/1000*AE91+(AZ91*AK91*(1/AT91))/1000*AE91,4) -> 180.3318 | J91: IL TRM v5 | L91: 0.72 | N91: 0.0188 | O91: IL TRM v5 | R91: 5 | S91: Sub-measure of HVAC Maintenance and Tune-up | V91: kWh, kW | Y91: =ROUND((AW91*AK91*(1/AN91))/1000*AE91+(AZ91*AK91*(1/AT91))/1000*AE91,4) | Z91: =ROUND(AK91*(1/AQ91)/1000*AH91*L91,4) | AA91: 2018-04-01 | AB91: 2019-03-31 | AE91: 0.05 | AF91: MFe | AG91: IL TRM v5 | AH91: 0.02 | AI91: MFd | AJ91: IL TRM v5 | AK91: 12000 | AL91: Allows for Capacity input in Tons; converts tons to BTUs | AN91: 10 | AO91: SEERASHP | AP91: IL TRM v5 | AQ91: 9.2 | AR91: EER | AS91: IL TRM v5 | AT91: 6.8 | AU91: HSPFASHP | AV91: IL TRM v5 | AW91: 982 | AX91: EFLHcool | AZ91: 1376 | BA91: EFLHheat | BB91: The EFLH Cooling and Heating hours are based on a EnergyStar study that was normalized (based on HDD and CDD) to Kansas City. This was for both AC and HP units.
A92: Whole House Efficiency | B92: Outdoor Coil Cleaning_SF:ASHP | C92: 265.1 | D92: Single Family | E92: HVAC | G92: per measure | H92: 31 | I92: =ROUND((AW92*AK92*(1/AN92))/1000*AE92+(AZ92*AK92*(1/AT92))/1000*AE92,4) -> 165.6918 | J92: IL TRM v5 | L92: 0.72 | N92: =ROUND(AK92*(1/AQ92)/1000*AH92*L92,4) -> 0.0188 | O92: IL TRM v5 | R92: 5 | S92: Sub-measure of HVAC Maintenance and Tune-up | V92: kWh, kW | Y92: =cellformula(I92) -> =ROUND((AW92*AK92*(1/AN92))/1000*AE92+(AZ92*AK92*(1/AT92))/1000*AE92,4) | Z92: =cellformula(N92) -> =ROUND(AK92*(1/AQ92)/1000*AH92*L92,4) | AA92: 2019-04-01 | AE92: 0.05 | AF92: MFe | AG92: IL TRM v5 | AH92: 0.02 | AI92: MFd | AJ92: IL TRM v5 | AK92: 12000 | AL92: Allows for Capacity input in Tons; converts tons to BTUs | AN92: 10 | AO92: SEERASHP | AP92: IL TRM v5 | AQ92: 9.2 | AR92: EER | AS92: IL TRM v5 | AT92: 6.8 | AU92: HSPFASHP | AV92: IL TRM v5 | AW92: 738 | AX92: EFLHcool | AY92: 2017 MO TRM | AZ92: 1376 | BA92: EFLHheat | BB92: The EFLH Cooling and Heating hours are based on a EnergyStar study that was normalized (based on HDD and CDD) to Kansas City. This was for both AC and HP units.
A93: Whole House Efficiency | B93: Refrigerant Charge Adjustment (RCA)_SF: CAC | C93: 266 | D93: Single Family | E93: HVAC | G93: per measure | H93: 127 | I93: =ROUND((AT93*AK93*(1/AN93))/1000*AE93,4) -> 58.92 | J93: IL TRM v5 | L93: 0.68 | N93: 0.0177 | O93: IL TRM v5 | R93: 5 | S93: Sub-measure of HVAC Maintenance and Tune-up | V93: kWh, kW | Y93: =ROUND((AT93*AK93*(1/AN93))/1000*AE93,4) | Z93: =ROUND(AK93*(1/AQ93)/1000*AH93*L93,4) | AA93: 2018-04-01 | AB93: 2019-03-31 | AE93: 0.05 | AF93: MFe | AG93: IL TRM v5 | AH93: 0.02 | AI93: MFd | AJ93: IL TRM v5 | AK93: 12000 | AL93: Allows for Capacity input in Tons; converts tons to BTUs | AN93: 10 | AO93: SEERCAC | AP93: IL TRM v5 | AQ93: 9.2 | AR93: EER | AS93: IL TRM v5 | AT93: 982 | AU93: EFLHcool | AV93: The EFLH Cooling and Heating hours are based on a EnergyStar study that was normalized (based on HDD and CDD) to Kansas City. This was for both AC and HP units. | AW93: 1376 | AX93: EFLHheat | AY93: The EFLH Cooling and Heating hours are based on a EnergyStar study that was normalized (based on HDD and CDD) to Kansas City. This was for both AC and HP units.
A94: Whole House Efficiency | B94: Refrigerant Charge Adjustment (RCA)_SF: CAC | C94: 266.1 | D94: Single Family | E94: HVAC | G94: per measure | H94: 127 | I94: =ROUND((AT94*AK94*(1/AN94))/1000*AE94,4) -> 44.28 | J94: IL TRM v5 | L94: 0.68 | N94: =ROUND(AK94*(1/AQ94)/1000*AH94*L94,4) -> 0.0177 | O94: IL TRM v5 | R94: 5 | S94: Sub-measure of HVAC Maintenance and Tune-up | V94: kWh, kW | Y94: =cellformula(I94) -> =ROUND((AT94*AK94*(1/AN94))/1000*AE94,4) | Z94: =cellformula(N94) -> =ROUND(AK94*(1/AQ94)/1000*AH94*L94,4) | AA94: 2019-04-01 | AE94: 0.05 | AF94: MFe | AG94: IL TRM v5 | AH94: 0.02 | AI94: MFd | AJ94: IL TRM v5 | AK94: 12000 | AL94: Allows for Capacity input in Tons; converts tons to BTUs | AN94: 10 | AO94: SEERCAC | AP94: IL TRM v5 | AQ94: 9.2 | AR94: EER | AS94: IL TRM v5 | AT94: 738 | AU94: EFLHcool | AV94: 2017 MO TRM | AW94: 1376 | AX94: EFLHheat | AY94: The EFLH Cooling and Heating hours are based on a EnergyStar study that was normalized (based on HDD and CDD) to Kansas City. This was for both AC and HP units.
A95: Whole House Efficiency | B95: Refrigerant Charge Adjustment (RCA)_SF: ASHP | C95: 267 | D95: Single Family | E95: HVAC | G95: per measure | H95: 127 | I95: =ROUND((AW95*AK95*(1/AN95))/1000*AE95+(AZ95*AK95*(1/AT95))/1000*AE95,4) -> 180.3318 | J95: IL TRM v5 | L95: 0.72 | N95: 0.0188 | O95: IL TRM v5 | R95: 5 | S95: Sub-measure of HVAC Maintenance and Tune-up | V95: kWh, kW | Y95: =ROUND((AW95*AK95*(1/AN95))/1000*AE95+(AZ95*AK95*(1/AT95))/1000*AE95,4) | Z95: =ROUND(AK95*(1/AQ95)/1000*AH95*L95,4) | AA95: 2018-04-01 | AB95: 2019-03-31 | AE95: 0.05 | AF95: MFe | AG95: IL TRM v5 | AH95: 0.02 | AI95: MFd | AJ95: IL TRM v5 | AK95: 12000 | AL95: Allows for Capacity input in Tons; converts tons to BTUs | AN95: 10 | AO95: SEERASHP | AP95: IL TRM v5 | AQ95: 9.2 | AR95: EER | AS95: IL TRM v5 | AT95: 6.8 | AU95: HSPFASHP | AV95: IL TRM v5 | AW95: 982 | AX95: EFLHcool | AZ95: 1376 | BA95: EFLHheat | BB95: The EFLH Cooling and Heating hours are based on a EnergyStar study that was normalized (based on HDD and CDD) to Kansas City. This was for both AC and HP units.
A96: Whole House Efficiency | B96: Refrigerant Charge Adjustment (RCA)_SF: ASHP | C96: 267.1 | D96: Single Family | E96: HVAC | G96: per measure | H96: 127 | I96: =ROUND((AW96*AK96*(1/AN96))/1000*AE96+(AZ96*AK96*(1/AT96))/1000*AE96,4) -> 165.6918 | J96: IL TRM v5 | L96: 0.72 | N96: =ROUND(AK96*(1/AQ96)/1000*AH96*L96,4) -> 0.0188 | O96: IL TRM v5 | R96: 5 | S96: Sub-measure of HVAC Maintenance and Tune-up | V96: kWh, kW | Y96: =cellformula(I96) -> =ROUND((AW96*AK96*(1/AN96))/1000*AE96+(AZ96*AK96*(1/AT96))/1000*AE96,4) | Z96: =cellformula(N96) -> =ROUND(AK96*(1/AQ96)/1000*AH96*L96,4) | AA96: 2019-04-01 | AE96: 0.05 | AF96: MFe | AG96: IL TRM v5 | AH96: 0.02 | AI96: MFd | AJ96: IL TRM v5 | AK96: 12000 | AL96: Allows for Capacity input in Tons; converts tons to BTUs | AN96: 10 | AO96: SEERASHP | AP96: IL TRM v5 | AQ96: 9.2 | AR96: EER | AS96: IL TRM v5 | AT96: 6.8 | AU96: HSPFASHP | AV96: IL TRM v5 | AW96: 738 | AX96: EFLHcool | AY96: 2017 MO TRM | AZ96: 1376 | BA96: EFLHheat | BB96: The EFLH Cooling and Heating hours are based on a EnergyStar study that was normalized (based on HDD and CDD) to Kansas City. This was for both AC and HP units.
A97: Whole House Efficiency | B97: HVAC Maintenance and Tune-up_SF: CAC | C97: 238 | D97: Single Family | E97: HVAC | G97: per measure | H97: 70 | I97: =ROUND(173.9,4) -> 173.9 | K97: 0.0165 | L97: 0.68 | N97: =ROUND(K97*L97,4) -> 0.0112 | P97: 8640 | R97: 5 | S97: Sub-measure of HVAC Maintenance and Tune-up | T97: N/A | V97: kWh, kW | W97: N/A | Y97: =ROUND(173.9,4) | Z97: =ROUND(K97*L97,4) | AA97: 2017-04-07 | AB97: 2019-03-31 | AC97: 3020 | AD97: 4470
A98: Whole House Efficiency | B98: HVAC Maintenance and Tune-up_SF: CAC | C98: 238.1 | D98: Single Family | E98: HVAC | G98: per measure | H98: 70 | I98: =ROUND(173.9,4) -> 173.9 | K98: 0.0165 | L98: 0.68 | N98: =ROUND(K98*L98,4) -> 0.0112 | P98: 8640 | R98: 5 | S98: Sub-measure of HVAC Maintenance and Tune-up | T98: N/A | V98: kWh, kW | W98: N/A | Y98: =cellformula(I98) -> =ROUND(173.9,4) | Z98: =cellformula(N98) -> =ROUND(K98*L98,4) | AA98: 2019-04-01 | AC98: 3020 | AD98: 4470
A99: Whole House Efficiency | B99: GSHP - Early Replacement GSHP_SF: HVAC, replace ASHP | C99: 239.1 | D99: Single Family | E99: HVAC | G99: per unit | H99: 4859 | I99: =ROUND(((BC99*AE99*(1/W99)-(1/T99))/1000)+((BF99*AE99*(1/AH99)-(1/(AK99*3.412)))/1000)+((AN99*AQ99*(1/AT99)*AW99)/1000),4) -> 6554.2619 | J99: IL TRM v5 | K99: =I99/P99 -> 6.67440112 | L99: 0.72 | M99: IL TRM v5 | N99: =ROUND(((AE99*(1/AZ99)-(1/T99))/1000)*L99,4) -> 1.0105 | O99: IL TRM v5 | P99: 982 | Q99: EFLHcool, from PY2016 analysis (Normalized EnergyStar KC Cooling Hours to IL TRM CDD) | R99: 18 | S99: Part Load EER Efficiency of efficient GSHP unit | T99: 23 | U99: Not verified. | V99: SEER Efficiency of existing cooling unit = Actual, if available | W99: 8.55 | X99: IL TRM v5 | Y99: =ROUND(((BC99*AE99*(1/W99)-(1/T99))/1000)+((BF99*AE99*(1/AH99)-(1/(AK99*3.412)))/1000)+((AN99*AQ99*(1/AT99)*AW99)/1000),4) | Z99: =ROUND(((AE99*(1/AZ99)-(1/T99))/1000)*L99,4) | AA99: 2018-04-01 | AB99: 2019-03-31 | AE99: 12000 | AF99: Allows for Capacity input in Tons; converts tons to BTUs | AH99: 5.44 | AI99: HSPFexist = Heating System Performance Factor of existing heating system 5.44 for replacing ASHP 3.41 for replacing Electric Resistance Heat | AJ99: IL TRM v5 | AK99: 4.5 | AL99: COPpl = Part Load Coefficient of Performance, Actual installed value | AM99: This example value is the mean of values listed in ENERGY STAR criteria here: https://www.energystar.gov/index.cfm?c=most_efficient.me_geothermal_heat_pumps , https://data.energystar.gov/Active-Specifications/ENERGY-STAR-Most-Efficient-Geothermal-Heat-Pumps/4c82-7ysy . Ideally this value would come from the specs of the actual unit installed. | AN99: 1 | AO99: ElecDHW: = 1 if HW system is electric = 0 if HW system is not electric | AP99: IL TRM v5 | AQ99: 0.44 | AR99: %DHWdisplaced = Percentage of total DHW load the GSHP will provide. = Actual, if known = 0% if no desuperheater installed = 44% if desuperheater installed and actual is unknown | AS99: IL TRM v5 | AT99: 2.0005 | AU99: Efelec = Energy Factor of electric WH. = Actual, if known = 0.96 – (0.0003 * rated volume in gallons) for 55+ gallon DHW = 2.057 – (0.00113 * rated volume in gallons) for < 55 gallon DHW | AV99: IL TRM v5 | AW99: 9732988.447 | AX99: GSHP Coefficient = GPD * Household * 365.25 * γWater * (Tout - Tin) | AY99: IL TRM v5 | AZ99: 8.55 | BA99: Energy Efficiency Ratio of existing cooling unit = Actual, if available = 8.55 for replacing ASHP = 8.15 for replacing Central AC | BB99: IL TRM v5 | BC99: 982 | BD99: EFLHcool | BE99: The EFLH Cooling and Heating hours are based on a EnergyStar study that was normalized (based on HDD and CDD) to Kansas City. This was for both AC and HP units. | BF99: 1376 | BG99: EFLHheat | BH99: The EFLH Cooling and Heating hours are based on a EnergyStar study that was normalized (based on HDD and CDD) to Kansas City. This was for both AC and HP units.
A100: Whole House Efficiency | B100: GSHP - Early Replacement GSHP_SF: HVAC, replace ASHP | C100: 239.2 | D100: Single Family | E100: HVAC | G100: per unit | H100: 4859 | I100: =ROUND(((BC100*AE100*(1/W100)-(1/T100))/1000)+((BF100*AE100*(1/AH100)-(1/(AK100*3.412)))/1000)+((AN100*AQ100*(1/AT100)*AW100)/1000),4) -> 6211.8058 | J100: IL TRM v5 | K100: =I100/P100 -> 8.41708103 | L100: 0.72 | M100: IL TRM v5 | N100: =ROUND(((AE100*(1/AZ100)-(1/T100))/1000)*L100,4) -> 1.0105 | O100: IL TRM v5 | P100: 738 | Q100: EFLHcool, from 2017 MO TRM | R100: 18 | S100: Part Load EER Efficiency of efficient GSHP unit | T100: 23 | U100: Not verified. | V100: SEER Efficiency of existing cooling unit = Actual, if available | W100: 8.55 | X100: IL TRM v5 | Y100: =cellformula(I100) -> =ROUND(((BC100*AE100*(1/W100)-(1/T100))/1000)+((BF100*AE100*(1/AH100)-(1/(AK100*3.412)))/1000)+((AN100*AQ100*(1/AT100)*AW100)/1000),4) | Z100: =cellformula(N100) -> =ROUND(((AE100*(1/AZ100)-(1/T100))/1000)*L100,4) | AA100: 2019-04-01 | AE100: 12000 | AF100: Allows for Capacity input in Tons; converts tons to BTUs | AH100: 5.44 | AI100: HSPFexist = Heating System Performance Factor of existing heating system 5.44 for replacing ASHP 3.41 for replacing Electric Resistance Heat | AJ100: IL TRM v5 | AK100: 4.5 | AL100: COPpl = Part Load Coefficient of Performance, Actual installed value | AM100: This example value is the mean of values listed in ENERGY STAR criteria here: https://www.energystar.gov/index.cfm?c=most_efficient.me_geothermal_heat_pumps , https://data.energystar.gov/Active-Specifications/ENERGY-STAR-Most-Efficient-Geothermal-Heat-Pumps/4c82-7ysy . Ideally this value would come from the specs of the actual unit installed. | AN100: 1 | AO100: ElecDHW: = 1 if HW system is electric = 0 if HW system is not electric | AP100: IL TRM v5 | AQ100: 0.44 | AR100: %DHWdisplaced = Percentage of total DHW load the GSHP will provide. = Actual, if known = 0% if no desuperheater installed = 44% if desuperheater installed and actual is unknown | AS100: IL TRM v5 | AT100: 2.0005 | AU100: Efelec = Energy Factor of electric WH. = Actual, if known = 0.96 – (0.0003 * rated volume in gallons) for 55+ gallon DHW = 2.057 – (0.00113 * rated volume in gallons) for < 55 gallon DHW | AV100: IL TRM v5 | AW100: 9732988.447 | AX100: GSHP Coefficient = GPD * Household * 365.25 * γWater * (Tout - Tin) | AY100: IL TRM v5 | AZ100: 8.55 | BA100: Energy Efficiency Ratio of existing cooling unit = Actual, if available = 8.55 for replacing ASHP = 8.15 for replacing Central AC | BB100: IL TRM v5 | BC100: 738 | BD100: EFLHcool | BE100: 2017 MO TRM | BF100: 1376 | BG100: EFLHheat | BH100: The EFLH Cooling and Heating hours are based on a EnergyStar study that was normalized (based on HDD and CDD) to Kansas City. This was for both AC and HP units.
A101: Whole House Efficiency | B101: GSHP - Replace at Fail GSHP_SF: HVAC | C101: 240.1 | D101: Single Family | E101: HVAC | G101: per unit | H101: 3200 | I101: =ROUND(((BC101*AE101*(1/W101)-(1/T101))/1000)+((BF101*AE101*(1/AH101)-(1/(AK101*3.412)))/1000)+((AN101*AQ101*(1/AT101)*AW101)/1000),4) -> 5225.6534 | J101: IL TRM v5 | K101: =I101/P101 -> 5.321439308 | L101: 0.72 | M101: IL TRM v5 | N101: =ROUND(((AE101*(1/AZ101)-(1/T101))/1000)*L101,4) -> 0.7322 | O101: IL TRM v5 | P101: 982 | Q101: EFLHcool, from PY2016 analysis (Normalized EnergyStar KC Cooling Hours to IL TRM CDD) | R101: 18 | S101: Part Load EER Efficiency of efficient GSHP unit | T101: 23 | U101: Not verified. | V101: GSHP replacing Failed GSHP – 23 EER minimum (EER) | W101: 11 | X101: IL TRM v5 | Y101: =ROUND(((BC101*AE101*(1/W101)-(1/T101))/1000)+((BF101*AE101*(1/AH101)-(1/(AK101*3.412)))/1000)+((AN101*AQ101*(1/AT101)*AW101)/1000),4) | Z101: =ROUND(((AE101*(1/AZ101)-(1/T101))/1000)*L101,4) | AA101: 2018-04-01 | AB101: 2019-03-31 | AE101: 12000 | AF101: Allows for Capacity input in Tons; converts tons to BTUs | AH101: 8.2 | AI101: HSPFbase = Heating System Performance Factor of new replacement baseline heating system 8.2 for replacing ASHP 3.41 for replacing Electric Resistance Heat | AJ101: IL TRM v5 | AK101: 4.5 | AL101: COPpl = Part Load Coefficient of Performance, Actual installed value | AM101: This example value is the mean of values listed in ENERGY STAR criteria here: https://www.energystar.gov/index.cfm?c=most_efficient.me_geothermal_heat_pumps , https://data.energystar.gov/Active-Specifications/ENERGY-STAR-Most-Efficient-Geothermal-Heat-Pumps/4c82-7ysy . Ideally this value would come from the specs of the actual unit installed. | AN101: 1 | AO101: ElecDHW: = 1 if HW system is electric = 0 if HW system is not electric | AP101: IL TRM v5 | AQ101: 0.44 | AR101: %DHWdisplaced = Percentage of total DHW load the GSHP will provide. = Actual, if known = 0% if no desuperheater installed = 44% if desuperheater installed and actual is unknown | AS101: IL TRM v5 | AT101: 2.0005 | AU101: Efelec = Energy Factor of electric WH. = Actual, if known = 0.96 – (0.0003 * rated volume in gallons) for 55+ gallon DHW = 2.057 – (0.00113 * rated volume in gallons) for < 55 gallon DHW | AV101: IL TRM v5 | AW101: 9732988.447 | AX101: GSHP Coefficient = GPD * Household * 365.25 * γWater * (Tout - Tin) | AY101: IL TRM v5 | AZ101: 11.8 | BA101: EER Efficiency of new replacement ASHP | BB101: IL TRM v5 | BC101: 982 | BD101: EFLHcool | BE101: The EFLH Cooling and Heating hours are based on a EnergyStar study that was normalized (based on HDD and CDD) to Kansas City. This was for both AC and HP units. | BF101: 1376 | BG101: EFLHheat | BH101: The EFLH Cooling and Heating hours are based on a EnergyStar study that was normalized (based on HDD and CDD) to Kansas City. This was for both AC and HP units.
A102: Whole House Efficiency | B102: GSHP - Replace at Fail GSHP_SF: HVAC | C102: 240.2 | D102: Single Family | E102: HVAC | G102: per measure | H102: 3200 | I102: =ROUND(((BC102*AE102*(1/W102)-(1/T102))/1000)+((BF102*AE102*(1/AH102)-(1/(AK102*3.412)))/1000)+((AN102*AQ102*(1/AT102)*AW102)/1000),4) -> 4959.4716 | J102: IL TRM v5 | K102: =I102/P102 -> 6.72015122 | L102: 0.72 | M102: IL TRM v5 | N102: =ROUND(((AE102*(1/AZ102)-(1/T102))/1000)*L102,4) -> 0.7322 | O102: IL TRM v5 | P102: 738 | Q102: EFLHcool, from 2017 MO TRM | R102: 18 | S102: Part Load EER Efficiency of efficient GSHP unit | T102: 23 | U102: Not verified. | V102: GSHP replacing Failed GSHP – 23 EER minimum (EER) | W102: 11 | X102: IL TRM v5 | Y102: =cellformula(I102) -> =ROUND(((BC102*AE102*(1/W102)-(1/T102))/1000)+((BF102*AE102*(1/AH102)-(1/(AK102*3.412)))/1000)+((AN102*AQ102*(1/AT102)*AW102)/1000),4) | Z102: =cellformula(N102) -> =ROUND(((AE102*(1/AZ102)-(1/T102))/1000)*L102,4) | AA102: 2019-04-01 | AE102: 12000 | AF102: Allows for Capacity input in Tons; converts tons to BTUs | AH102: 8.2 | AI102: HSPFbase = Heating System Performance Factor of new replacement baseline heating system 8.2 for replacing ASHP 3.41 for replacing Electric Resistance Heat | AJ102: IL TRM v5 | AK102: 4.5 | AL102: COPpl = Part Load Coefficient of Performance, Actual installed value | AM102: This example value is the mean of values listed in ENERGY STAR criteria here: https://www.energystar.gov/index.cfm?c=most_efficient.me_geothermal_heat_pumps , https://data.energystar.gov/Active-Specifications/ENERGY-STAR-Most-Efficient-Geothermal-Heat-Pumps/4c82-7ysy . Ideally this value would come from the specs of the actual unit installed. | AN102: 1 | AO102: ElecDHW: = 1 if HW system is electric = 0 if HW system is not electric | AP102: IL TRM v5 | AQ102: 0.44 | AR102: %DHWdisplaced = Percentage of total DHW load the GSHP will provide. = Actual, if known = 0% if no desuperheater installed = 44% if desuperheater installed and actual is unknown | AS102: IL TRM v5 | AT102: 2.0005 | AU102: Efelec = Energy Factor of electric WH. = Actual, if known = 0.96 – (0.0003 * rated volume in gallons) for 55+ gallon DHW = 2.057 – (0.00113 * rated volume in gallons) for < 55 gallon DHW | AV102: IL TRM v5 | AW102: 9732988.447 | AX102: GSHP Coefficient = GPD * Household * 365.25 * γWater * (Tout - Tin) | AY102: IL TRM v5 | AZ102: 11.8 | BA102: EER Efficiency of new replacement ASHP | BB102: IL TRM v5 | BC102: 738 | BD102: EFLHcool | BE102: 2017 MO TRM | BF102: 1376 | BG102: EFLHheat | BH102: The EFLH Cooling and Heating hours are based on a EnergyStar study that was normalized (based on HDD and CDD) to Kansas City. This was for both AC and HP units.
A103: Whole House Efficiency | B103: GSHP - AC + Early Replacement Electric Resistance Furnace_SF: HVAC | C103: 241.1 | D103: Single Family | E103: HVAC | G103: per unit | H103: 5250 | I103: =ROUND(((BC103*AE103*(1/W103)-(1/T103))/1000)+((BF103*AE103*(1/AH103)-(1/(AK103*3.412)))/1000)+((AN103*AQ103*(1/AT103)*AW103)/1000),4) -> 8428.8405 | J103: IL TRM v5 | K103: =I103/P103 -> 8.583340631 | L103: 0.72 | M103: IL TRM v5 | N103: =ROUND(((AE103*(1/AZ103)-(1/T103))/1000)*L103,4) -> 1.0601 | P103: 982 | Q103: EFLHcool, from PY2016 analysis (Normalized EnergyStar KC Cooling Hours to IL TRM CDD) | R103: 18 | S103: Part Load EER Efficiency of efficient GSHP unit | T103: 23 | U103: Not verified. | V103: SEER Efficiency of existing cooling unit = Actual, if available | W103: 8.15 | X103: IL TRM v5 | Y103: =ROUND(((BC103*AE103*(1/W103)-(1/T103))/1000)+((BF103*AE103*(1/AH103)-(1/(AK103*3.412)))/1000)+((AN103*AQ103*(1/AT103)*AW103)/1000),4) | Z103: =ROUND(((AE103*(1/AZ103)-(1/T103))/1000)*L103,4) | AA103: 2018-04-01 | AB103: 2019-03-31 | AE103: 12000 | AF103: Allows for Capacity input in Tons; converts tons to BTUs | AH103: 3.41 | AI103: HSPFexist = Heating System Performance Factor of existing heating system 5.44 for replacing ASHP 3.41 for replacing Electric Resistance Heat | AJ103: IL TRM v5 | AK103: 4.5 | AL103: COPpl = Part Load Coefficient of Performance, Actual installed value | AM103: This example value is the mean of values listed in ENERGY STAR criteria here: https://www.energystar.gov/index.cfm?c=most_efficient.me_geothermal_heat_pumps , https://data.energystar.gov/Active-Specifications/ENERGY-STAR-Most-Efficient-Geothermal-Heat-Pumps/4c82-7ysy . Ideally this value would come from the specs of the actual unit installed. | AN103: 1 | AO103: ElecDHW: = 1 if HW system is electric = 0 if HW system is not electric | AP103: IL TRM v5 | AQ103: 0.44 | AR103: %DHWdisplaced = Percentage of total DHW load the GSHP will provide. = Actual, if known = 0% if no desuperheater installed = 44% if desuperheater installed and actual is unknown | AS103: IL TRM v5 | AT103: 2.0005 | AU103: Efelec = Energy Factor of electric WH. = Actual, if known = 0.96 – (0.0003 * rated volume in gallons) for 55+ gallon DHW = 2.057 – (0.00113 * rated volume in gallons) for < 55 gallon DHW | AV103: IL TRM v5 | AW103: 9732988.447 | AX103: GSHP Coefficient = GPD * Household * 365.25 * γWater * (Tout - Tin) | AY103: IL TRM v5 | AZ103: 8.15 | BA103: Energy Efficiency Ratio of existing cooling unit = Actual, if available = 8.55 for replacing ASHP = 8.15 for replacing Central AC | BB103: IL TRM v5 | BC103: 982 | BD103: EFLHcool | BE103: The EFLH Cooling and Heating hours are based on a EnergyStar study that was normalized (based on HDD and CDD) to Kansas City. This was for both AC and HP units. | BF103: 1376 | BG103: EFLHheat | BH103: The EFLH Cooling and Heating hours are based on a EnergyStar study that was normalized (based on HDD and CDD) to Kansas City. This was for both AC and HP units.
A104: Whole House Efficiency | B104: GSHP - AC + Early Replacement Electric Resistance Furnace_SF: HVAC | C104: 241.2 | D104: Single Family | E104: HVAC | G104: per unit | H104: 5250 | I104: =ROUND(((BC104*AE104*(1/W104)-(1/T104))/1000)+((BF104*AE104*(1/AH104)-(1/(AK104*3.412)))/1000)+((AN104*AQ104*(1/AT104)*AW104)/1000),4) -> 8069.5767 | J104: IL TRM v5 | K104: =I104/P104 -> 10.93438577 | L104: 0.72 | M104: IL TRM v5 | N104: =ROUND(((AE104*(1/AZ104)-(1/T104))/1000)*L104,4) -> 1.0601 | P104: 738 | Q104: EFLHcool, from 2017 MO TRM | R104: 18 | S104: Part Load EER Efficiency of efficient GSHP unit | T104: 23 | U104: Not verified. | V104: SEER Efficiency of existing cooling unit = Actual, if available | W104: 8.15 | X104: IL TRM v5 | Y104: =cellformula(I104) -> =ROUND(((BC104*AE104*(1/W104)-(1/T104))/1000)+((BF104*AE104*(1/AH104)-(1/(AK104*3.412)))/1000)+((AN104*AQ104*(1/AT104)*AW104)/1000),4) | Z104: =cellformula(N104) -> =ROUND(((AE104*(1/AZ104)-(1/T104))/1000)*L104,4) | AA104: 2019-04-01 | AE104: 12000 | AF104: Allows for Capacity input in Tons; converts tons to BTUs | AH104: 3.41 | AI104: HSPFexist = Heating System Performance Factor of existing heating system 5.44 for replacing ASHP 3.41 for replacing Electric Resistance Heat | AJ104: IL TRM v5 | AK104: 4.5 | AL104: COPpl = Part Load Coefficient of Performance, Actual installed value | AM104: This example value is the mean of values listed in ENERGY STAR criteria here: https://www.energystar.gov/index.cfm?c=most_efficient.me_geothermal_heat_pumps , https://data.energystar.gov/Active-Specifications/ENERGY-STAR-Most-Efficient-Geothermal-Heat-Pumps/4c82-7ysy . Ideally this value would come from the specs of the actual unit installed. | AN104: 1 | AO104: ElecDHW: = 1 if HW system is electric = 0 if HW system is not electric | AP104: IL TRM v5 | AQ104: 0.44 | AR104: %DHWdisplaced = Percentage of total DHW load the GSHP will provide. = Actual, if known = 0% if no desuperheater installed = 44% if desuperheater installed and actual is unknown | AS104: IL TRM v5 | AT104: 2.0005 | AU104: Efelec = Energy Factor of electric WH. = Actual, if known = 0.96 – (0.0003 * rated volume in gallons) for 55+ gallon DHW = 2.057 – (0.00113 * rated volume in gallons) for < 55 gallon DHW | AV104: IL TRM v5 | AW104: 9732988.447 | AX104: GSHP Coefficient = GPD * Household * 365.25 * γWater * (Tout - Tin) | AY104: IL TRM v5 | AZ104: 8.15 | BA104: Energy Efficiency Ratio of existing cooling unit = Actual, if available = 8.55 for replacing ASHP = 8.15 for replacing Central AC | BB104: IL TRM v5 | BC104: 738 | BD104: EFLHcool | BE104: 2017 MO TRM | BF104: 1376 | BG104: EFLHheat | BH104: The EFLH Cooling and Heating hours are based on a EnergyStar study that was normalized (based on HDD and CDD) to Kansas City. This was for both AC and HP units.
A105: Whole House Efficiency | B105: GSHP - AC + Replace at Fail Electric Resistance Furnace_SF: HVAC | C105: 242.1 | D105: Single Family | E105: HVAC | G105: per unit | H105: 4717 | I105: =ROUND(((BC105*AE105*(1/W105)-(1/T105))/1000)+((BF105*AE105*(1/AH105)-(1/(AK105*3.412)))/1000)+((AN105*AQ105*(1/AT105)*AW105)/1000),4) -> 8054.2236 | J105: IL TRM v5 | K105: =I105/P105 -> 8.201857026 | L105: 0.72 | M105: IL TRM v5 | N105: =ROUND(((AE105*(1/AZ105)-(1/T105))/1000)*L105,4) -> 0.7854 | O105: IL TRM v5 | P105: 982 | Q105: EFLHcool, from PY2016 analysis (Normalized EnergyStar KC Cooling Hours to IL TRM CDD) | R105: 18 | S105: Part Load EER Efficiency of efficient GSHP unit | T105: 23 | U105: Not verified. | V105: GSHP replacing failed AC w/ electric furnace – 23 EER minimum (EER) | W105: 11 | X105: IL TRM v5 | Y105: =ROUND(((BC105*AE105*(1/W105)-(1/T105))/1000)+((BF105*AE105*(1/AH105)-(1/(AK105*3.412)))/1000)+((AN105*AQ105*(1/AT105)*AW105)/1000),4) | Z105: =ROUND(((AE105*(1/AZ105)-(1/T105))/1000)*L105,4) | AA105: 2018-04-01 | AB105: 2019-03-31 | AE105: 12000 | AF105: Allows for Capacity input in Tons; converts tons to BTUs | AH105: 3.41 | AI105: HSPFbase = Heating System Performance Factor of new replacement baseline heating system 8.2 for replacing ASHP 3.41 for replacing Electric Resistance Heat | AJ105: IL TRM v5 | AK105: 4.5 | AL105: COPpl = Part Load Coefficient of Performance, Actual installed value | AM105: This example value is the mean of values listed in ENERGY STAR criteria here: https://www.energystar.gov/index.cfm?c=most_efficient.me_geothermal_heat_pumps , https://data.energystar.gov/Active-Specifications/ENERGY-STAR-Most-Efficient-Geothermal-Heat-Pumps/4c82-7ysy . Ideally this value would come from the specs of the actual unit installed. | AN105: 1 | AO105: ElecDHW: = 1 if HW system is electric = 0 if HW system is not electric | AP105: IL TRM v5 | AQ105: 0.44 | AR105: %DHWdisplaced = Percentage of total DHW load the GSHP will provide. = Actual, if known = 0% if no desuperheater installed = 44% if desuperheater installed and actual is unknown | AS105: IL TRM v5 | AT105: 2.0005 | AU105: Efelec = Energy Factor of electric WH. = Actual, if known = 0.96 – (0.0003 * rated volume in gallons) for 55+ gallon DHW = 2.057 – (0.00113 * rated volume in gallons) for < 55 gallon DHW | AV105: IL TRM v5 | AW105: 9732988.447 | AX105: GSHP Coefficient = GPD * Household * 365.25 * γWater * (Tout - Tin) | AY105: IL TRM v5 | AZ105: 11 | BA105: EER Efficiency of new replacement Central AC | BB105: IL TRM v5 | BC105: 982 | BD105: EFLHcool | BE105: The EFLH Cooling and Heating hours are based on a EnergyStar study that was normalized (based on HDD and CDD) to Kansas City. This was for both AC and HP units. | BF105: 1376 | BG105: EFLHheat | BH105: The EFLH Cooling and Heating hours are based on a EnergyStar study that was normalized (based on HDD and CDD) to Kansas City. This was for both AC and HP units.
A106: Whole House Efficiency | B106: GSHP - AC + Replace at Fail Electric Resistance Furnace_SF: HVAC | C106: 242.2 | D106: Single Family | E106: HVAC | G106: per unit | H106: 4717 | I106: =ROUND(((BC106*AE106*(1/W106)-(1/T106))/1000)+((BF106*AE106*(1/AH106)-(1/(AK106*3.412)))/1000)+((AN106*AQ106*(1/AT106)*AW106)/1000),4) -> 7788.0418 | J106: IL TRM v5 | K106: =I106/P106 -> 10.55290217 | L106: 0.72 | M106: IL TRM v5 | N106: =ROUND(((AE106*(1/AZ106)-(1/T106))/1000)*L106,4) -> 0.7854 | O106: IL TRM v5 | P106: 738 | Q106: EFLHcool, from 2017 MO TRM | R106: 18 | S106: Part Load EER Efficiency of efficient GSHP unit | T106: 23 | U106: Not verified. | V106: GSHP replacing failed AC w/ electric furnace – 23 EER minimum (EER) | W106: 11 | X106: IL TRM v5 | Y106: =cellformula(I106) -> =ROUND(((BC106*AE106*(1/W106)-(1/T106))/1000)+((BF106*AE106*(1/AH106)-(1/(AK106*3.412)))/1000)+((AN106*AQ106*(1/AT106)*AW106)/1000),4) | Z106: =cellformula(N106) -> =ROUND(((AE106*(1/AZ106)-(1/T106))/1000)*L106,4) | AA106: 2019-04-01 | AE106: 12000 | AF106: Allows for Capacity input in Tons; converts tons to BTUs | AH106: 3.41 | AI106: HSPFbase = Heating System Performance Factor of new replacement baseline heating system 8.2 for replacing ASHP 3.41 for replacing Electric Resistance Heat | AJ106: IL TRM v5 | AK106: 4.5 | AL106: COPpl = Part Load Coefficient of Performance, Actual installed value | AM106: This example value is the mean of values listed in ENERGY STAR criteria here: https://www.energystar.gov/index.cfm?c=most_efficient.me_geothermal_heat_pumps , https://data.energystar.gov/Active-Specifications/ENERGY-STAR-Most-Efficient-Geothermal-Heat-Pumps/4c82-7ysy . Ideally this value would come from the specs of the actual unit installed. | AN106: 1 | AO106: ElecDHW: = 1 if HW system is electric = 0 if HW system is not electric | AP106: IL TRM v5 | AQ106: 0.44 | AR106: %DHWdisplaced = Percentage of total DHW load the GSHP will provide. = Actual, if known = 0% if no desuperheater installed = 44% if desuperheater installed and actual is unknown | AS106: IL TRM v5 | AT106: 2.0005 | AU106: Efelec = Energy Factor of electric WH. = Actual, if known = 0.96 – (0.0003 * rated volume in gallons) for 55+ gallon DHW = 2.057 – (0.00113 * rated volume in gallons) for < 55 gallon DHW | AV106: IL TRM v5 | AW106: 9732988.447 | AX106: GSHP Coefficient = GPD * Household * 365.25 * γWater * (Tout - Tin) | AY106: IL TRM v5 | AZ106: 11 | BA106: EER Efficiency of new replacement Central AC | BB106: IL TRM v5 | BC106: 738 | BD106: EFLHcool | BE106: 2017 MO TRM | BF106: 1376 | BG106: EFLHheat | BH106: The EFLH Cooling and Heating hours are based on a EnergyStar study that was normalized (based on HDD and CDD) to Kansas City. This was for both AC and HP units.
A107: Whole House Efficiency | B107: GSHP - ASHP + Early Replacement _SF: HVAC | C107: 243.1 | D107: Single Family | E107: HVAC | G107: per unit | H107: 5250 | I107: =ROUND(((BC107*AE107*(1/W107)-(1/T107))/1000)+((BF107*AE107*(1/AH107)-(1/(AK107*3.412)))/1000)+((AN107*AQ107*(1/AT107)*AW107)/1000),4) -> 6554.2619 | J107: IL TRM v5 | K107: =I107/P107 -> 6.67440112 | L107: 0.72 | M107: IL TRM v5 | N107: =ROUND(((AE107*(1/AZ107)-(1/T107))/1000)*L107,4) -> 1.0105 | P107: 982 | Q107: EFLHcool, from PY2016 analysis (Normalized EnergyStar KC Cooling Hours to IL TRM CDD) | R107: 18 | S107: Part Load EER Efficiency of efficient GSHP unit | T107: 23 | U107: Not verified. | V107: SEER Efficiency of existing cooling unit = Actual, if available | W107: 8.55 | X107: IL TRM v5 | Y107: =ROUND(((BC107*AE107*(1/W107)-(1/T107))/1000)+((BF107*AE107*(1/AH107)-(1/(AK107*3.412)))/1000)+((AN107*AQ107*(1/AT107)*AW107)/1000),4) | Z107: =ROUND(((AE107*(1/AZ107)-(1/T107))/1000)*L107,4) | AA107: 2018-04-01 | AB107: 2019-03-31 | AE107: 12000 | AF107: Allows for Capacity input in Tons; converts tons to BTUs | AH107: 5.44 | AI107: HSPFexist = Heating System Performance Factor of existing heating system 5.44 for replacing ASHP 3.41 for replacing Electric Resistance Heat | AJ107: IL TRM v5 | AK107: 4.5 | AL107: COPpl = Part Load Coefficient of Performance, Actual installed value | AM107: This example value is the mean of values listed in ENERGY STAR criteria here: https://www.energystar.gov/index.cfm?c=most_efficient.me_geothermal_heat_pumps , https://data.energystar.gov/Active-Specifications/ENERGY-STAR-Most-Efficient-Geothermal-Heat-Pumps/4c82-7ysy . Ideally this value would come from the specs of the actual unit installed. | AN107: 1 | AO107: ElecDHW: = 1 if HW system is electric = 0 if HW system is not electric | AP107: IL TRM v5 | AQ107: 0.44 | AR107: %DHWdisplaced = Percentage of total DHW load the GSHP will provide. = Actual, if known = 0% if no desuperheater installed = 44% if desuperheater installed and actual is unknown | AS107: IL TRM v5 | AT107: 2.0005 | AU107: Efelec = Energy Factor of electric WH. = Actual, if known = 0.96 – (0.0003 * rated volume in gallons) for 55+ gallon DHW = 2.057 – (0.00113 * rated volume in gallons) for < 55 gallon DHW | AV107: IL TRM v5 | AW107: 9732988.447 | AX107: GSHP Coefficient = GPD * Household * 365.25 * γWater * (Tout - Tin) | AY107: IL TRM v5 | AZ107: 8.55 | BA107: Energy Efficiency Ratio of existing cooling unit = Actual, if available = 8.55 for replacing ASHP = 8.15 for replacing Central AC | BB107: IL TRM v5 | BC107: 982 | BD107: EFLHcool | BE107: The EFLH Cooling and Heating hours are based on a EnergyStar study that was normalized (based on HDD and CDD) to Kansas City. This was for both AC and HP units. | BF107: 1376 | BG107: EFLHheat | BH107: The EFLH Cooling and Heating hours are based on a EnergyStar study that was normalized (based on HDD and CDD) to Kansas City. This was for both AC and HP units.
A108: Whole House Efficiency | B108: GSHP - ASHP + Early Replacement _SF: HVAC | C108: 243.2 | D108: Single Family | E108: HVAC | G108: per unit | H108: 5250 | I108: =ROUND(((BC108*AE108*(1/W108)-(1/T108))/1000)+((BF108*AE108*(1/AH108)-(1/(AK108*3.412)))/1000)+((AN108*AQ108*(1/AT108)*AW108)/1000),4) -> 6211.8058 | J108: IL TRM v5 | K108: =I108/P108 -> 8.41708103 | L108: 0.72 | M108: IL TRM v5 | N108: =ROUND(((AE108*(1/AZ108)-(1/T108))/1000)*L108,4) -> 1.0105 | P108: 738 | Q108: EFLHcool, from 2017 MO TRM | R108: 18 | S108: Part Load EER Efficiency of efficient GSHP unit | T108: 23 | U108: Not verified. | V108: SEER Efficiency of existing cooling unit = Actual, if available | W108: 8.55 | X108: IL TRM v5 | Y108: =cellformula(I108) -> =ROUND(((BC108*AE108*(1/W108)-(1/T108))/1000)+((BF108*AE108*(1/AH108)-(1/(AK108*3.412)))/1000)+((AN108*AQ108*(1/AT108)*AW108)/1000),4) | Z108: =cellformula(N108) -> =ROUND(((AE108*(1/AZ108)-(1/T108))/1000)*L108,4) | AA108: 2019-04-01 | AE108: 12000 | AF108: Allows for Capacity input in Tons; converts tons to BTUs | AH108: 5.44 | AI108: HSPFexist = Heating System Performance Factor of existing heating system 5.44 for replacing ASHP 3.41 for replacing Electric Resistance Heat | AJ108: IL TRM v5 | AK108: 4.5 | AL108: COPpl = Part Load Coefficient of Performance, Actual installed value | AM108: This example value is the mean of values listed in ENERGY STAR criteria here: https://www.energystar.gov/index.cfm?c=most_efficient.me_geothermal_heat_pumps , https://data.energystar.gov/Active-Specifications/ENERGY-STAR-Most-Efficient-Geothermal-Heat-Pumps/4c82-7ysy . Ideally this value would come from the specs of the actual unit installed. | AN108: 1 | AO108: ElecDHW: = 1 if HW system is electric = 0 if HW system is not electric | AP108: IL TRM v5 | AQ108: 0.44 | AR108: %DHWdisplaced = Percentage of total DHW load the GSHP will provide. = Actual, if known = 0% if no desuperheater installed = 44% if desuperheater installed and actual is unknown | AS108: IL TRM v5 | AT108: 2.0005 | AU108: Efelec = Energy Factor of electric WH. = Actual, if known = 0.96 – (0.0003 * rated volume in gallons) for 55+ gallon DHW = 2.057 – (0.00113 * rated volume in gallons) for < 55 gallon DHW | AV108: IL TRM v5 | AW108: 9732988.447 | AX108: GSHP Coefficient = GPD * Household * 365.25 * γWater * (Tout - Tin) | AY108: IL TRM v5 | AZ108: 8.55 | BA108: Energy Efficiency Ratio of existing cooling unit = Actual, if available = 8.55 for replacing ASHP = 8.15 for replacing Central AC | BB108: IL TRM v5 | BC108: 738 | BD108: EFLHcool | BE108: 2017 MO TRM | BF108: 1376 | BG108: EFLHheat | BH108: The EFLH Cooling and Heating hours are based on a EnergyStar study that was normalized (based on HDD and CDD) to Kansas City. This was for both AC and HP units.
A109: Income-Eligible Multi-Family | B109: Screw In - LEDs | C109: 53.2 | D109: Multi-Family | E109: Lighting | F109: Kits | G109: per lamp | H109: 3.93 | I109: =ROUND(($W109-$T109)/1000*$P109*$AE109*$AK109,4) -> 28.2745 | J109: IL TRM v5 | K109: =I109/P109 -> 0.03366011905 | L109: 0.08 | M109: IL TRM v5 | N109: =ROUND(($W109-$T109)/1000*L109*$AH109*$AK109,4) -> 0.0028 | O109: IL TRM v5 | P109: 840 | Q109: IL TRM v5 | R109: 10 | S109: Screw In - LEDs | T109: 9.29 | U109: Program Tracking Database | V109: 43 watts based on halogen equivalent to average of bulbs sold in program | W109: 43 | Y109: =cellformula(I109) -> =ROUND(($W109-$T109)/1000*$P109*$AE109*$AK109,4) | Z109: =cellformula(N109) -> =ROUND(($W109-$T109)/1000*L109*$AH109*$AK109,4) | AA109: 2018-04-01 | AB109: 2019-03-31 | AE109: 1.06 | AF109: Waste Heat Factor, Energy | AG109: IL TRM v5 | AH109: 1.11 | AI109: Waste Heat Factor, Demand | AJ109: IL TRM v5 | AK109: 0.942 | AL109: ISR | AM109: Navigant MEEIA Cycle 1 Research | CK109: 31.2 | CL109: Single Family | CM109: HVAC | CO109: per ton | CP109: 317 | CQ109: 1527.2772 | CR109: IL TRM v5 | CS109: 2.069481301 | CT109: 0.72 | CU109: IL TRM v5 | CV109: 0.3627
A110: Income-Eligible Multi-Family | B110: Screw In - LEDs (In-Unit) | C110: 53.3 | D110: Multi-Family | E110: Lighting | F110: Kits | G110: per lamp | H110: 3.93 | I110: =ROUND(($W110-$T110)/1000*$P110*$AE110*$AK110,4) -> 26.0063 | J110: IL TRM v5 | K110: =I110/P110 -> 0.03426389987 | L110: 0.071 | M110: IL TRM v5 | N110: =ROUND(($W110-$T110)/1000*L110*$AH110*$AK110,4) -> 0.0025 | O110: IL TRM v5 | P110: 759 | Q110: IL TRM v5 | R110: 10 | S110: Screw In - LEDs | T110: 9 | U110: Program Tracking Database | V110: 43 watts based on halogen equivalent to average of bulbs sold in program | W110: 43 | Y110: =cellformula(I110) -> =ROUND(($W110-$T110)/1000*$P110*$AE110*$AK110,4) | Z110: =cellformula(N110) -> =ROUND(($W110-$T110)/1000*L110*$AH110*$AK110,4) | AA110: 2019-04-01 | AE110: 1.04 | AF110: Waste Heat Factor, Energy | AG110: IL TRM v5 | AH110: 1.07 | AI110: Waste Heat Factor, Demand | AJ110: IL TRM v5 | AK110: 0.969 | AL110: ISR | AM110: IL TRM v5 | CK110: 32.1 | CL110: Single Family | CM110: HVAC | CO110: per ton | CP110: 317 | CQ110: 183.2908 | CR110: IL TRM v5 | CS110: 0.1866505092 | CT110: 0.72 | CU110: IL TRM v5 | CV110: 0.3203
A111: Income-Eligible Multi-Family | B111: Low Flow Faucet Aerator-Bathroom | C111: 268 | D111: Multi-Family | E111: Hot Water | F111: Kits | G111: per unit | H111: 8 | I111: =ROUND(((W111-T111)*AH111*AK111*365.25)*AE111*AN111,4) -> 38.9287 | J111: IL TRM V.5 | K111: =I111/P111 -> 2.780621429 | L111: 0.022 | M111: IL TRM v5 | N111: =ROUND((((W111-T111)*AH111*AK111*365.25)*AE111*AN111)/P111*L111,4) -> 0.0612 | P111: 14 | Q111: IL TRM V.5 | R111: 9 | S111: Low Flow (GPM) | T111: 1.5 | U111: Program Tracking Database | V111: Standard (GPM) | W111: 2.2 | X111: Federal Baseline | Y111: =cellformula(I111) -> =ROUND(((W111-T111)*AH111*AK111*365.25)*AE111*AN111,4) | Z111: =cellformula(N111) -> =ROUND((((W111-T111)*AH111*AK111*365.25)*AE111*AN111)/P111*L111,4) | AA111: 2018-04-01 | AB111: 2019-03-31 | AE111: 0.0795 | AF111: kWh per gallon hot water, bathroom | AH111: =1.6*0.9/1.5 -> 0.96 | AI111: Faucet Coefficient, Bathroom: Minutes/day * Drain Factor / Faucets per Household | AJ111: IL TRM v5 | AK111: 2.1 | AL111: Persons per household | AM111: IL TRM v5 | AN111: 0.95 | AO111: Installation Rate | AP111: IL TRM v5 | CK111: 32.2 | CL111: Single Family | CM111: HVAC | CO111: per ton | CP111: 317 | CQ111: 167.1605 | CR111: IL TRM v5 | CS111: 0.2265047425 | CT111: 0.72 | CU111: IL TRM v5 | CV111: 0.0372
A112: Income-Eligible Multi-Family | B112: Low Flow Faucet Aerator-Bathroom | C112: 268.1 | D112: Multi-Family | E112: Hot Water | F112: Kits | G112: per unit | H112: 8 | I112: =ROUND(((W112-T112)*AH112*AK112*365.25)*AE112*AN112,4) -> 66.7349 | J112: IL TRM V.5 | K112: 3.033404545 | L112: 0.022 | M112: IL TRM v5 | N112: =ROUND((((W112-T112)*AH112*AK112*365.25)*AE112*AN112)/P112*L112,4) -> 0.0667 | P112: 22 | Q112: IL TRM V.5 | R112: 9 | S112: Low Flow (GPM) | T112: 1 | U112: Program Tracking Database | V112: Standard (GPM) | W112: 2.2 | X112: Federal Baseline | Y112: =cellformula(I112) -> =ROUND(((W112-T112)*AH112*AK112*365.25)*AE112*AN112,4) | Z112: =cellformula(N112) -> =ROUND((((W112-T112)*AH112*AK112*365.25)*AE112*AN112)/P112*L112,4) | AA112: 2019-04-01 | AE112: 0.0795 | AF112: kWh per gallon hot water, bathroom | AG112: IL TRM v5 | AH112: =1.6*0.9/1.5 -> 0.96 | AI112: Faucet Coefficient, Bathroom: Minutes/day * Drain Factor / Faucets per Household | AJ112: IL TRM v5 | AK112: 2.1 | AL112: Persons per household | AM112: IL TRM v5 | AN112: 0.95 | AO112: Installation Rate | AP112: IL TRM v5 | CK112: 33.1 | CL112: Single Family | CM112: HVAC | CO112: per ton | CP112: 137 | CQ112: 217.7936 | CR112: IL TRM v5 | CS112: 0.2217857434 | CT112: 0.72 | CU112: IL TRM v5 | CV112: 0.0546
A113: Income-Eligible Multi-Family | B113: Low Flow Faucet Aerator-Kitchen | C113: 269 | D113: Multi-Family | E113: Hot Water | F113: Kits | G113: per unit | H113: 8 | I113: =ROUND(((W113-T113)*AH113*AK113*365.25)*AE113*AN113,4) -> 159.7889 | J113: IL TRM V.5 | K113: 1.699881915 | L113: 0.022 | M113: IL TRM v5 | N113: =ROUND((((W113-T113)*AH113*AK113*365.25)*AE113*AN113)/P113*L113,4) -> 0.0374 | P113: 94 | Q113: IL TRM V.5 | R113: 9 | S113: Low Flow (GPM) | T113: 1.5 | U113: Program Tracking Database | V113: Standard (GPM) | W113: 2.2 | X113: Federal Baseline | Y113: =ROUND(((W113-T113)*AH113*AK113*365.25)*AE113*AN113,4) | Z113: =ROUND((((W113-T113)*AH113*AK113*365.25)*AE113*AN113)/P113*L113,4) | AA113: 2018-04-01 | AB113: 2019-03-31 | AE113: 0.0969 | AF113: kWh per gallon hot water, kitchen | AH113: =4.5*0.75/1 -> 3.375 | AI113: Faucet Coefficient, Kitchen | AJ113: IL TRM v5 | AK113: 2.1 | AL113: Persons per household | AM113: IL TRM v5 | AN113: 0.91 | AO113: Installation Rate | AP113: IL TRM v5 | CK113: 33.2 | CL113: Single Family | CM113: HVAC | CO113: per ton | CP113: 137 | CQ113: 201.6633 | CR113: IL TRM v5 | CS113: 0.2732565041 | CT113: 0.72 | CU113: IL TRM v5 | CV113: 0.0546
A114: Income-Eligible Multi-Family | B114: Low Flow Faucet Aerator-Kitchen | C114: 269.1 | D114: Multi-Family | E114: Hot Water | F114: Kits | G114: per unit | H114: 8 | I114: =ROUND(((W114-T114)*AH114*AK114*365.25)*AE114*AN114,4) -> 159.7889 | J114: IL TRM V.5 | K114: 2.075180519 | L114: 0.022 | M114: IL TRM v5 | N114: =ROUND((((W114-T114)*AH114*AK114*365.25)*AE114*AN114)/P114*L114,4) -> 0.0457 | P114: 77 | Q114: IL TRM V.5 | R114: 9 | S114: Low Flow (GPM) | T114: 1.5 | U114: Program Tracking Database | V114: Standard (GPM) | W114: 2.2 | X114: Federal Baseline | Y114: =cellformula(I114) -> =ROUND(((W114-T114)*AH114*AK114*365.25)*AE114*AN114,4) | Z114: =cellformula(N114) -> =ROUND((((W114-T114)*AH114*AK114*365.25)*AE114*AN114)/P114*L114,4) | AA114: 2019-04-01 | AE114: 0.0969 | AF114: kWh per gallon hot water, kitchen | AG114: IL TRM v5 | AH114: =4.5*0.75/1 -> 3.375 | AI114: Faucet Coefficient, Kitchen | AJ114: IL TRM v5 | AK114: 2.1 | AL114: Persons per household | AM114: IL TRM v5 | AN114: 0.91 | AO114: Installation Rate | AP114: IL TRM v5 | CK114: 314 | CL114: Single Family | CM114: HVAC | CO114: per ton | CP114: 1482 | CQ114: 3885.4305 | CR114: IL TRM v5 | CS114: 3.956650204 | CT114: 0.72 | CU114: IL TRM v5 | CV114: 0.5906
A115: Income-Eligible Multi-Family | B115: Pipe Insulated | C115: 55.1 | D115: Multi-Family | E115: Hot Water | F115: Kits | G115: per unit | H115: 18 | I115: =ROUND(((((AE115*PI()*AK115)/W115) - ((AH115*PI()*AK115)/T115))*AN115)/AQ115/3412,4) -> 72.065 | J115: IL TRM v5, modified to account for larger diameter due to added pipe insulation | K115: =I115/P115 -> 0.008220967374 | L115: NA | M115: NA | N115: =ROUND(I115/8766,4) -> 0.0082 | P115: 8766 | Q115: IL TRM V.5 | R115: 15 | S115: Efficient R-Value due to added insulation | T115: =1+5 -> 6 | U115: IL TRM v5 | V115: R-Value of bare pipe | W115: 1 | X115: IL TRM v5 | Y115: =cellformula(I115) -> =ROUND(((((AE115*PI()*AK115)/W115) - ((AH115*PI()*AK115)/T115))*AN115)/AQ115/3412,4) | Z115: =cellformula(N115) -> =ROUND(I115/8766,4) | AA115: 2018-04-01 | AB115: 2019-03-31 | AE115: =0.75/12 -> 0.0625 | AF115: Dbase = Pipe Diameter (ft) | AG115: IL TRM v5 | AH115: =(0.75+1*2)/12 -> 0.2291666667 | AI115: Dee = Updated Pipe Diameter, due to added insulation (ft) | AJ115: IL TRM v5 | AK115: 6 | AL115: Length of added pipe insulation | AN115: =60*8766 -> 525960 | AO115: Pipe Insulated Coefficient 1 = ∆T * Hours = 60 * 8766 | AP115: IL TRM v5 | AQ115: 0.98 | AR115: Recovery efficiency of electric water heater | AS115: IL TRM v5 | CK115: 314.1 | CL115: Single Family | CM115: HVAC | CO115: per ton | CP115: 1482 | CQ115: 3334.2119 | CR115: IL TRM v5 | CS115: 4.517902304 | CT115: 0.72 | CU115: IL TRM v5 | CV115: 0.3627
A116: Income-Eligible Multi-Family | B116: Pipe Insulated | C116: 55.2 | D116: Multi-Family | E116: Hot Water | F116: Kits | G116: per unit | H116: 18 | I116: =ROUND(((((AE116*PI()*AK116)/W116) - ((AH116*PI()*AK116)/T116))*AN116)/AQ116/3412,4) -> 10.295 | J116: IL TRM v5, modified to account for larger diameter due to added pipe insulation | K116: =I116/P116 -> 0.001174423911 | L116: NA | M116: NA | N116: =ROUND(I116/8766,4) -> 0.0012 | P116: 8766 | Q116: IL TRM V.5 | R116: 15 | S116: Efficient R-Value due to added insulation | T116: =1+5 -> 6 | U116: IL TRM v5 | V116: R-Value of bare pipe | W116: 1 | X116: IL TRM v5 | Y116: =cellformula(I116) -> =ROUND(((((AE116*PI()*AK116)/W116) - ((AH116*PI()*AK116)/T116))*AN116)/AQ116/3412,4) | Z116: =cellformula(N116) -> =ROUND(I116/8766,4) | AA116: 2019-04-01 | AE116: =0.5/12 -> 0.04166666667 | AF116: Dbase = Pipe Diameter (ft) | AG116: IL TRM v5 | AH116: =(0.75+1*2)/12 -> 0.2291666667 | AI116: Dee = Updated Pipe Diameter, due to added insulation (ft) | AJ116: IL TRM v5 | AK116: 6 | AL116: Length of added pipe insulation | AN116: =60*8766 -> 525960 | AO116: Pipe Insulated Coefficient 1 = ∆T * Hours = 60 * 8766 | AP116: IL TRM v5 | AQ116: 0.98 | AR116: Recovery efficiency of electric water heater | AS116: IL TRM v5 | CK116: 315 | CL116: Single Family | CM116: HVAC | CO116: per ton | CP116: 644.56 | CQ116: 183.2908 | CR116: IL TRM v5 | CS116: 0.1866505092 | CT116: 0.72 | CU116: IL TRM v5 | CV116: 0.3131
A117: Income-Eligible Multi-Family | B117: Low Flow Showerhead | C117: 56.1 | D117: Multi-Family | E117: Hot Water | F117: Kits | G117: per unit | H117: 12 | I117: =ROUND(((W117-T117)*AH117*AK117*365.25)*AE117*AN117,4) -> 260.794 | J117: IL TRM V.5 | K117: =I117/P117 -> 0.8635562914 | L117: 0.0278 | M117: IL TRM v5 | N117: =ROUND((((W117-T117)*AH117*AK117*365.25)*AE117*AN117)/P117*L117,4) -> 0.024 | P117: 302 | Q117: IL TRM V.5 | R117: 10 | S117: Low Flow (GPM) | T117: 1.5 | U117: EEP from ICF | V117: Standard (GPM) | W117: 2.67 | X117: IL TRM v5 | Y117: =ROUND(((W117-T117)*AH117*AK117*365.25)*AE117*AN117,4) | Z117: =ROUND((((W117-T117)*AH117*AK117*365.25)*AE117*AN117)/P117*L117,4) | AA117: 2018-04-01 | AB117: 2019-03-31 | AE117: 0.117 | AF117: kWh per gallon hot water | AG117: IL TRM v5 | AH117: =7.8*0.6/1.79 -> 2.61452514 | AI117: Showerhead Coefficient: Minutes per day * Showers per day / Showers per household | AJ117: IL TRM v5 | AK117: 2.1 | AL117: Persons per household | AM117: IL TRM v5 | AN117: 0.95 | AO117: Installation Rate | AP117: IL TRM v5 | CK117: 315.1 | CL117: Single Family | CM117: HVAC | CO117: per ton | CP117: 644.56 | CQ117: 167.1605 | CR117: IL TRM v5 | CS117: 0.2265047425 | CT117: 0.72 | CU117: IL TRM v5 | CV117: 0.0372
A118: Income-Eligible Multi-Family | B118: Low Flow Showerhead | C118: 56.2 | D118: Multi-Family | E118: Hot Water | F118: Kits | G118: per unit | H118: 12 | I118: =ROUND(((W118-T118)*AH118*AK118*365.25)*AE118*AN118,4) -> 359.0933 | J118: IL TRM V.5 | K118: =I118/P118 -> 1.447956855 | L118: 0.0278 | M118: IL TRM v5 | N118: =ROUND((((W118-T118)*AH118*AK118*365.25)*AE118*AN118)/P118*L118,4) -> 0.0403 | P118: 248 | Q118: IL TRM V.5 | R118: 10 | S118: Low Flow (GPM) | T118: 1.5 | U118: EEP from ICF | V118: Standard (GPM) | W118: 2.67 | X118: IL TRM v5 | Y118: =cellformula(I118) -> =ROUND(((W118-T118)*AH118*AK118*365.25)*AE118*AN118,4) | Z118: =cellformula(N118) -> =ROUND((((W118-T118)*AH118*AK118*365.25)*AE118*AN118)/P118*L118,4) | AA118: 2019-04-01 | AE118: 0.117 | AF118: kWh per gallon hot water | AG118: IL TRM v5 | AH118: =7.8*0.6/1.3 -> 3.6 | AI118: Showerhead Coefficient: Minutes per day * Showers per day / Showers per household | AJ118: IL TRM v5 | AK118: 2.1 | AL118: Persons per household | AM118: IL TRM v5 | AN118: 0.95 | AO118: Installation Rate | AP118: IL TRM v5 | CK118: 34.1 | CL118: Single Family | CM118: HVAC | CO118: per ton | CP118: 274 | CQ118: 302.0404 | CR118: IL TRM v5 | CS118: 0.3075767821 | CT118: 0.72 | CU118: IL TRM v5 | CV118: 0.0644
A119: Income-Eligible Multi-Family | B119: Water Heater Tank Wrap | C119: 57 | D119: Multi-Family | E119: Hot Water | F119: Kits | G119: per unit | H119: 18 | I119: =ROUND(131.295784945569,4) -> 131.2958 | K119: =I119/P119 -> 0.01498810502 | N119: =ROUND(0.0149881033042887,4) -> 0.015 | P119: 8760 | R119: 5 | S119: Water Heater Blanket/Tank Wrap | V119: No Blanket | Y119: =ROUND(131.295784945569,4) | Z119: =ROUND(0.0149881033042887,4) | AA119: 2016-04-01 | CK119: 34.2 | CL119: Single Family | CM119: HVAC | CO119: per ton | CP119: 274 | CQ119: 275.4412 | CR119: IL TRM v5 | CS119: 0.3732265583 | CT119: 0.72 | CU119: IL TRM v5 | CV119: 0.0644
A120: Income-Eligible Multi-Family | B120: Smart Power Strip - Wh5-Plug | C120: 247 | D120: Multi-Family | E120: Electronics | F120: Kits | G120: per unit | H120: 16 | I120: =ROUND(56.5,4) -> 56.5 | J120: Il TRM v5 | L120: 0.8 | M120: Il TRM v5 | N120: =ROUND(I120/P120*L120,4) -> 0.0063 | O120: IL TRM v5 | P120: 7129 | Q120: Il TRM v5 | R120: 5 | S120: Smart strip | V120: Standard outlet strip | Y120: =ROUND(56.5,4) | Z120: =ROUND(I120/P120*L120,4) | AA120: 2018-04-01 | AB120: 2019-03-31 | CK120: 35.1 | CL120: Single Family | CM120: HVAC | CO120: per ton | CP120: 415 | CQ120: 2178.6968 | CR120: IL TRM v5 | CS120: 2.218632179 | CT120: 0.72 | CU120: IL TRM v5 | CV120: 0.6158
A121: Income-Eligible Multi-Family | B121: Smart Power Strip - Wh7-Plug | C121: 248 | D121: Multi-Family | E121: Electronics | F121: Kits | G121: per unit | H121: 16 | I121: =ROUND(103,4) -> 103 | J121: Il TRM v5 | K121: =I121/P121 -> 0.01444802918 | L121: 0.8 | M121: Il TRM v5 | N121: =ROUND(I121/P121*L121,4) -> 0.0116 | O121: IL TRM v5 | P121: 7129 | Q121: Il TRM v5 | R121: 5 | S121: Smart strip | V121: Standard outlet strip | Y121: =ROUND(103,4) | Z121: =ROUND(I121/P121*L121,4) | AA121: 2018-04-01 | AB121: 2019-03-31 | CK121: 35.2 | CL121: Single Family | CM121: HVAC | CO121: per ton | CP121: 415 | CQ121: 1616.5551 | CR121: IL TRM v5 | CS121: 2.190454065 | CT121: 0.72 | CU121: IL TRM v5 | CV121: 0.3871
A122: Income-Eligible Multi-Family | B122: Smart Power Strip - Wh7-Plug | C122: 248.1 | D122: Multi-Family | E122: Electronics | F122: Kits | G122: per unit | H122: 26 | I122: =ROUND(103,4) -> 103 | J122: Il TRM v5 | K122: 0.01444802918 | L122: 0.8 | M122: Il TRM v5 | N122: =ROUND(0.0115,4) -> 0.0115 | O122: IL TRM v5 | P122: 7129 | Q122: Il TRM v5 | R122: 5 | S122: Smart strip | V122: Standard outlet strip | Y122: =cellformula(I122) -> =ROUND(103,4) | Z122: =cellformula(N122) -> =ROUND(0.0115,4) | AA122: 2019-04-01 | CK122: 36.1 | CL122: Single Family | CM122: HVAC | CO122: per ton | CP122: 415 | CQ122: 283.4917 | CR122: IL TRM v5 | CS122: 0.2886880855 | CT122: 0.72 | CU122: IL TRM v5 | CV122: 0.3382
A123: Income-Eligible Multi-Family | B123: LED Exit Sign | C123: 59.1 | D123: Multi-Family | E123: Lighting | F123: Common Area - DI | G123: per unit | H123: 30 | I123: =ROUND((W123-T123)/1000*P123*AE123,4) -> 82.0498 | J123: Il TRM v5 | K123: =(W123-T123)/1000*AH123 -> 0.00963 | L123: 1 | M123: Il TRM v5 | N123: =ROUND(K123*L123,4) -> 0.0096 | O123: IL TRM v5 | P123: 8766 | Q123: Il TRM v5 | R123: 16 | S123: LED (watts) | T123: 2 | V123: Fluorescent (watts) | W123: 11 | X123: Illinois TRM V.5. | Y123: =ROUND((W123-T123)/1000*P123*AE123,4) | Z123: =ROUND(K123*L123,4) | AA123: 2018-04-01 | AE123: 1.04 | AF123: Waste Heat Factor (energy) | AG123: Il TRM v5 | AH123: 1.07 | AI123: Waste Heat Factor (demand) | CK123: 36.2 | CL123: Single Family | CM123: HVAC | CO123: per ton | CP123: 415 | CQ123: 256.4384 | CR123: IL TRM v5 | CS123: 0.3474775068 | CT123: 0.72 | CU123: IL TRM v5 | CV123: 0.0617
A124: Income-Eligible Multi-Family | B124: High Bay Fluorescent Fixture w/ HE Electronic Ballast (T5 >4 lamps) | C124: 60 | D124: Multi-Family | E124: Lighting | F124: Common Area - DI | G124: per fixture | H124: 100 | I124: =ROUND((W124-T124)/1000*P124*AE124,4) -> 701.0069 | K124: 0.21574 | L124: 0.66 | N124: =ROUND(K124*L124,4) -> 0.1424 | P124: 3088 | R124: 15 | S124: High Bay - T5 >4 lamp | T124: 295 | V124: Metal Halide (watts) | W124: 456 | Y124: =ROUND((W124-T124)/1000*P124*AE124,4) | Z124: =ROUND(K124*L124,4) | AA124: 2016-04-01 | AE124: 1.41 | AF124: Waste Heat Factor | AH124: 1.34 | AI124: Waste Heat Factor | CK124: 37.1 | CL124: Single Family | CM124: HVAC | CO124: per ton | CP124: 793.1578947 | CQ124: 300.6852 | CR124: IL TRM v5 | CS124: 0.3061967413 | CT124: 0.72 | CU124: IL TRM v5 | CV124: 0.0478
A125: Income-Eligible Multi-Family | B125: Low Wattage T8 Lamp | C125: 61 | D125: Multi-Family | E125: Lighting | F125: Common Area - DI | G125: per lamp | H125: 2 | I125: =ROUND((W125-T125)/1000*P125*AE125,4) -> 26.1245 | K125: 0.00804 | L125: 0.66 | N125: =ROUND(K125*L125,4) -> 0.0053 | P125: 3088 | R125: 10 | S125: Low Wattage T8 (watts) | T125: 22 | V125: Standard T8 (watts) | W125: 28 | Y125: =ROUND((W125-T125)/1000*P125*AE125,4) | Z125: =ROUND(K125*L125,4) | AA125: 2016-04-01 | AE125: 1.41 | AF125: Waste Heat Factor | AH125: 1.34 | AI125: Waste Heat Factor | CK125: 37.2 | CL125: Single Family | CM125: HVAC | CO125: per ton | CP125: 793.1578947 | CQ125: 273.2928 | CR125: IL TRM v5 | CS125: 0.3703154472 | CT125: 0.72 | CU125: IL TRM v5 | CV125: 0.0478
A126: Income-Eligible Multi-Family | B126: LED Flood Light (<15W) (Exterior) | C126: 62.1 | D126: Multi-Family | E126: Lighting | F126: Common Area - DI | G126: per lamp | H126: 35 | I126: =ROUND(($W126-$T126)/1000*$P126*$AE126*$AK126,4) -> 212.465 | K126: 0.04601 | L126: 0 | N126: =ROUND(($W126-$T126)/1000*$L126*$AH126*$AK126,4) -> 0 | P126: 4903 | R126: 10 | S126: LED (watts) | T126: 8.7 | V126: Metal Halide (watts) | W126: 51.7 | Y126: =ROUND(($W126-$T126)/1000*$P126*$AE126*$AK126,4) | Z126: =ROUND(($W126-$T126)/1000*$L126*$AH126*$AK126,4) | AA126: 2018-04-01 | AE126: 1.04 | AF126: Waste Heat Factor (energy) | AG126: IL TRM v5 | AH126: 1.07 | AI126: Waste Heat Factor (demand) | AJ126: IL TRM v5 | AK126: 0.969 | AL126: ISR | AM126: IL TRM v5 | CK126: 316 | CL126: Single Family | CM126: HVAC | CO126: per ton | CP126: 1527 | CQ126: 3985.6314 | CR126: IL TRM v5 | CS126: 4.05868778 | CT126: 0.72 | CU126: IL TRM v5 | CV126: 0.6151
A127: Income-Eligible Multi-Family | B127: Screw In - LEDs - Common Area (Interior) | C127: 249 | D127: Multi-Family | E127: Lighting | F127: Common Area - DI | G127: per lamp | H127: 3.93 | I127: =ROUND(($W127-$T127)/1000*$P127*$AE127*$AK127,4) -> 119.9234 | K127: =I127/P127 -> 0.02015519328 | L127: 0.64 | M127: IL TRM v5 | N127: =ROUND(($W127-$T127)/1000*$L127*$AH127*$AK127,4) -> 0.0133 | O127: IL TRM v5 | P127: 5950 | Q127: IL TRM v5 | R127: 5 | S127: LED (watts) | T127: 9 | V127: EISA tier 1 compliant Halogen (watts) | W127: 29 | X127: IL TRM v5 | Y127: =ROUND(($W127-$T127)/1000*$P127*$AE127*$AK127,4) | Z127: =ROUND(($W127-$T127)/1000*$L127*$AH127*$AK127,4) | AA127: 2018-04-01 | AB127: 2019-03-31 | AE127: 1.04 | AF127: Waste Heat Factor (energy) | AG127: IL TRM v5 | AH127: 1.07 | AI127: Waste Heat Factor (demand) | AJ127: IL TRM v5 | AK127: 0.969 | AL127: ISR | AM127: IL TRM v5 | CK127: 316.1 | CL127: Single Family | CM127: HVAC | CO127: per ton | CP127: 1527 | CQ127: 3423.4898 | CR127: IL TRM v5 | CS127: 4.638875068 | CT127: 0.72 | CU127: IL TRM v5 | CV127: 0.3871
A128: Income-Eligible Multi-Family | B128: Screw In - LEDs - Common Area (Interior) | C128: 249.1 | D128: Multi-Family | E128: Lighting | F128: Common Area - DI | G128: per lamp | H128: 3.93 | I128: =ROUND(($W128-$T128)/1000*$P128*$AE128*$AK128,4) -> 29.5796 | K128: =I128/P128 -> 0.0349227863 | L128: 0.081 | M128: IL TRM v5 | N128: =ROUND(($W128-$T128)/1000*$L128*$AH128*$AK128,4) -> 0.003 | O128: IL TRM v5 | P128: 847 | Q128: IL TRM v5 | R128: 5 | S128: LED (watts) | T128: 9 | U128: Program Tracking Database | V128: EISA tier 1 compliant Halogen (watts) | W128: 43 | X128: IL TRM v5 | Y128: =cellformula(I128) -> =ROUND(($W128-$T128)/1000*$P128*$AE128*$AK128,4) | Z128: =cellformula(N128) -> =ROUND(($W128-$T128)/1000*$L128*$AH128*$AK128,4) | AA128: 2019-04-01 | AE128: 1.06 | AF128: Waste Heat Factor (energy) | AG128: IL TRM v5 | AH128: 1.11 | AI128: Waste Heat Factor (demand) | AJ128: IL TRM v5 | AK128: 0.969 | AL128: ISR | AM128: IL TRM v5 | CK128: 317 | CL128: Single Family | CM128: HVAC | CO128: per ton | CP128: 644.56 | CQ128: 283.4917 | CR128: IL TRM v5 | CS128: 0.2886880855 | CT128: 0.72 | CU128: IL TRM v5 | CV128: 0.3375
A129: Income-Eligible Multi-Family | B129: Screw In - LEDs - Common Area (Exterior) | C129: 250 | D129: Multi-Family | E129: Lighting | F129: Common Area - DI | G129: per lamp | H129: 3.93 | I129: =ROUND(($W129-$T129)/1000*$P129*$AE129*$AK129,4) -> 98.8209 | K129: =I129/P129 -> 0.0201551907 | L129: 0 | M129: IL TRM v5 | N129: =ROUND(($W129-$T129)/1000*$L129*$AH129*$AK129,4) -> 0 | O129: IL TRM v5 | P129: 4903 | Q129: IL TRM v5 | R129: 5 | S129: LED (watts) | T129: 9 | V129: EISA tier 1 compliant Halogen (watts) | W129: 29 | X129: IL TRM v5 | Y129: =ROUND(($W129-$T129)/1000*$P129*$AE129*$AK129,4) | Z129: =ROUND(($W129-$T129)/1000*$L129*$AH129*$AK129,4) | AA129: 2018-04-01 | AB129: 2019-03-31 | AE129: 1.04 | AF129: Waste Heat Factor (energy) | AG129: IL TRM v5 | AH129: 1.07 | AI129: Waste Heat Factor (demand) | AJ129: IL TRM v5 | AK129: 0.969 | AL129: ISR | AM129: IL TRM v5 | CK129: 317.1 | CL129: Single Family | CM129: HVAC | CO129: per ton | CP129: 644.56 | CQ129: 256.4384 | CR129: IL TRM v5 | CS129: 0.3474775068 | CT129: 0.72 | CU129: IL TRM v5 | CV129: 0.0617
A130: Income-Eligible Multi-Family | B130: Screw In - LEDs - Common Area (Exterior) | C130: 250.1 | D130: Multi-Family | E130: Lighting | F130: Common Area - DI | G130: per lamp | H130: 3.93 | I130: =ROUND(($W130-$T130)/1000*$P130*$AE130*$AK130,4) -> 81.5414 | K130: =I130/P130 -> 0.0329460202 | L130: 0.273 | M130: IL TRM v5 | N130: =ROUND(($W130-$T130)/1000*$L130*$AH130*$AK130,4) -> 0.009 | O130: IL TRM v5 | P130: 2475 | Q130: IL TRM v5 | R130: 5 | S130: LED (watts) | T130: 9 | U130: Program Tracking Database | V130: EISA tier 1 compliant Halogen (watts) | W130: 43 | X130: IL TRM v5 | Y130: =cellformula(I130) -> =ROUND(($W130-$T130)/1000*$P130*$AE130*$AK130,4) | Z130: =cellformula(N130) -> =ROUND(($W130-$T130)/1000*$L130*$AH130*$AK130,4) | AA130: 2019-04-01 | AE130: 1 | AF130: Waste Heat Factor (energy) | AG130: IL TRM v5 | AH130: 1 | AI130: Waste Heat Factor (demand) | AJ130: IL TRM v5 | AK130: 0.969 | AL130: ISR | AM130: IL TRM v5 | CK130: 38.1 | CL130: Single Family | CM130: HVAC | CO130: per ton | CP130: 411 | CQ130: 357.7369 | CR130: IL TRM v5 | CS130: 0.3642941955 | CT130: 0.72 | CU130: IL TRM v5 | CV130: 0.041
A131: Residential Programmable Thermostat | B131: Advanced Programmable Communicating Thermostat | C131: 65 | D131: All | E131: HVAC | G131: per unit | H131: 350 | I131: =ROUND(462,4) -> 462 | N131: =ROUND(1.26,4) -> 1.26 | R131: 10 | S131: PCT | V131: No PCT | Y131: =ROUND(462,4) | Z131: =ROUND(1.26,4) | AA131: 2016-04-01 | AB131: 2019-03-31 | CK131: 385 | CL131: Single Family | CM131: Motor | CO131: per unit | CP131: 97 | CQ131: 1346.8467 | CR131: Wisconsin Focus on Energy 2018 TRM | CS131: 0.8147058824 | CT131: 0.68 | CU131: IL TRM v6.0 | CV131: 0.554
A132: Residential Programmable Thermostat | B132: Smart Thermostat | C132: 65.1 | D132: All | E132: HVAC | G132: per unit | H132: 350 | I132: =ROUND(197,4) -> 197 | N132: =ROUND(1.4,4) -> 1.4 | R132: 10 | S132: PCT | V132: No PCT | Y132: =cellformula(I132) -> =ROUND(197,4) | Z132: =cellformula(N132) -> =ROUND(1.4,4) | AA132: 2019-04-01 | CK132: 386 | CL132: Single Family | CM132: Motor | CO132: per unit | CP132: 0 | CQ132: 524.0553 | CR132: Wisconsin Focus on Energy 2018 TRM | CS132: 0.1413235294 | CT132: 0.68 | CU132: IL TRM v6.0 | CV132: 0.0961
A133: Business Programmable Thermostat | B133: Advanced Programmable Communicating Thermostat | C133: 66 | D133: All | E133: HVAC | G133: per unit | H133: 350 | I133: =ROUND(462,4) -> 462 | N133: =ROUND(1.26,4) -> 1.26 | R133: 10 | S133: PCT | V133: No PCT | Y133: =ROUND(462,4) | Z133: =ROUND(1.26,4) | AA133: 2016-04-01 | AB133: 2019-03-31
A134: Business Programmable Thermostat | B134: Smart Thermostat | C134: 66.1 | D134: All | E134: HVAC | G134: per unit | H134: 350 | I134: =ROUND(197,4) -> 197 | N134: =ROUND(1.4,4) -> 1.4 | R134: 10 | S134: PCT | V134: No PCT | Y134: =cellformula(I134) -> =ROUND(197,4) | Z134: =ROUND(1.4,4) | AA134: 2019-04-01
A135: Small Business Direct Install | B135: Interior Daylighting Controls Replacing No Controls | C135: 67.1 | D135: Small C&I | E135: Lighting | G135: per sensor | H135: 66 | I135: =ROUND(T135/1000*AK135*P135*AE135,4) -> 692.634 | K135: =T135/1000*AK135*AH135 -> 0.21316318 | L135: 0.66 | N135: =ROUND(K135*L135,4) -> 0.1407 | P135: 3088 | R135: 8 | S135: Photocell Occupancy Sensor | T135: 587 | V135: No Control | Y135: =ROUND(T135/1000*AK135*P135*AE135,4) | Z135: =ROUND(K135*L135,4) | AA135: 2017-04-07 | AE135: 1.41 | AF135: Waste Heat Factor | AH135: 1.34 | AI135: Waste Heat Factor | AK135: 0.271 | AL135: ESF
A136: Small Business Direct Install | B136: LED Exit Sign | C136: 68.1 | D136: Small C&I | E136: Lighting | F136: Direct Install | G136: per unit | H136: 30 | I136: =ROUND((W136-T136)/1000*P136*AE136*AK136,4) -> 55.6972 | J136: IL TRM V.5 & Navigant field work | K136: =(W136-T136)/1000*AH136*AK136 -> 0.007227757089 | L136: 0.9337378093 | M136: Navigant field work | N136: 0.0067 | O136: IL TRM V.5 & Navigant field work | P136: 7706.016549 | Q136: Navigant field work | R136: 16 | S136: LED (watts) | T136: 2 | U136: IL TRM V.5 & Navigant field work | V136: Fluorescent (watts) | W136: 7.666666667 | X136: IL TRM V.5 | Y136: =ROUND((W136-T136)/1000*P136*AE136*AK136,4) | Z136: =ROUND(K136*L136,4) | AA136: 2018-04-01 | AB136: 2019-03-31 | AE136: 1.29 | AF136: Waste Heat Factor for energy | AG136: Navigant field work | AH136: 1.29 | AI136: Waste Heat Factor for demand | AJ136: Navigant field work | AK136: 0.9887492598 | AL136: ISR - in service rate | AM136: Navigant field work
A137: Small Business Direct Install | B137: LED Exit Sign | C137: 68.2 | D137: Small C&I | E137: Lighting | F137: Direct Install | G137: per unit | H137: 30 | I137: =ROUND((W137-T137)/1000*P137*AE137*AK137,4) -> 45.8683 | J137: IL TRM V.5 & Navigant field work | K137: =(W137-T137)/1000*AH137*AK137 -> 0.005952270544 | L137: 0.9337378093 | M137: Navigant field work | N137: 0.0056 | O137: IL TRM V.5 & Navigant field work | P137: 7706.016549 | Q137: Navigant field work | R137: 16 | S137: LED (watts) | T137: 3 | U137: Program Tracking Database | V137: Fluorescent (watts) | W137: 7.666666667 | X137: IL TRM V.5 | Y137: =cellformula(I137) -> =ROUND((W137-T137)/1000*P137*AE137*AK137,4) | Z137: =cellformula(N137) -> =ROUND(K137*L137,4) | AA137: 2019-04-01 | AE137: 1.29 | AF137: Waste Heat Factor for energy | AG137: Navigant field work | AH137: 1.29 | AI137: Waste Heat Factor for demand | AJ137: Navigant field work | AK137: 0.9887492598 | AL137: ISR - in service rate | AM137: Navigant field work
A138: Small Business Direct Install | B138: High‐Bay Fluorescent Fixture T5 > 4 Lamps w/ HE Electronic Ballast Replacing HID Fixture | C138: 69.1 | D138: Small C&I | E138: Lighting | G138: per fixture | H138: 100 | I138: =ROUND((W138-T138)/1000*P138*AE138,4) -> 701.0069 | K138: =(W138-T138)/1000*AH138 -> 0.21574 | L138: 0.66 | N138: 0.1424 | P138: 3088 | R138: 15 | S138: High Bay T5 (>4 lamps, wattage) | T138: 295 | V138: Metal Halide (watts) | W138: 456 | Y138: =ROUND((W138-T138)/1000*P138*AE138,4) | Z138: =ROUND(K138*L138,4) | AA138: 2017-04-07 | AE138: 1.41 | AF138: Waste Heat Factor | AH138: 1.34 | AI138: Waste Heat Factor
A139: Small Business Direct Install | B139: Interior Directional LED Lamp replacing 71-110W Lamp | C139: 70.1 | D139: Small C&I | E139: Lighting | G139: per lamp | H139: 50 | I139: 230.7662 | K139: 0.07102 | L139: 0.66 | N139: 0.0469 | P139: 3088 | R139: 11 | S139: LED (watts) | T139: 22 | V139: Incandescent (watts) | W139: 75 | Y139: =ROUND((W139-T139)/1000*P139*AE139,4) | Z139: =ROUND(K139*L139,4) | AA139: 2017-04-07 | AB139: 2019-03-31 | AE139: 1.41 | AF139: Waste Heat Factor | AH139: 1.34 | AI139: Waste Heat Factor
A140: Small Business Direct Install | B140: Interior Directional LED Lamp replacing 71-110W Lamp | C140: 70.2 | D140: Small C&I | E140: Lighting | G140: per lamp | H140: 20 | I140: =ROUND((W140-T140)/1000*P140*AE140,4) -> 327.4268 | K140: =(W140-T140)/1000*AH140 -> 0.100768 | L140: 0.66 | N140: 0.0665 | P140: 3088 | R140: =ROUND(25000/P140,0) -> 8 | S140: LED (watts) | T140: 14.8 | U140: Program Tracking Database | V140: Incandescent (watts) | W140: 90 | X140: Midpoint Value | Y140: =cellformula(I140) -> =ROUND((W140-T140)/1000*P140*AE140,4) | Z140: =cellformula(N140) -> =ROUND(K140*L140,4) | AA140: 2019-04-01 | AE140: 1.41 | AF140: Waste Heat Factor | AH140: 1.34 | AI140: Waste Heat Factor
A141: Small Business Direct Install | B141: Remove 4ft Lamp from T8 or T12 system | C141: 72.1 | D141: Small C&I | E141: Lighting | G141: per lamp | H141: 12 | I141: 121.9142 | K141: 0.03752 | L141: 0.66 | N141: 0.0248 | P141: 3088 | R141: 11 | S141: Remove T8 | T141: 0 | V141: T8 4 ft (watts) | W141: 28 | Y141: =ROUND((W141-T141)/1000*P141*AE141,4) | Z141: =ROUND(K141*L141,4) | AA141: 2017-04-07 | AE141: 1.41 | AF141: Waste Heat Factor | AH141: 1.34 | AI141: Waste Heat Factor
A142: Business Standard | B142: Heat Pump Water Heater | C142: 74 | D142: C&I | E142: Hot Water | G142: per unit | H142: 1000 | I142: =ROUND(((1/W142-1/T142)*AH142*AE142*365.25),4) -> 1993.08 | L142: 0.12 | N142: =ROUND(0.297621384273147,4) -> 0.2976 | P142: 2533 | R142: 10 | S142: Efficient EF | T142: 2 | V142: Baseline EF | W142: 0.95 | Y142: =ROUND(((1/W142-1/T142)*AH142*AE142*365.25),4) | Z142: =ROUND(0.297621384273147,4) | AA142: 2016-04-01 | AB142: 2019-03-31 | AE142: 55 | AF142: gallons used per day | AH142: 0.179529623 | AI142: Water Heating Coefficient
A143: Business Standard | B143: Low Flow Faucet Aerator Kitchen | C143: 251 | D143: C&I | E143: Hot Water | F143: Kitchen | G143: per unit | H143: 8.35 | I143: =ROUND(1*(W143-T143)/W143*AE143*AH143*AK143,4) -> 89.064 | J143: IL TRM V.5 | L143: 0.01015910868 | M143: Illinois TRM V.5. | N143: =ROUND(I143/AN143*L143,4) -> 0.0219 | O143: IL TRM V.5 | R143: 9 | S143: Low Flow (GPM) | T143: 1.41 | U143: Illinois TRM V.5. | V143: Standard (GPM) | W143: 1.826 | X143: https://www.usgbc.org/credits/we2 | Y143: =ROUND(1*(W143-T143)/W143*AE143*AH143*AK143,4) | Z143: =ROUND(I143/AN143*L143,4) | AA143: 2018-04-01 | AE143: 4246.804441 | AF143: Usage - Estimated usage of mixed water (mixture of hot water from water heater line and cold water line) per faucet (gallons per year) | AG143: IL TRM V.5 | AH143: 0.0969 | AI143: EPG_electric - Energy per gallon of mixed water used by faucet (electric water heater) | AJ143: IL TRM V.5 | AK143: 0.95 | AL143: ISR - in service rate | AM143: IL TRM V.5 | AN143: =AE143*0.545/56 -> 41.3305075 | AO143: Annual Recovery Hours - Annual electric DHW recovery hours for faucet use
A144: Business Standard | B144: Low Flow Faucet Aerator Bathroom | C144: 252 | D144: C&I | E144: Hot Water | F144: Bathroom | G144: per unit | H144: 8.35 | I144: =ROUND(1*(W144-T144)/W144*AE144*AH144*AK144,4) -> 155.6274 | J144: IL TRM V.5 | L144: 0.01015910868 | M144: Illinois TRM V.5. | N144: =ROUND(I144/AN144*L144,4) -> 0.0383 | O144: IL TRM V.5 | R144: 9 | S144: Low Flow (GPM) | T144: 0.94 | U144: Illinois TRM V.5. | V144: Standard (GPM) | W144: 1.826 | X144: United States Energy Policy Act of 1992 | Y144: =ROUND(1*(W144-T144)/W144*AE144*AH144*AK144,4) | Z144: =ROUND(I144/AN144*L144,4) | AA144: 2018-04-01 | AE144: 4246.804441 | AF144: Usage - Estimated usage of mixed water (mixture of hot water from water heater line and cold water line) per faucet (gallons per year) | AG144: IL TRM V.5 | AH144: 0.0795 | AI144: EPG_electric - Energy per gallon of mixed water used by faucet (electric water heater) | AJ144: IL TRM V.5 | AK144: 0.95 | AL144: ISR - in service rate | AM144: IL TRM V.5 | AN144: =AE144*0.545/56 -> 41.3305075 | AO144: Annual Recovery Hours - Annual electric DHW recovery hours for faucet use
A145: Business Standard | B145: Pipe Wrap/Insulation | C145: 76 | D145: C&I | E145: Hot Water | G145: per unit | H145: 47.17 | I145: =ROUND(224,4) -> 224 | K145: =I145/P145 -> 0.02557077626 | N145: =ROUND(0.2779713001086,4) -> 0.278 | P145: 8760 | R145: 6 | S145: 5 linear feet of insulation | V145: none | Y145: =ROUND(224,4) | Z145: =ROUND(0.2779713001086,4) | AA145: 2016-04-01
A146: Business Standard | B146: Pre-Rinse Spray Valves Small | C146: 253 | D146: C&I | E146: Hot Water | F146: Small, quick- service restaurants | G146: per unit | H146: 100 | I146: =ROUND((W146-T146)*60*AK146*312*8.33*1*AE146*1/AH146/3413*1,4) -> 2769.6198 | J146: IL TRM V.5 | N146: =ROUND(0,4) -> 0 | R146: 5 | S146: Low Flow (GPM) | T146: 1.06 | U146: IL TRM V.5 | V146: Standard (GPM) | W146: 1.9 | X146: IL TRM V.5 | Y146: =ROUND((W146-T146)*60*AK146*312*8.33*1*AE146*1/AH146/3413*1,4) | Z146: =ROUND(0,4) | AA146: 2018-04-01 | AE146: 70 | AF146: Temp difference between water heater outlet water temperature | AG146: IL TRM V.5 | AH146: 0.97 | AI146: EFF_Elec - Efficiency of electric water heater supplying hot water to pre-rinse spray valve | AJ146: IL TRM V.5 | AK146: 1 | AL146: Hours per day that the pre-rinse spray valve is used at the site - Hours/day | AM146: IL TRM V.5
A147: Business Standard | B147: Pre-Rinse Spray Valves Medium | C147: 254 | D147: C&I | E147: Hot Water | F147: Medium-sized casual dining restaurants | G147: per unit | H147: 100 | I147: =ROUND((W147-T147)*60*AK147*312*8.33*1*AE147*1/AH147/3413*1,4) -> 4154.4296 | J147: IL TRM V.5 | N147: =ROUND(0,4) -> 0 | R147: 5 | S147: Low Flow (GPM) | T147: 1.06 | U147: IL TRM V.5 | V147: Standard (GPM) | W147: 1.9 | X147: IL TRM V.5 | Y147: =ROUND((W147-T147)*60*AK147*312*8.33*1*AE147*1/AH147/3413*1,4) | Z147: =ROUND(0,4) | AA147: 2018-04-01 | AE147: 70 | AF147: Temp difference between water heater outlet water temperature | AG147: IL TRM V.5 | AH147: 0.97 | AI147: EFF_Elec - Efficiency of electric water heater supplying hot water to pre-rinse spray valve | AJ147: IL TRM V.5 | AK147: 1.5 | AL147: Hours per day that the pre-rinse spray valve is used at the site - Hours/day | AM147: IL TRM V.5
A148: Business Standard | B148: Pre-Rinse Spray Valves Large | C148: 255 | D148: C&I | E148: Hot Water | F148: Large institutional establishments with cafeteria | G148: per unit | H148: 100 | I148: =ROUND((W148-T148)*60*AK148*312*8.33*1*AE148*1/AH148/3413*1,4) -> 8308.8593 | J148: IL TRM V.5 | N148: =ROUND(0,4) -> 0 | R148: 5 | S148: Low Flow (GPM) | T148: 1.06 | U148: IL TRM V.5 | V148: Standard (GPM) | W148: 1.9 | X148: IL TRM V.5 | Y148: =ROUND((W148-T148)*60*AK148*312*8.33*1*AE148*1/AH148/3413*1,4) | Z148: =ROUND(0,4) | AA148: 2018-04-01 | AE148: 70 | AF148: Temp difference between water heater outlet water temperature | AG148: IL TRM V.5 | AH148: 0.97 | AI148: EFF_Elec - Efficiency of electric water heater supplying hot water to pre-rinse spray valve | AJ148: IL TRM V.5 | AK148: 3 | AL148: Hours per day that the pre-rinse spray valve is used at the site - Hours/day | AM148: IL TRM V.5
A149: Business Standard | B149: High Efficiency Pool Pump | C149: 78 | D149: C&I | E149: Pools | G149: per unit | H149: 273.32 | I149: =ROUND(1301.24777183601,4) -> 1301.2478 | L149: 1 | N149: =ROUND(0.148544266191325,4) -> 0.1485 | R149: 10 | S149: High Efficiency | V149: Standard Pool Pump | Y149: =ROUND(1301.24777183601,4) | Z149: =ROUND(0.148544266191325,4) | AA149: 2016-04-01
A150: Business Standard | B150: Pool Pump VSD | C150: 79 | D150: C&I | E150: Pools | G150: per unit | H150: 579 | I150: =ROUND(2461.44821213111,4) -> 2461.4482 | L150: 1 | N150: =ROUND(0.280987238827752,4) -> 0.281 | R150: 10 | S150: VSD | V150: Standard Pool Pump | Y150: =ROUND(2461.44821213111,4) | Z150: =ROUND(0.280987238827752,4) | AA150: 2016-04-01
A151: Business Standard | B151: ENERGY STAR Beverage Machine w/o software | C151: 256 | D151: C&I | E151: Refrigeration | F151: kWh savings per machine w/o software | G151: per unit | H151: 500 | I151: =ROUND(1310,4) -> 1310 | J151: IL TRM V.5 | N151: =ROUND(0,4) -> 0 | O151: IL TRM V.5 | R151: 14 | S151: Efficient Operating Watts | V151: Watts Base | Y151: =ROUND(1310,4) | Z151: =ROUND(0,4) | AA151: 2018-04-01
A152: Business Standard | B152: ENERGY STAR Beverage Machine w/ software | C152: 257 | D152: C&I | E152: Refrigeration | F152: kWh savings per machine w/ software | G152: per unit | H152: 500 | I152: =ROUND(1842,4) -> 1842 | J152: IL TRM V.5 | N152: =ROUND(0,4) -> 0 | O152: IL TRM V.5 | R152: 14 | S152: Efficient Operating Watts | V152: Watts Base | Y152: =ROUND(1842,4) | Z152: =ROUND(0,4) | AA152: 2018-04-01
A153: Business Standard | B153: High Efficiency Reach-In Refrigerator | C153: 258 | D153: C&I | E153: Refrigeration | F153: No unique savings for this measure. The savings is based on actual chilled or frozen compartment volume of the efficient unit. This measure life is for refrigerator | G153: per unit | H153: 164 | I153: =ROUND((W153-T153)*365.25,4) -> 286.7213 | J153: IL TRM V.5. Assumes 15 ft^3 of actual chilled or frozen compartment volume. | L153: 0.937 | M153: IL TRM V.5 | N153: =ROUND(I153/P153*L153,4) -> 0.0306 | O153: IL TRM V.5 | P153: 8766 | Q153: IL TRM v5 | R153: 12 | S153: High Efficiency kWh/day | T153: =0.037*15+2.2 -> 2.755 | U153: IL TRM V.5 | V153: Standard kWh/day | W153: =0.1*15+2.04 -> 3.54 | X153: IL TRM V.5 | Y153: =ROUND((W153-T153)*365.25,4) | Z153: =ROUND(I153/P153*L153,4) | AA153: 2018-04-01
A154: Business Standard | B154: High Efficiency Reach-In Freezer | C154: 259 | D154: C&I | E154: Refrigeration | F154: No unique savings for this measure. The savings is based on actual chilled or frozen compartment volume of the efficient unit. This measure life is for freezer | G154: per unit | H154: 166 | I154: =ROUND((W154-T154)*365.25,4) -> 869.295 | J154: IL TRM V.5. Assumes 15 ft^3 of actual chilled or frozen compartment volume. | L154: 0.937 | M154: IL TRM V.5 | N154: =ROUND(I154/P154*L154,4) -> 0.0929 | O154: IL TRM V.5 | P154: 8766 | Q154: IL TRM v5 | R154: 12 | S154: High Efficiency kWh/day | T154: =0.4*15-1 -> 5 | U154: IL TRM V.5 | V154: Standard kWh/day | W154: =0.4*15+1.38 -> 7.38 | X154: IL TRM V.5 | Y154: =ROUND((W154-T154)*365.25,4) | Z154: =ROUND(I154/P154*L154,4) | AA154: 2018-04-01
A155: Business Standard | B155: Strip Curtains Freezer | C155: 260 | D155: C&I | E155: Refrigeration | F155: per freezer with curtains installed | G155: per unit | H155: 286.16 | I155: =ROUND(2974,4) -> 2974 | J155: IL TRM V.5 | L155: 1 | N155: =ROUND(0.34,4) -> 0.34 | O155: IL TRM V.5 | R155: 6 | S155: Strip Curtain | V155: No strip curtain | Y155: =ROUND(2974,4) | Z155: =ROUND(0.34,4) | AA155: 2018-04-01
A156: Business Standard | B156: Strip Curtains Cooler | C156: 261 | D156: C&I | E156: Refrigeration | F156: per cooler with curtains installed | G156: per unit | H156: 286.16 | I156: =ROUND(422,4) -> 422 | J156: IL TRM V.5 | L156: 1 | N156: =ROUND(0.05,4) -> 0.05 | O156: IL TRM V.5 | R156: 6 | S156: Strip Curtain | V156: No strip curtain | Y156: =ROUND(422,4) | Z156: =ROUND(0.05,4) | AA156: 2018-04-01
A157: Business Standard | B157: LED Refrigerator Case Light | C157: 84.1 | D157: C&I | E157: Refrigeration | G157: per unit | H157: 133 | I157: =ROUND((W157-T157)/1000*P157*AE157*AK157,4) -> 224.9713 | J157: IL TRM V.5 | K157: =(W157-T157)/1000*AH157*AK157 -> 0.03877479097 | L157: 0.69 | M157: IL TRM V.5 | N157: =ROUND(K157*L157,4) -> 0.0268 | O157: IL TRM V.5 | P157: 5802 | Q157: IL TRM V.5 | R157: 10 | S157: LED Display Lighting (watts) | T157: =4*7.6 -> 30.4 | U157: IL TRM V.5 Assume 4 ft lamp | V157: Base Refrigeration - Standard (watts) | W157: =15.2*4 -> 60.8 | X157: IL TRM V.5. Assume 4 ft lamp | Y157: =ROUND((W157-T157)/1000*P157*AE157*AK157,4) | Z157: =ROUND(K157*L157,4) | AA157: 2018-04-01 | AE157: 1.29 | AF157: Waste Heat Factor for Energy | AG157: IL TRM V.5 | AH157: 1.29 | AI157: Waste Heat Factor for Demand | AJ157: IL TRM V.5 | AK157: 0.9887492598 | AL157: ISR | AM157: Navigant field work
A158: Business Standard | B158: ECM Motors Walk-In Coolers & Freezers | C158: 85 | D158: C&I | E158: Refrigeration | G158: per motor | H158: 50 | I158: =ROUND(401,4) -> 401 | L158: 1 | N158: =ROUND(0.042,4) -> 0.042 | R158: 15 | S158: ECM Motor | V158: Standard Motor | Y158: =ROUND(401,4) | Z158: =ROUND(0.042,4) | AA158: 2016-04-01
A159: Business Standard | B159: High Efficiency PTAC/PTHP | C159: 86 | D159: C&I | E159: HVAC | G159: per ton | H159: 12.26 | I159: =ROUND(((1/W159-1/T159)*AC159 + AK159*AD159)*AE159/AH159,4) -> 30.0701 | L159: 0.91 | N159: =ROUND(0.0118300668666732,4) -> 0.0118 | R159: 15 | S159: EER | T159: 12 | V159: EER | W159: 10.2 | Y159: =ROUND(((1/W159-1/T159)*AC159 + AK159*AD159)*AE159/AH159,4) | Z159: =ROUND(0.0118300668666732,4) | AA159: 2016-04-01 | AC159: 1325 | AD159: 5249 | AE159: 12000 | AF159: Btu/hr | AH159: 11535.60828 | AI159: Coefficient | AK159: =(1/8.2-1/8.5)*0.417 -> 0.001794835007 | AL159: HSPF improvement factor
A160: Business Standard | B160: Programmable Thermostat Controls | C160: 87 | D160: C&I | E160: HVAC | G160: per ton | H160: 5.895056403 | I160: =ROUND(126.052734375,4) -> 126.0527 | N160: =ROUND(0,4) -> 0 | R160: 8 | S160: Programmable Tstat | V160: No Tstat | Y160: =ROUND(126.052734375,4) | Z160: =ROUND(0,4) | AA160: 2016-04-01
A161: Business Standard | B161: ASHP <65 kBtuh | C161: 88 | D161: C&I | E161: HVAC | G161: per ton | H161: 120 | I161: =ROUND(((1/W161-1/T161)*AC161 + AK161*AD161)*AE161/AH161,4) -> 157.6937 | L161: 0.91 | N161: =ROUND(0.194113768584357,4) -> 0.1941 | P161: 816 | R161: 15 | S161: SEER | T161: 14 | V161: SEER | W161: 13 | Y161: =ROUND(((1/W161-1/T161)*AC161 + AK161*AD161)*AE161/AH161,4) | Z161: =ROUND(0.194113768584357,4) | AA161: 2016-04-01 | AB161: 2019-03-31 | AC161: 1325 | AD161: 5249 | AE161: 12000 | AF161: Btu/hr | AH161: 2194.403872 | AI161: Coefficient | AK161: =(1/7.7-1/8.5)*0.33599 -> 0.004106829641 | AL161: HSPF improvement factor
A162: Business Standard | B162: ASHP 65<135 kBtuh | C162: 89 | D162: C&I | E162: HVAC | G162: per ton | H162: 100 | I162: =ROUND(((1/W162-1/T162)*AC162 + AK162*AD162)*AE162/AH162,4) -> 91.3304 | K162: =I162/P162 -> 0.1119245098 | L162: 0.91 | N162: =ROUND(0.124089536699636,4) -> 0.1241 | P162: 816 | R162: 15 | S162: SEER | T162: 14 | V162: SEER | W162: 13 | Y162: =ROUND(((1/W162-1/T162)*AC162 + AK162*AD162)*AE162/AH162,4) | Z162: =ROUND(0.124089536699636,4) | AA162: 2016-04-01 | AB162: 2019-03-31 | AC162: 1325 | AD162: 5249 | AE162: 12000 | AF162: Btu/hr | AH162: 2194.403872 | AI162: Coefficient | AK162: =(1/8.2-1/8.5)*0.417 -> 0.001794835007 | AL162: HSPF improvement factor
A163: Business Standard | B163: CAC <65 kBtuh | C163: 90 | D163: C&I | E163: HVAC | G163: per ton | H163: 120 | I163: =ROUND((1/W163-1/T163)*AC163*AE163/AH163,4) -> 81.56 | K163: =I163/P163 -> 0.08156 | L163: 0.91 | N163: =ROUND(0.065934065934066,4) -> 0.0659 | P163: 1000 | R163: 15 | S163: EER | T163: 14 | V163: EER | W163: 13 | Y163: =ROUND((1/W163-1/T163)*AC163*AE163/AH163,4) | Z163: =ROUND(0.065934065934066,4) | AA163: 2016-04-01 | AC163: 1325 | AD163: 5249 | AE163: 12000 | AF163: Btu/hr | AH163: 1071.145482 | AI163: Coefficient
A164: Business Standard | B164: CAC 65<135 kBtuh | C164: 91 | D164: C&I | E164: HVAC | G164: per ton | H164: 100 | I164: =ROUND((1/W164-1/T164)*AC164*AE164/AH164,4) -> 56.6389 | K164: =I164/P164 -> 0.0566389 | L164: =N164/K164 -> 0.8086315236 | N164: =ROUND(0.0457875457875458,4) -> 0.0458 | P164: 1000 | R164: 15 | S164: EER | T164: 11.7 | V164: EER | W164: 11.2 | Y164: =ROUND((1/W164-1/T164)*AC164*AE164/AH164,4) | Z164: =ROUND(0.0457875457875458,4) | AA164: 2016-04-01 | AC164: 1325 | AD164: 5249 | AE164: 12000 | AF164: Btu/hr | AH164: 1071.145482 | AI164: Coefficient
A165: Business Standard | B165: CAC 135<240 kBtuh | C165: 92 | D165: C&I | E165: HVAC | G165: per ton | H165: 100 | I165: =ROUND((1/W165-1/T165)*AC165*AE165/AH165,4) -> 80.7362 | K165: =I165/P165 -> 0.0807362 | L165: =N165/K165 -> 0.808806954 | N165: =ROUND(0.0652680652680653,4) -> 0.0653 | P165: 1000 | R165: 15 | S165: EER | T165: 11.7 | V165: EER | W165: 11 | Y165: =ROUND((1/W165-1/T165)*AC165*AE165/AH165,4) | Z165: =ROUND(0.0652680652680653,4) | AA165: 2016-04-01 | AC165: 1325 | AD165: 5249 | AE165: 12000 | AF165: Btu/hr | AH165: 1071.145482 | AI165: Coefficient
A166: Business Standard | B166: CAC >240 kBtuh | C166: 93 | D166: C&I | E166: HVAC | G166: per ton | H166: 100 | I166: =ROUND((1/W166-1/T166)*AC166*AE166/AH166,4) -> 70.6853 | K166: =I166/P166 -> 0.0706853 | L166: =N166/K166 -> 0.8078058663 | N166: =ROUND(0.0571428571428573,4) -> 0.0571 | P166: 1000 | R166: 15 | S166: EER | T166: 10.5 | V166: EER | W166: 10 | Y166: =cellformula(I166) -> =ROUND((1/W166-1/T166)*AC166*AE166/AH166,4) | Z166: =cellformula(N166) -> =ROUND(0.0571428571428573,4) | AA166: 2016-04-01 | AC166: 1325 | AD166: 5249 | AE166: 12000 | AF166: Btu/hr | AH166: 1071.145482 | AI166: Coefficient
A167: Business Standard | B167: Interior Directional LED Lamp replacing 50-70W Lamp | C167: 96.2 | D167: C&I | E167: Lighting | G167: per lamp | H167: 40 | I167: =ROUND((W167-T167)/1000*P167*AE167,4) -> 223.6691 | J167: IL TRM v5 | K167: =(W167-T167)/1000*AH167 -> 0.0688358 | L167: 0.6193 | M167: IL TRM v5 | N167: =ROUND(K167*L167,4) -> 0.0426 | O167: IL TRM v5 | P167: 3088 | Q167: IL TRM v5 | R167: 11 | S167: LED (watts) | T167: 13.63 | U167: IL TRM v5 | V167: Incandescent (watts) | W167: 65 | X167: IL TRM v5 | Y167: =cellformula(I167) -> =ROUND((W167-T167)/1000*P167*AE167,4) | Z167: =cellformula(N167) -> =ROUND(K167*L167,4) | AA167: 2018-04-01 | AB167: 2019-03-31 | AE167: 1.41 | AF167: Waste Heat Factor Energy | AG167: IL TRM v5 | AH167: 1.34 | AI167: Waste Heat Factor Demand | AJ167: IL TRM v5
A168: Business Standard | B168: Interior Directional LED Lamp replacing 50-70W Lamp | C168: 96.3 | D168: C&I | E168: Lighting | G168: per lamp | H168: 15 | I168: =ROUND((W168-T168)/1000*P168*AE168,4) -> 214.6561 | J168: IL TRM v5 | K168: =(W168-T168)/1000*AH168 -> 0.066062 | L168: 0.6193 | M168: IL TRM v5 | N168: 0.0409 | O168: IL TRM v5 | P168: 3088 | Q168: IL TRM v5 | R168: =ROUND(25000/P168,0) -> 8 | S168: LED (watts) | T168: 10.7 | U168: Program Tracking Database | V168: Incandescent (watts) | W168: 60 | X168: Midpoint Value | Y168: =cellformula(I168) -> =ROUND((W168-T168)/1000*P168*AE168,4) | Z168: =cellformula(N168) -> =ROUND(K168*L168,4) | AA168: 2019-04-01 | AE168: 1.41 | AF168: Waste Heat Factor Energy | AG168: IL TRM v5 | AH168: 1.34 | AI168: Waste Heat Factor Demand | AJ168: IL TRM v5
A169: Business Standard | B169: Interior Directional LED Lamp replacing 71-110W Lamp | C169: 97.2 | D169: C&I | E169: Lighting | G169: per lamp | H169: 50 | I169: =ROUND((W169-T169)/1000*P169*AE169,4) -> 306.5272 | J169: IL TRM v5 | K169: =(W169-T169)/1000*AH169 -> 0.094336 | L169: 0.6193 | M169: IL TRM v5 | N169: =ROUND(K169*L169,4) -> 0.0584 | O169: IL TRM v5 | P169: 3088 | Q169: IL TRM v5 | R169: 11 | S169: LED (watts) | T169: 19.6 | U169: IL TRM v5 | V169: Incandescent (watts) | W169: 90 | X169: IL TRM v5 | Y169: =cellformula(I169) -> =ROUND((W169-T169)/1000*P169*AE169,4) | Z169: =cellformula(N169) -> =ROUND(K169*L169,4) | AA169: 2018-04-01 | AB169: 2019-03-31 | AE169: 1.41 | AF169: Waste Heat Factor Energy | AG169: IL TRM v5 | AH169: 1.34 | AI169: Waste Heat Factor Demand | AJ169: IL TRM v5
A170: Business Standard | B170: Interior Directional LED Lamp replacing 71-110W Lamp | C170: 97.3 | D170: C&I | E170: Lighting | G170: per lamp | H170: 20 | I170: =ROUND((W170-T170)/1000*P170*AE170,4) -> 327.4268 | J170: IL TRM v5 | K170: =(W170-T170)/1000*AH170 -> 0.100768 | L170: 0.6193 | M170: IL TRM v5 | N170: 0.0624 | O170: IL TRM v5 | P170: 3088 | Q170: IL TRM v5 | R170: =ROUND(25000/P170,0) -> 8 | S170: LED (watts) | T170: 14.8 | U170: Program Tracking Database | V170: Incandescent (watts) | W170: 90 | X170: Midpoint Value | Y170: =cellformula(I170) -> =ROUND((W170-T170)/1000*P170*AE170,4) | Z170: =cellformula(N170) -> =ROUND(K170*L170,4) | AA170: 2019-04-01 | AE170: 1.41 | AF170: Waste Heat Factor Energy | AG170: IL TRM v5 | AH170: 1.34 | AI170: Waste Heat Factor Demand | AJ170: IL TRM v5
A171: Business Standard | B171: High Performance High-Bay Fluorescent Fixture T8 > 4 Lamps Replacing HID Fixture | C171: 98.1 | D171: C&I | E171: Lighting | G171: per fixture | H171: 200 | I171: =ROUND((W171-T171)/1000*P171*AE171,4) -> 1084.1659 | K171: =(W171-T171)/1000*AH171 -> 0.33366 | L171: 0.66 | N171: =ROUND(K171*L171,4) -> 0.2202 | P171: 3088 | R171: 15 | S171: High Bay T8 (>4 lamps, wattage) | T171: 206 | V171: Metal Halide (watts) | W171: 455 | Y171: =ROUND((W171-T171)/1000*P171*AE171,4) | Z171: =ROUND(K171*L171,4) | AA171: 2017-04-07 | AE171: 1.41 | AF171: Waste Heat Factor | AH171: 1.34 | AI171: Waste Heat Factor
A172: Business Standard | B172: High Bay Fluorescent Fixture (HP T8 <=4 lamps) | C172: 99 | D172: C&I | E172: Lighting | G172: per fixture | H172: 225 | I172: 648.7579 | K172: 0.19966 | L172: 0.66 | N172: =ROUND(K172*L172,4) -> 0.1318 | P172: 3088 | R172: 15 | S172: High Bay T8 (≤4 lamps, wattage) | T172: 146 | V172: Metal Halide (watts) | W172: 295 | Y172: =ROUND((W172-T172)/1000*P172*AE172,4) | Z172: =ROUND(K172*L172,4) | AA172: 2016-04-01 | AE172: 1.41 | AF172: Waste Heat Factor | AH172: 1.34 | AI172: Waste Heat Factor
A173: Business Standard | B173: High-Bay Fluorescent Fixture T5 > 4 Lamps w/ HE Electronic Ballast Replacing HID Fixture | C173: 100.1 | D173: C&I | E173: Lighting | G173: per fixture | H173: 100 | I173: 701.0069 | K173: 0.21574 | L173: 0.66 | N173: =ROUND(K173*L173,4) -> 0.1424 | P173: 3088 | R173: 15 | S173: High Bay T5 (>4 lamps, wattage) | T173: 295 | V173: Metal Halide (watts) | W173: 456 | Y173: =ROUND((W173-T173)/1000*P173*AE173,4) | Z173: =ROUND(K173*L173,4) | AA173: 2017-04-07 | AE173: 1.41 | AF173: Waste Heat Factor | AH173: 1.34 | AI173: Waste Heat Factor
A174: Business Standard | B174: High-Bay Fluorescent Fixture T5 <= 4 Lamps w/ HE Electronic Ballast Replacing HID Fixture | C174: 101.1 | D174: C&I | E174: Lighting | G174: per fixture | H174: 100 | I174: 404.9294 | K174: 0.12462 | L174: 0.66 | N174: =ROUND(K174*L174,4) -> 0.0822 | P174: 3088 | R174: 15 | S174: High Bay T5 (≤4 lamps, wattage) | T174: 117 | V174: Metal Halide (watts) | W174: 210 | Y174: =ROUND((W174-T174)/1000*P174*AE174,4) | Z174: =ROUND(K174*L174,4) | AA174: 2017-04-07 | AE174: 1.41 | AF174: Waste Heat Factor | AH174: 1.34 | AI174: Waste Heat Factor
A175: Business Standard | B175: LED Exit Sign | C175: 102.1 | D175: C&I | E175: Lighting | G175: per lamp | H175: 30 | I175: =ROUND((W175-T175)/1000*P175*AE175*AK175,4) -> 50.5988 | J175: IL TRM V.5 and Navigant Field Work | K175: =(W175-T175)/1000*AH175*AK175 -> 0.01182117718 | L175: 0.6910322129 | M175: Navigant field work | N175: 0.0082 | O175: IL TRM V.5 and Navigant Field Work | P175: 5079.677101 | Q175: Navigant field work | R175: 16 | S175: LED (watts) | T175: 2.079150579 | U175: IL TRM V.5 and Navigant field work | V175: Fluorescent (watts) | W175: 11 | X175: IL TRM V.5 | Y175: =ROUND((W175-T175)/1000*P175*AE175*AK175,4) | Z175: =ROUND(K175*L175,4) | AA175: 2018-04-01 | AB175: 2019-03-31 | AE175: 1.129306801 | AF175: Waste Heat Factor | AG175: Navigant Field Work | AH175: 1.34019609 | AI175: Waste Heat Factor | AJ175: Navigant Field Work | AK175: 0.9887492598 | AL175: ISR | AM175: Navigant field work
A176: Business Standard | B176: LED Exit Sign | C176: 102.2 | D176: C&I | E176: Lighting | G176: per lamp | H176: 30 | I176: =ROUND((W176-T176)/1000*P176*AE176*AK176,4) -> 45.3758 | J176: IL TRM V.5 and Navigant Field Work | K176: =(W176-T176)/1000*AH176*AK176 -> 0.01060094314 | L176: 0.6910322129 | M176: Navigant field work | N176: 0.0073 | O176: IL TRM V.5 and Navigant Field Work | P176: 5079.677101 | Q176: Navigant field work | R176: 16 | S176: LED (watts) | T176: 3 | U176: Program Tracking Database | V176: Fluorescent (watts) | W176: 11 | X176: IL TRM V.5 | Y176: =cellformula(I176) -> =ROUND((W176-T176)/1000*P176*AE176*AK176,4) | Z176: =cellformula(N176) -> =ROUND(K176*L176,4) | AA176: 2019-04-01 | AE176: 1.129306801 | AF176: Waste Heat Factor | AG176: Navigant Field Work | AH176: 1.34019609 | AI176: Waste Heat Factor | AJ176: Navigant Field Work | AK176: 0.9887492598 | AL176: ISR | AM176: Navigant field work
A177: Business Standard | B177: LED Flood Light (<15W) | C177: 103 | D177: C&I | E177: Lighting | G177: per lamp | H177: 35 | I177: =ROUND((W177-T177)/1000*P177*AE177,4) -> 210.829 | K177: =(W177-T177)/1000*AH177 -> 0.043 | L177: 0 | N177: 0 | P177: 4903 | R177: 10 | S177: LED (watts) | T177: 8.7 | V177: Metal Halide (watts) | W177: 51.7 | Y177: =ROUND((W177-T177)/1000*P177*AE177,4) | Z177: =ROUND(K177*L177,4) | AA177: 2016-04-01 | AE177: 1 | AF177: Waste Heat Factor | AH177: 1 | AI177: Waste Heat Factor
A178: Business Standard | B178: LED Flood Light (>=15W) | C178: 104 | D178: C&I | E178: Lighting | G178: per lamp | H178: 45 | I178: 236.3246 | K178: 0.0482 | L178: 0 | N178: 0 | P178: 4903 | R178: 10 | S178: LED (watts) | T178: 16.2 | V178: Metal Halide (watts) | W178: 64.4 | Y178: =ROUND((W178-T178)/1000*P178*AE178,4) | Z178: =ROUND(K178*L178,4) | AA178: 2016-04-01 | AE178: 1 | AF178: Waste Heat Factor | AH178: 1 | AI178: Waste Heat Factor
A179: Business Standard | B179: LED Recessed Fixture (1 ft x 4 ft) | C179: 106 | D179: C&I | E179: Lighting | G179: per fixture | H179: 36.17 | I179: 116.6893 | K179: 0.035912 | L179: 0.66 | N179: 0.0237 | P179: 3088 | R179: 11 | S179: Linear style LED (watts) | T179: 32.2 | V179: Standard T8 (watts) | W179: 59 | Y179: =ROUND((W179-T179)/1000*P179*AE179,4) | Z179: =ROUND(K179*L179,4) | AA179: 2016-04-01 | AE179: 1.41 | AF179: Waste Heat Factor | AH179: 1.34 | AI179: Waste Heat Factor
A180: Business Standard | B180: LED Recessed Fixture (2 ft x 2 ft) | C180: 107 | D180: C&I | E180: Lighting | G180: per fixture | H180: 22.55 | I180: 70.1007 | K180: 0.021574 | L180: 0.66 | N180: 0.0142 | P180: 3088 | R180: 11 | S180: Linear style LED (watts) | T180: 44.9 | V180: T8 U-tube (watts) | W180: 61 | Y180: =ROUND((W180-T180)/1000*P180*AE180,4) | Z180: =ROUND(K180*L180,4) | AA180: 2016-04-01 | AE180: 1.41 | AF180: Waste Heat Factor | AH180: 1.34 | AI180: Waste Heat Factor
A181: Business Standard | B181: LED Recessed Fixture (2 ft x 4 ft) | C181: 108 | D181: C&I | E181: Lighting | G181: per fixture | H181: 55.5 | I181: 149.7804 | K181: 0.046096 | L181: 0.66 | N181: 0.0304 | P181: 3088 | R181: 11 | S181: Linear style LED (watts) | T181: 53.6 | V181: Standard T8 (watts) | W181: 88 | Y181: =ROUND((W181-T181)/1000*P181*AE181,4) | Z181: =ROUND(K181*L181,4) | AA181: 2016-04-01 | AE181: 1.41 | AF181: Waste Heat Factor | AH181: 1.34 | AI181: Waste Heat Factor
A182: Business Standard | B182: Remove 4ft Lamp from T8 or T12 system | C182: 109.1 | D182: C&I | E182: Lighting | G182: per lamp | H182: 12 | I182: 121.9142 | K182: 0.03752 | L182: 0.66 | N182: 0.0248 | P182: 3088 | R182: 11 | S182: Remove T8 | T182: 0 | V182: T8 4 ft (watts) | W182: 28 | Y182: =ROUND((W182-T182)/1000*P182*AE182,4) | Z182: =ROUND(K182*L182,4) | AA182: 2017-04-07 | AE182: 1.41 | AF182: Waste Heat Factor | AH182: 1.34 | AI182: Waste Heat Factor
A183: Business Standard | B183: Remove 8ft Lamp from T8 or T12 System | C183: 110.1 | D183: C&I | E183: Lighting | G183: per lamp | H183: 16 | I183: =ROUND((W183-T183)/1000*P183*AE183,4) -> 252.5366 | K183: =(W183-T183)/1000*AH183 -> 0.07772 | L183: 0.66 | N183: 0.0513 | P183: 3088 | R183: 11 | S183: Remove T8 | T183: 0 | V183: T8 8 ft (watts) | W183: 58 | Y183: =ROUND((W183-T183)/1000*P183*AE183,4) | Z183: =ROUND(K183*L183,4) | AA183: 2017-04-07 | AE183: 1.41 | AF183: Waste Heat Factor | AH183: 1.34 | AI183: Waste Heat Factor
A184: Business Standard | B184: Interior Omnidirectional LED Lamp replacing 40-60W Lamp | C184: 112.2 | D184: C&I | E184: Lighting | G184: per lamp | H184: 28.75 | I184: =ROUND((W184-T184)/1000*P184*AE184,4) -> 117.3425 | J184: IL TRM v5 | K184: =(W184-T184)/1000*AH184 -> 0.036113 | L184: 0.6193 | M184: IL TRM v5 | N184: 0.0224 | O184: IL TRM v5 | P184: 3088 | Q184: IL TRM v5 | R184: 8 | S184: LED (watts) | T184: 9.05 | U184: IL TRM v5 | V184: EISA tier 1 compliant Halogen (watts) | W184: 36 | X184: IL TRM v5 | Y184: =cellformula(I184) -> =ROUND((W184-T184)/1000*P184*AE184,4) | Z184: =cellformula(N184) -> =ROUND(K184*L184,4) | AA184: 2018-04-01 | AB184: 2019-03-31 | AE184: 1.41 | AF184: Waste Heat Factor Energy | AG184: IL TRM v5 | AH184: 1.34 | AI184: Waste Heat Factor Demand | AJ184: IL TRM v5
A185: Business Standard | B185: Interior Omnidirectional LED Lamp replacing 40-60W Lamp | C185: 112.3 | D185: C&I | E185: Lighting | G185: per lamp | H185: 8 | I185: =ROUND((W185-T185)/1000*P185*AE185,4) -> 178.2996 | J185: IL TRM v5 | K185: =(W185-T185)/1000*AH185 -> 0.054873 | L185: 0.6193 | M185: IL TRM v5 | N185: 0.034 | O185: IL TRM v5 | P185: 3088 | Q185: IL TRM v5 | R185: =ROUND(25000/P185,0) -> 8 | S185: LED (watts) | T185: 9.05 | U185: IL TRM v5 | V185: EISA tier 1 compliant Halogen (watts) | W185: 50 | X185: Midpoint Value | Y185: =cellformula(I185) -> =ROUND((W185-T185)/1000*P185*AE185,4) | Z185: =cellformula(N185) -> =ROUND(K185*L185,4) | AA185: 2019-04-01 | AE185: 1.41 | AF185: Waste Heat Factor Energy | AG185: IL TRM v5 | AH185: 1.34 | AI185: Waste Heat Factor Demand | AJ185: IL TRM v5
A186: Business Standard | B186: Interior Omnidirectional LED Lamp replacing 61-100W Lamp | C186: 113.2 | D186: C&I | E186: Lighting | G186: per lamp | H186: 38.75 | I186: =ROUND((W186-T186)/1000*P186*AE186,4) -> 160.6656 | J186: IL TRM v5 | K186: =(W186-T186)/1000*AH186 -> 0.049446 | L186: 0.6193 | M186: IL TRM v5 | N186: 0.0306 | O186: IL TRM v5 | P186: 3088 | Q186: IL TRM v5 | R186: 8 | S186: LED (watts) | T186: 16.1 | U186: IL TRM v5 | V186: EISA tier 1 compliant Halogen (watts) | W186: 53 | X186: IL TRM v5 | Y186: =cellformula(I186) -> =ROUND((W186-T186)/1000*P186*AE186,4) | Z186: =cellformula(N186) -> =ROUND(K186*L186,4) | AA186: 2018-04-01 | AB186: 2019-03-31 | AE186: 1.41 | AF186: Waste Heat Factor Energy | AG186: IL TRM v5 | AH186: 1.34 | AI186: Waste Heat Factor Demand | AJ186: IL TRM v5
A187: Business Standard | B187: Interior Omnidirectional LED Lamp replacing 61-100W Lamp | C187: 113.3 | D187: C&I | E187: Lighting | G187: per lamp | H187: 12 | I187: =ROUND((W187-T187)/1000*P187*AE187,4) -> 300.4315 | J187: IL TRM v5 | K187: =(W187-T187)/1000*AH187 -> 0.09246 | L187: 0.6193 | M187: IL TRM v5 | N187: 0.0573 | O187: IL TRM v5 | P187: 3088 | Q187: IL TRM v5 | R187: =ROUND(25000/P187,0) -> 8 | S187: LED (watts) | T187: 11 | U187: Program Tracking Database | V187: EISA tier 1 compliant Halogen (watts) | W187: 80 | X187: Midpoint Value | Y187: =cellformula(I187) -> =ROUND((W187-T187)/1000*P187*AE187,4) | Z187: =cellformula(N187) -> =ROUND(K187*L187,4) | AA187: 2019-04-01 | AE187: 1.41 | AF187: Waste Heat Factor Energy | AG187: IL TRM v5 | AH187: 1.34 | AI187: Waste Heat Factor Demand | AJ187: IL TRM v5
A188: Business Standard | B188: Interior Daylighting Controls Replacing No Controls | C188: 114.1 | D188: C&I | E188: Lighting | G188: per sensor | H188: 66 | I188: =ROUND(T188/1000*AK188*P188*AE188,4) -> 692.634 | K188: =T188/1000*AK188*AH188 -> 0.21316318 | L188: 0.66 | N188: 0.1407 | P188: 3088 | R188: 8 | S188: Photocell Occupancy Sensor | T188: 587 | V188: No Control | Y188: =ROUND(T188/1000*AK188*P188*AE188,4) | Z188: =ROUND(K188*L188,4) | AA188: 2017-04-07 | AE188: 1.41 | AF188: Waste Heat Factor | AH188: 1.34 | AI188: Waste Heat Factor | AK188: 0.271 | AL188: ESF
A189: Business Standard | B189: Interior Occupancy or Vacancy Sensor Replacing No Controls | C189: 115.1 | D189: C&I | E189: Lighting | G189: per sensor | H189: 42 | I189: =ROUND(T189/1000*AK189*P189*AE189,4) -> 457.1784 | K189: =T189/1000*AK189*AH189 -> 0.1407 | L189: 0.66 | N189: 0.0929 | P189: 3088 | R189: 8 | S189: Wall-Mount Occupancy Sensor | T189: 350 | V189: No Control | Y189: =ROUND(T189/1000*AK189*P189*AE189,4) | Z189: =ROUND(K189*L189,4) | AA189: 2017-04-07 | AE189: 1.41 | AF189: Waste Heat Factor | AH189: 1.34 | AI189: Waste Heat Factor | AK189: 0.3 | AL189: ESF
A190: Business Standard | B190: High Volume Low Speed Fans (20ft Diameter) | C190: 116 | D190: C&I | E190: Pumps/Fans | G190: per fan | H190: 4150 | I190: =ROUND(6577,4) -> 6577 | N190: =ROUND(2.4,4) -> 2.4 | R190: 10 | Y190: =ROUND(6577,4) | Z190: =ROUND(2.4,4) | AA190: 2016-04-01
A191: Business Standard | B191: High Volume Low Speed Fans (22ft Diameter) | C191: 117 | D191: C&I | E191: Pumps/Fans | G191: per fan | H191: 4180 | I191: =ROUND(8543,4) -> 8543 | N191: =ROUND(3.1,4) -> 3.1 | R191: 10 | Y191: =ROUND(8543,4) | Z191: =ROUND(3.1,4) | AA191: 2016-04-01
A192: Business Standard | B192: High Volume Low Speed Fans (24ft Diameter) | C192: 118 | D192: C&I | E192: Pumps/Fans | G192: per fan | H192: 4225 | I192: =ROUND(10018,4) -> 10018 | N192: =ROUND(3.7,4) -> 3.7 | R192: 10 | Y192: =ROUND(10018,4) | Z192: =ROUND(3.7,4) | AA192: 2016-04-01
A193: Business Standard | B193: Compressed Air - Engineered Nozzle 1/4" | C193: 119 | D193: C&I | E193: Pumps/Fans | G193: per unit | H193: 57 | I193: =ROUND(1086.638,4) -> 1086.638 | N193: =ROUND(0.511,4) -> 0.511 | R193: 15 | Y193: =ROUND(1086.638,4) | Z193: =ROUND(0.511,4) | AA193: 2016-04-01
A194: Business Standard | B194: Compressed Air - Engineered Nozzle 1/8" | C194: 120 | D194: C&I | E194: Pumps/Fans | G194: per unit | H194: 42 | I194: =ROUND(393.438,4) -> 393.438 | N194: =ROUND(0.163,4) -> 0.163 | R194: 15 | Y194: =ROUND(393.438,4) | Z194: =ROUND(0.163,4) | AA194: 2016-04-01
A195: Business Standard | B195: Compressed Air - No Loss Condensate Drain/Valve | C195: 121.1 | D195: C&I | E195: Pumps/Fans | G195: per unit | H195: 700 | I195: =ROUND(1969.65,4) -> 1969.65 | N195: =ROUND(0.30495,4) -> 0.305 | O195: IL TRM V.5 | R195: 15 | Y195: =ROUND(1969.65,4) | Z195: =ROUND(0.30495,4) | AA195: 2018-04-01
A196: Business Standard | B196: Variable Speed Drive Compressor - 1 shift weekdays | C196: 122 | D196: C&I | E196: Pumps/Fans | G196: per HP | H196: 140.37 | I196: =ROUND(329,4) -> 329 | N196: =ROUND(0.15818,4) -> 0.1582 | R196: 10 | Y196: =ROUND(329,4) | Z196: =ROUND(0.15818,4) | AA196: 2016-04-01
A197: Business Standard | B197: Variable Speed Drive Compressor - 2 shift weekdays | C197: 123 | D197: C&I | E197: Pumps/Fans | G197: per HP | H197: 140.37 | I197: =ROUND(658,4) -> 658 | N197: =ROUND(0.15818,4) -> 0.1582 | R197: 10 | Y197: =ROUND(658,4) | Z197: =ROUND(0.15818,4) | AA197: 2016-04-01
A198: Business Standard | B198: Variable Speed Drive Compressor - 3 shift weekdays | C198: 124 | D198: C&I | E198: Pumps/Fans | G198: per HP | H198: 140.37 | I198: =ROUND(987,4) -> 987 | N198: =ROUND(0.15818,4) -> 0.1582 | R198: 10 | Y198: =ROUND(987,4) | Z198: =ROUND(0.15818,4) | AA198: 2016-04-01
A199: Business Standard | B199: Variable Speed Drive Compressor - 3 shift weekdays plus weekends | C199: 125 | D199: C&I | E199: Pumps/Fans | G199: per HP | H199: 140.37 | I199: =ROUND(1385.3,4) -> 1385.3 | N199: =ROUND(0.15818,4) -> 0.1582 | R199: 10 | Y199: =ROUND(1385.3,4) | Z199: =ROUND(0.15818,4) | AA199: 2016-04-01
A200: Business Standard | B200: Advanced Rooftop Unit Controls, 2000-4000 annual hours occupancy | C200: 137 | D200: C&I | E200: HVAC | G200: per ton | H200: 400 | I200: =ROUND(420,4) -> 420 | N200: =ROUND(0.15,4) -> 0.15 | R200: 15 | Y200: =ROUND(420,4) | Z200: =ROUND(0.15,4) | AA200: 2016-04-01
... 145 more rows
